Local authority department which incurred the expenditure,Service Division,Cost Centre,Summary of the Purpose of Expenditure,Expense Type,Expense Code,Detailed Expense Type,Date of Transaction,Transaction Number,Beneficiary,Merchant Category Number,Merchant Category,Gross Amount,VAT,Net Amount
Children and Young Peoples Services,Head of Early Help Assessment and Safeguarding,71440,Barnard Castle One Point Hub,Supplies and Services,312011,Newspapers Books and Periodicals,01-May-17,6019433863,Amazon UK Marketplace,5942,Books-school library,71.93,0,71.93
Children and Young Peoples Services,Head of Education,71732,Dean Bank Childcare,Supplies and Services,312011,Newspapers Books and Periodicals,01-May-17,6019433989,Amazon UK Marketplace,5942,Books-school library,15.98,0,15.98
Children and Young Peoples Services,Head of Looked After Provision Permanence and Care Leavers,85341,High Etherley Satelite Home,Supplies and Services,324117,Provisions,01-May-17,6019433997,TESCO STORES 6329,5411,Catering costs - provisions,142.23,0,142.23
Children and Young Peoples Services,Head of Looked After Provision Permanence and Care Leavers,85341,High Etherley Satelite Home,Supplies and Services,304245,Equipment and Materials,01-May-17,6019433999,HOMEBASE LTD 822,5211,Materials,9.22,0,9.22
Regeneration and Local Services,Culture & Sport,11191,Wellbeing4Life,Supplies and Services,324117,Provisions,01-May-17,6019434207,ALDI,5411,Catering costs - provisions,7.82,0,7.82
Regeneration and Local Services,Culture & Sport,54604,Seven Hills Spennymoor,Supplies and Services,304403,Equipment and Materials,01-May-17,6019434241,AMAZON UK RETAIL AMAZO,5999,Other consumables,10.99,0,10.99
Children and Young Peoples Services,Head of Looked After Provision Permanence and Care Leavers,85331,New Lea Childrens Home,Transport,235057,Public Transport,01-May-17,6019434435,WWW.SIMPLYGO.COM,4131,Staff travelling,15.5,0,15.5
Regeneration and Local Services,Culture & Sport,11204,Events,Supplies and Services,336005,Advertising,01-May-17,6019434459,FACEBK BLZ4BB65B2,7311,Advertising other than for staff,134.03,0,134.03
Regeneration and Local Services,Culture & Sport,11060,Hardwick Park Catering,Supplies and Services,324117,Provisions,01-May-17,6019434513,SAINSBURYS (2303),5411,Catering costs - provisions,30,0,30
Children and Young Peoples Services,Head of Looked After Provision Permanence and Care Leavers,85332,Middlestone Moor CU,Supplies and Services,342033,Computers and Communications,01-May-17,6030940509,EMP Merchan,5964,Computer hardware,43.98,0,43.98
Regeneration and Local Services,Culture & Sport,54812,Gala Theatre - Catering etc,Supplies and Services,324117,Provisions,01-May-17,6036408155,BATLEYS PERTH,5300,Catering costs - provisions,45.48,7.58,37.9
Regeneration and Local Services,Culture & Sport,54812,Gala Theatre - Catering etc,Supplies and Services,324117,Provisions,01-May-17,000006036408155 - 1,BATLEYS PERTH,5300,Catering costs - provisions,63.24,,63.24
Regeneration and Local Services,Culture & Sport,54812,Gala Theatre - Catering etc,Supplies and Services,324117,Provisions,01-May-17,6036408159,BATLEYS PERTH,5300,Catering costs - provisions,8.86,1.48,7.38
Regeneration and Local Services,Economic Development and Housing,31500,Housing Solutions - Core Team,Supplies and Services,364320,Grants to Voluntary Organisations,02-May-17,6019433797,DAYS INN,7011,Accommodation assistance,40,6.67,33.33
Regeneration and Local Services,Economic Development and Housing,31500,Housing Solutions - Core Team,Supplies and Services,352001,Conference Expenses,02-May-17,6019433801,DAYS INN,7011,Conferencesseminars fees etc,40,6.67,33.33
Resources,I.C.T. Services,65481,Technical Services,Supplies and Services,304335,Equipment and Materials,02-May-17,6026843601,WPY ITProTV,7392,ICT supplies etc,443,0,443
Regeneration and Local Services,Economic Development and Housing,31500,Housing Solutions - Core Team,Supplies and Services,352001,Conference Expenses,02-May-17,6026843617,DAYS INN,7011,Conferencesseminars fees etc,39.5,6.58,32.92
Regeneration and Local Services,Economic Development and Housing,31500,Housing Solutions - Core Team,Supplies and Services,352001,Conference Expenses,02-May-17,6026843623,DAYS INN,7011,Conferencesseminars fees etc,39.5,6.58,32.92
Regeneration and Local Services,Economic Development and Housing,31500,Housing Solutions - Core Team,Supplies and Services,352001,Conference Expenses,02-May-17,6026843627,TRAVELODGE,3615,Conferencesseminars fees etc,41,6.83,34.17
Regeneration and Local Services,Economic Development and Housing,31500,Housing Solutions - Core Team,Supplies and Services,352001,Conference Expenses,02-May-17,6026843631,TRAVELODGE,3615,Conferencesseminars fees etc,41,6.83,34.17
Regeneration and Local Services,Economic Development and Housing,30699,Business Growth and Innovation General,Supplies and Services,304403,Equipment and Materials,02-May-17,6026843667,ADOBE CREATIVE CLOUD,5734,Other consumables,45.73,0,45.73
Regeneration and Local Services,Economic Development and Housing,30699,Business Growth and Innovation General,Supplies and Services,312011,Newspapers Books and Periodicals,02-May-17,6026843673,FASTHOSTS INTERNET,4816,Books-school library,59.99,0,59.99
Regeneration and Local Services,Direct Services,21242,Catering - County Hall,Supplies and Services,324117,Provisions,02-May-17,6026843715,FREEMAN CATERING BUTCH,5422,Catering costs - provisions,134.55,0,134.55
Regeneration and Local Services,Direct Services,21242,Catering - County Hall,Supplies and Services,324117,Provisions,02-May-17,6026843719,FREEMAN CATERING BUTCH,5422,Catering costs - provisions,97.45,0,97.45
Regeneration and Local Services,Direct Services,21242,Catering - County Hall,Supplies and Services,324117,Provisions,02-May-17,6026843723,JR HOLLAND FOODSERVICE,5422,Catering costs - provisions,113.41,0,113.41
Regeneration and Local Services,Direct Services,21242,Catering - County Hall,Supplies and Services,324117,Provisions,02-May-17,6026843731,JR HOLLAND FOODSERVICE,5422,Catering costs - provisions,13.52,0,13.52
Regeneration and Local Services,Direct Services,21242,Catering - County Hall,Supplies and Services,324117,Provisions,02-May-17,6026843737,WWW.ADELIEFOODS.CO.UK,5499,Catering costs - provisions,165.13,0,165.13
Regeneration and Local Services,Direct Services,21242,Catering - County Hall,Supplies and Services,324117,Provisions,02-May-17,6026843739,WWW.ADELIEFOODS.CO.UK,5499,Catering costs - provisions,100.06,0,100.06
Regeneration and Local Services,Direct Services,21242,Catering - County Hall,Supplies and Services,324117,Provisions,02-May-17,6026843743,WWW.ADELIEFOODS.CO.UK,5499,Catering costs - provisions,86.52,0,86.52
Regeneration and Local Services,Direct Services,21242,Catering - County Hall,Supplies and Services,324117,Provisions,02-May-17,6026843749,WWW.ADELIEFOODS.CO.UK,5499,Catering costs - provisions,21.2,0,21.2
Regeneration and Local Services,Direct Services,21242,Catering - County Hall,Supplies and Services,324117,Provisions,02-May-17,6026843751,WWW.ADELIEFOODS.CO.UK,5499,Catering costs - provisions,10.6,0,10.6
Regeneration and Local Services,Direct Services,21242,Catering - County Hall,Supplies and Services,324117,Provisions,02-May-17,6026843755,WWW.ADELIEFOODS.CO.UK,5499,Catering costs - provisions,10.6,0,10.6
Regeneration and Local Services,Economic Development and Housing,31576,B& B - Temp Accom,Supplies and Services,364320,Grants to Voluntary Organisations,02-May-17,6026843765,ROADCHEF DURHAM,7011,Accommodation assistance,40,0,40
Regeneration and Local Services,Culture & Sport,11219,Office Services,Supplies and Services,304999,Equipment and Materials,02-May-17,6026843777,GOOGLE ADWS2420292471,5968,Misc equipment tools and materials,15.98,0,15.98
Regeneration and Local Services,Culture & Sport,11219,Office Services,Third Party Payments,430100,Rendered by Private Contractors,02-May-17,6026843781,MAILCHIMP MONTHLY,7399,Payments to sub-contractors,28.86,4.81,24.05
Regeneration and Local Services,Culture & Sport,11219,Office Services,Third Party Payments,430100,Rendered by Private Contractors,02-May-17,000006026843781 - 1,MAILCHIMP MONTHLY,7399,Payments to sub-contractors,29.96,,29.96
Regeneration and Local Services,Direct Services,10367,C&G - South Grounds Maintenance,Supplies and Services,304259,Equipment and Materials,02-May-17,6026843799,HARELAW SAWMILL,5211,Equipment-purchase and rental,65.53,10.92,54.61
Children and Young Peoples Services,Head of Early Help Assessment and Safeguarding,88063,Bishop Auckland 0 - 5,Supplies and Services,324117,Provisions,02-May-17,6026843805,ASDA HOME SHOPPING,5411,Catering costs - provisions,47.61,0,47.61
Children and Young Peoples Services,Head of Early Help Assessment and Safeguarding,88063,Bishop Auckland 0 - 5,Supplies and Services,324117,Provisions,02-May-17,6026843807,TESCO STORES 6329,5411,Catering costs - provisions,49.83,0,49.83
Children and Young Peoples Services,Head of Early Help Assessment and Safeguarding,88063,Bishop Auckland 0 - 5,Supplies and Services,324117,Provisions,02-May-17,6026843811,ASDA HOME SHOPPING,5411,Catering costs - provisions,-1.77,0,-1.77
Children and Young Peoples Services,Head of Education,71732,Dean Bank Childcare,Supplies and Services,324117,Provisions,02-May-17,6026843825,ASDA HOME SHOPPING,5411,Catering costs - provisions,51.22,0,51.22
Children and Young Peoples Services,Head of Looked After Provision Permanence and Care Leavers,85958,Support Services,Supplies and Services,304259,Equipment and Materials,02-May-17,6026843873,M and M Direct Ltd,5941,Equipment-purchase and rental,74.99,0,74.99
Children and Young Peoples Services,Head of Looked After Provision Permanence and Care Leavers,85958,Support Services,Supplies and Services,304259,Equipment and Materials,02-May-17,6026843877,SPORTSDIRECT.COM,5941,Equipment-purchase and rental,117.48,19.58,97.9
Children and Young Peoples Services,Head of Looked After Provision Permanence and Care Leavers,85958,Support Services,Supplies and Services,342033,Computers and Communications,02-May-17,6026843883,VERY.CO.UK,5964,Computer hardware,132.74,0,132.74
Regeneration and Local Services,Direct Services,10301,C&G - North Grounds Maintenance,Third Party Payments,430100,Rendered by Private Contractors,02-May-17,6026843905,JOHN WARREN (ANIMAL BY,7399,Payments to sub-contractors,14.4,0,14.4
Regeneration and Local Services,Culture & Sport,11060,Hardwick Park Catering,Supplies and Services,324117,Provisions,02-May-17,6026843913,FREEMAN CATERING BUTCH,5422,Catering costs - provisions,25.32,0,25.32
Regeneration and Local Services,Culture & Sport,11060,Hardwick Park Catering,Supplies and Services,324117,Provisions,02-May-17,6026843917,FREEMAN CATERING BUTCH,5422,Catering costs - provisions,10.92,0,10.92
Regeneration and Local Services,Culture & Sport,11060,Hardwick Park Catering,Supplies and Services,324117,Provisions,02-May-17,6026843919,JR HOLLAND FOODSERVICE,5422,Catering costs - provisions,5.53,0,5.53
Regeneration and Local Services,Direct Services,21234,Catering - Locomotion,Supplies and Services,324117,Provisions,02-May-17,6026843933,WWW.ADELIEFOODS.CO.UK,5499,Catering costs - provisions,165.2,0,165.2
Regeneration and Local Services,Direct Services,21234,Catering - Locomotion,Supplies and Services,324117,Provisions,02-May-17,6026843939,WWW.ADELIEFOODS.CO.UK,5499,Catering costs - provisions,23.05,0,23.05
Regeneration and Local Services,Direct Services,21234,Catering - Locomotion,Supplies and Services,324117,Provisions,02-May-17,6026843941,WWW.ADELIEFOODS.CO.UK,5499,Catering costs - provisions,23.05,0,23.05
Regeneration and Local Services,Direct Services,21234,Catering - Locomotion,Supplies and Services,324117,Provisions,02-May-17,6026843945,WWW.ADELIEFOODS.CO.UK,5499,Catering costs - provisions,23.05,0,23.05
Regeneration and Local Services,Direct Services,21234,Catering - Locomotion,Supplies and Services,324117,Provisions,02-May-17,6026843951,WWW.ADELIEFOODS.CO.UK,5499,Catering costs - provisions,20.6,0,20.6
Regeneration and Local Services,Direct Services,10525,Catering - Green Lane,Supplies and Services,324117,Provisions,02-May-17,6026843987,FREEMAN CATERING BUTCH,5422,Catering costs - provisions,51.38,0,51.38
Regeneration and Local Services,Direct Services,10525,Catering - Green Lane,Supplies and Services,324117,Provisions,02-May-17,6026843993,FREEMAN CATERING BUTCH,5422,Catering costs - provisions,29.58,0,29.58
Regeneration and Local Services,Direct Services,10525,Catering - Green Lane,Supplies and Services,324117,Provisions,02-May-17,6026843997,WWW.ADELIEFOODS.CO.UK,5499,Catering costs - provisions,36.76,0,36.76
Regeneration and Local Services,Direct Services,10525,Catering - Green Lane,Supplies and Services,324117,Provisions,02-May-17,6026844003,WWW.ADELIEFOODS.CO.UK,5499,Catering costs - provisions,36.34,0,36.34
Regeneration and Local Services,Direct Services,10525,Catering - Green Lane,Supplies and Services,324117,Provisions,02-May-17,6026844007,FREEMAN CATERING BUTCH,5422,Catering costs - provisions,-13.52,0,-13.52
Regeneration and Local Services,Economic Development and Housing,30732,Rural Employability Project - South Durham,Employees,40149,Recruitment Instruction and Training,02-May-17,6026844089,CITB,8220,Training-all costs,30,5,25
Children and Young Peoples Services,Head of Looked After Provision Permanence and Care Leavers,85334,West Rainton Satelite Home,Supplies and Services,308011,Furniture,02-May-17,6026844095,DUNELM (SOFT FURNISHIN,5714,Furniture repair and replacement,141,0,141
Regeneration and Local Services,Direct Services,20074,Bldg Serv - R&M Div 74 - Mechanical,Supplies and Services,304221,Equipment and Materials,02-May-17,6026844099,DRAMCO LTD,5999,Direct materials,51.4,8.57,42.83
Regeneration and Local Services,Culture & Sport,11191,Wellbeing4Life,Supplies and Services,324117,Provisions,02-May-17,6026844117,ONE STOP 6178,5411,Catering costs - provisions,3.55,0,3.55
Regeneration and Local Services,Culture & Sport,54235,Bp Auckland Town Hall Cafe,Supplies and Services,324117,Provisions,02-May-17,6026844157,JR HOLLAND FOODSERVICE,5422,Catering costs - provisions,23.14,0,23.14
Regeneration and Local Services,Direct Services,21324,Catering - Meadowfield,Supplies and Services,324117,Provisions,02-May-17,6026844169,FREEMAN CATERING BUTCH,5422,Catering costs - provisions,67.9,0,67.9
Regeneration and Local Services,Direct Services,21324,Catering - Meadowfield,Supplies and Services,324117,Provisions,02-May-17,6026844173,WWW.ADELIEFOODS.CO.UK,5499,Catering costs - provisions,44.65,0,44.65
Regeneration and Local Services,Direct Services,21324,Catering - Meadowfield,Supplies and Services,324117,Provisions,02-May-17,6026844177,WWW.ADELIEFOODS.CO.UK,5499,Catering costs - provisions,35.75,0,35.75
Resources,I.C.T. Services,69010,Administration,Transport,235057,Public Transport,02-May-17,6026844233,OYSTER RENEW WEB,4112,Staff travelling,50,0,50
Regeneration and Local Services,Culture & Sport,10605,Woodhouse Close Leisure Complex,Supplies and Services,324117,Provisions,02-May-17,6026844253,JR HOLLAND FOODSERVICE,5422,Catering costs - provisions,36.39,0,36.39
Regeneration and Local Services,Economic Development and Housing,30737,Durham Works Flexible Fund,Transport,235057,Public Transport,02-May-17,6026844305,WWW.SIMPLYGO.COM,4131,Staff travelling,24.9,0,24.9
Children and Young Peoples Services,Head of Looked After Provision Permanence and Care Leavers,85958,Support Services,Supplies and Services,332047,Printing Stationery and Gen Off Exps,02-May-17,6026880145,TRADEINN,7832,Stationery,60.2,0,60.2
Regeneration and Local Services,Direct Services,21242,Catering - County Hall,Supplies and Services,324117,Provisions,02-May-17,6036408107,BATLEYS PERTH,5300,Catering costs - provisions,319.92,53.32,266.6
Regeneration and Local Services,Direct Services,21242,Catering - County Hall,Supplies and Services,324117,Provisions,02-May-17,000006036408107 - 1,BATLEYS PERTH,5300,Catering costs - provisions,183.87,,183.87
Regeneration and Local Services,Direct Services,21242,Catering - County Hall,Supplies and Services,324117,Provisions,02-May-17,6036408117,BATLEYS PERTH,5300,Catering costs - provisions,-4.93,0,-4.93
Regeneration and Local Services,Direct Services,10525,Catering - Green Lane,Supplies and Services,324117,Provisions,02-May-17,6036408491,BATLEYS PERTH,5300,Catering costs - provisions,43.8,7.3,36.5
Regeneration and Local Services,Direct Services,10525,Catering - Green Lane,Supplies and Services,324117,Provisions,02-May-17,000006036408491 - 1,BATLEYS PERTH,5300,Catering costs - provisions,86.47,,86.47
Regeneration and Local Services,Culture & Sport,54235,Bp Auckland Town Hall Cafe,Supplies and Services,324117,Provisions,02-May-17,6036408681,BATLEYS PERTH,5300,Catering costs - provisions,29.45,0,29.45
Regeneration and Local Services,Direct Services,21324,Catering - Meadowfield,Supplies and Services,324117,Provisions,02-May-17,6036408719,BATLEYS PERTH,5300,Catering costs - provisions,118.08,19.68,98.4
Regeneration and Local Services,Direct Services,21324,Catering - Meadowfield,Supplies and Services,324117,Provisions,02-May-17,000006036408719 - 1,BATLEYS PERTH,5300,Catering costs - provisions,54.39,,54.39
Regeneration and Local Services,Culture & Sport,11060,Hardwick Park Catering,Supplies and Services,324117,Provisions,02-May-17,6055045495,BATLEYS PERTH,5300,Catering costs - provisions,217.14,36.19,180.95
Regeneration and Local Services,Culture & Sport,11060,Hardwick Park Catering,Supplies and Services,324117,Provisions,02-May-17,000006055045495 - 1,BATLEYS PERTH,5300,Catering costs - provisions,172.62,,172.62
Regeneration and Local Services,Culture & Sport,11060,Hardwick Park Catering,Supplies and Services,324117,Provisions,02-May-17,6055045505,BATLEYS PERTH,5300,Catering costs - provisions,59.82,9.97,49.85
Regeneration and Local Services,Culture & Sport,11060,Hardwick Park Catering,Supplies and Services,324117,Provisions,02-May-17,000006055045505 - 1,BATLEYS PERTH,5300,Catering costs - provisions,16.12,,16.12
Regeneration and Local Services,Direct Services,21234,Catering - Locomotion,Supplies and Services,324117,Provisions,02-May-17,6055045591,BATLEYS PERTH,5300,Catering costs - provisions,218.04,36.34,181.7
Regeneration and Local Services,Direct Services,21234,Catering - Locomotion,Supplies and Services,324117,Provisions,02-May-17,000006055045591 - 1,BATLEYS PERTH,5300,Catering costs - provisions,88.22,,88.22
Resources,I.C.T. Services,65481,Technical Services,Supplies and Services,304335,Equipment and Materials,03-May-17,6026843603,WPY ITProTV,7392,ICT supplies etc,12.18,0,12.18
Children and Young Peoples Services,Head of Education,71801,Selby Cottage Childcare Centre,Supplies and Services,304259,Equipment and Materials,03-May-17,6026879889,WILKO RETAIL LIMIT,5722,Equipment-purchase and rental,16.75,0,16.75
Children and Young Peoples Services,Head of Education,54640,Durham Learning Resources,Supplies and Services,304403,Equipment and Materials,03-May-17,6026879897,DURHAM CATHEDRAL,5947,Other consumables,27,0,27
Resources,Legal & Democratic Services,67910,Democratic Representation,Supplies and Services,344033,Telephones,03-May-17,6026879901,Amazon UK Marketplace,5942,Telephones general-all costs,42.25,0,42.25
Resources,Legal & Democratic Services,67910,Democratic Representation,Supplies and Services,344033,Telephones,03-May-17,6026879903,Amazon UK Marketplace,5942,Telephones general-all costs,42.24,0,42.24
Resources,Legal & Democratic Services,67910,Democratic Representation,Supplies and Services,344033,Telephones,03-May-17,6026879907,Amazon UK Marketplace,5942,Telephones general-all costs,42.27,0,42.27
Resources,Legal & Democratic Services,67910,Democratic Representation,Supplies and Services,344033,Telephones,03-May-17,6026879911,Amazon UK Marketplace,5942,Telephones general-all costs,42.26,0,42.26
Resources,Legal & Democratic Services,67910,Democratic Representation,Supplies and Services,344033,Telephones,03-May-17,6026879915,Amazon UK Marketplace,5942,Telephones general-all costs,42.25,0,42.25
Resources,Legal & Democratic Services,67910,Democratic Representation,Supplies and Services,344033,Telephones,03-May-17,6026879919,Amazon UK Marketplace,5942,Telephones general-all costs,42.24,0,42.24
Resources,Legal & Democratic Services,67910,Democratic Representation,Supplies and Services,344033,Telephones,03-May-17,6026879921,Amazon UK Marketplace,5942,Telephones general-all costs,10.55,0,10.55
Regeneration and Local Services,Economic Development and Housing,31500,Housing Solutions - Core Team,Supplies and Services,352001,Conference Expenses,03-May-17,6026879927,DAYS INN,7011,Conferencesseminars fees etc,79,0,79
Regeneration and Local Services,Economic Development and Housing,31500,Housing Solutions - Core Team,Supplies and Services,352001,Conference Expenses,03-May-17,6026879931,DAYS INN,7011,Conferencesseminars fees etc,79,0,79
Regeneration and Local Services,Economic Development and Housing,31500,Housing Solutions - Core Team,Supplies and Services,352001,Conference Expenses,03-May-17,6026879933,TRAVELODGE,3615,Conferencesseminars fees etc,41,0,41
Regeneration and Local Services,Economic Development and Housing,31500,Housing Solutions - Core Team,Supplies and Services,352001,Conference Expenses,03-May-17,6026879935,TRAVELODGE,3615,Conferencesseminars fees etc,50,8.33,41.67
Regeneration and Local Services,Economic Development and Housing,31500,Housing Solutions - Core Team,Supplies and Services,352001,Conference Expenses,03-May-17,6026879939,TRAVELODGE,3615,Conferencesseminars fees etc,50,8.33,41.67
Regeneration and Local Services,Economic Development and Housing,31500,Housing Solutions - Core Team,Supplies and Services,352001,Conference Expenses,03-May-17,6026879941,TRAVELODGE,3615,Conferencesseminars fees etc,80.5,0,80.5
Children and Young Peoples Services,Head of Looked After Provision Permanence and Care Leavers,85342,9 Cedar Drive Aycliffe,Supplies and Services,324117,Provisions,03-May-17,6026879983,TESCO STORES 2916,5411,Catering costs - provisions,140.06,0,140.06
Resources,Financial Services,52865,SF-Financial Services Team,Supplies and Services,324117,Provisions,03-May-17,6026879999,ASDA GEORGE COM LEEDS,5411,Catering costs - provisions,147.91,0,147.91
Resources,Financial Services,52865,SF-Financial Services Team,Supplies and Services,304259,Equipment and Materials,03-May-17,6026880003,WILKO.COM,5722,Equipment-purchase and rental,-40,0,-40
Regeneration and Local Services,Direct Services,21242,Catering - County Hall,Supplies and Services,324117,Provisions,03-May-17,6026880021,WWW.ADELIEFOODS.CO.UK,5499,Catering costs - provisions,74.28,0,74.28
Regeneration and Local Services,Direct Services,21242,Catering - County Hall,Supplies and Services,324117,Provisions,03-May-17,6026880025,WWW.ADELIEFOODS.CO.UK,5499,Catering costs - provisions,40.09,0,40.09
Regeneration and Local Services,Direct Services,21242,Catering - County Hall,Supplies and Services,324117,Provisions,03-May-17,6026880029,WWW.ADELIEFOODS.CO.UK,5499,Catering costs - provisions,5.7,0,5.7
Regeneration and Local Services,Direct Services,21242,Catering - County Hall,Supplies and Services,324117,Provisions,03-May-17,6026880033,WWW.ADELIEFOODS.CO.UK,5499,Catering costs - provisions,4.9,0,4.9
Regeneration and Local Services,Direct Services,21242,Catering - County Hall,Supplies and Services,324117,Provisions,03-May-17,6026880037,JR HOLLAND FOODSERVICE,5422,Catering costs - provisions,27.99,0,27.99
Regeneration and Local Services,Culture & Sport,54233,Bp Auckland Town Hall Library,Supplies and Services,304403,Equipment and Materials,03-May-17,6026880041,AMAZON UK RETAIL AMAZO,5999,Other consumables,13,0,13
Regeneration and Local Services,Economic Development and Housing,30554,International Relations,Supplies and Services,384926,Miscellaneous Expenses,03-May-17,6026880049,P SHEERAN AMUESMEN,7996,International visits,720,0,720
Regeneration and Local Services,Economic Development and Housing,30554,International Relations,Supplies and Services,384926,Miscellaneous Expenses,03-May-17,6026880051,SPORTSDIRECT.COM,5941,International visits,8,0,8
Regeneration and Local Services,Culture & Sport,54812,Gala Theatre - Catering etc,Supplies and Services,324117,Provisions,03-May-17,6026880055,JR HOLLAND FOODSERVICE,5422,Catering costs - provisions,31.01,0,31.01
Children and Young Peoples Services,Head of Looked After Provision Permanence and Care Leavers,85361,LAC & Permanence Team 1,Supplies and Services,304403,Equipment and Materials,03-May-17,6026880065,GRO HM PASSPORT OFFICE,9399,Other consumables,23.4,0,23.4
Children and Young Peoples Services,Head of Early Help Assessment and Safeguarding,88033,Durham 0 - 5,Supplies and Services,304403,Equipment and Materials,03-May-17,6026880079,TESCO - Seller_IST_1_2,5999,Other consumables,79.99,0,79.99
Regeneration and Local Services,Culture & Sport,10664,Freemans Quay Leisure Centre,Supplies and Services,304403,Equipment and Materials,03-May-17,6026880083,ELTONS FOOTWEAR,7251,Other consumables,59,9.83,49.17
Regeneration and Local Services,Economic Development and Housing,30749,Employability - Youth Contract,Transport,235057,Public Transport,03-May-17,6026880089,Trainline,4112,Staff travelling,66.3,0,66.3
Children and Young Peoples Services,Head of Looked After Provision Permanence and Care Leavers,85332,Middlestone Moor CU,Supplies and Services,324117,Provisions,03-May-17,6026880107,TESCO STORES 2371,5411,Catering costs - provisions,48.97,0,48.97
Children and Young Peoples Services,Head of Looked After Provision Permanence and Care Leavers,85958,Support Services,Supplies and Services,312011,Newspapers Books and Periodicals,03-May-17,6026880139,Amazon UK Marketplace,5942,Books-school library,6.98,0,6.98
Children and Young Peoples Services,Head of Looked After Provision Permanence and Care Leavers,85958,Support Services,Supplies and Services,312011,Newspapers Books and Periodicals,03-May-17,6026880141,Amazon UK Marketplace,5942,Books-school library,28.99,0,28.99
Children and Young Peoples Services,Head of Looked After Provision Permanence and Care Leavers,85958,Support Services,Supplies and Services,312011,Newspapers Books and Periodicals,03-May-17,6026880149,Amazon UK Marketplace,5942,Books-school library,27.76,0,27.76
Children and Young Peoples Services,Head of Looked After Provision Permanence and Care Leavers,85958,Support Services,Supplies and Services,328041,Clothing Uniforms and Laundry,03-May-17,6026880151,WWW.THEWORKS.CO.UK,5310,Clothing uniforms and laundry,23.99,0,23.99
Children and Young Peoples Services,Head of Looked After Provision Permanence and Care Leavers,85958,Support Services,Third Party Payments,430100,Rendered by Private Contractors,03-May-17,6026880153,WP-DRAGONMARTS COM,7399,Payments to sub-contractors,19.44,0,19.44
Children and Young Peoples Services,Head of Looked After Provision Permanence and Care Leavers,85958,Support Services,Supplies and Services,324117,Provisions,03-May-17,6026880157,TESCO STORES 6329,5411,Catering costs - provisions,128.84,0,128.84
Regeneration and Local Services,Culture & Sport,11060,Hardwick Park Catering,Supplies and Services,324117,Provisions,03-May-17,6026880165,JR HOLLAND FOODSERVICE,5422,Catering costs - provisions,7.46,0,7.46
Resources,I.C.T. Services,65335,Implementation,Supplies and Services,304639,Equipment and Materials,03-May-17,6026880169,AMZ replacebase,4816,Technicians-supplies,117.06,19.51,97.55
Regeneration and Local Services,Direct Services,21234,Catering - Locomotion,Supplies and Services,324117,Provisions,03-May-17,6026880175,JR HOLLAND FOODSERVICE,5422,Catering costs - provisions,58.38,0,58.38
Regeneration and Local Services,Direct Services,21234,Catering - Locomotion,Supplies and Services,324117,Provisions,03-May-17,6026880181,JR HOLLAND FOODSERVICE,5422,Catering costs - provisions,11.22,0,11.22
Children and Young Peoples Services,Head of Looked After Provision Permanence and Care Leavers,85352,Tow Law CU,Supplies and Services,324117,Provisions,03-May-17,6026880201,TESCO STORES 2371,5411,Catering costs - provisions,210.2,0,210.2
Regeneration and Local Services,Direct Services,10367,C&G - South Grounds Maintenance,Supplies and Services,304259,Equipment and Materials,03-May-17,6026880225,TUDOR ENVIRONMENTAL,5261,Equipment-purchase and rental,95.76,0,95.76
Regeneration and Local Services,Economic Development and Housing,30749,Employability - Youth Contract,Transport,230031,Contract Hire,03-May-17,6026880241,Trainline,4112,Pupils-transport to play fields etc,20.91,0,20.91
Children and Young Peoples Services,Head of Looked After Provision Permanence and Care Leavers,85333,Coxhoe Satelite Home,Supplies and Services,324117,Provisions,03-May-17,6026880249,CO-OP GROUP 310016,5411,Catering costs - provisions,20.86,0,20.86
Children and Young Peoples Services,Head of Early Help Assessment and Safeguarding,74000,TTF-Attachment and Results,Supplies and Services,324117,Provisions,03-May-17,6026880261,ASDA GEORGE COM LEEDS,5411,Catering costs - provisions,65.95,0,65.95
Regeneration and Local Services,Culture & Sport,54604,Seven Hills Spennymoor,Supplies and Services,312011,Newspapers Books and Periodicals,03-May-17,6026880275,Amazon UK Marketplace,5942,Books-school library,7.44,0,7.44
Regeneration and Local Services,Culture & Sport,54604,Seven Hills Spennymoor,Supplies and Services,312011,Newspapers Books and Periodicals,03-May-17,6026880279,Amazon EU,5969,Books-school library,64.95,0,64.95
Regeneration and Local Services,Direct Services,10301,C&G - North Grounds Maintenance,Supplies and Services,324117,Provisions,03-May-17,6026880299,J VAN VLIET GATESHEAD,5399,Catering costs - provisions,138.84,23.14,115.7
Regeneration and Local Services,Direct Services,10301,C&G - North Grounds Maintenance,Supplies and Services,312011,Newspapers Books and Periodicals,03-May-17,6026880301,GRALANDS WOODWORK SUPP,5251,Books-school library,52.2,0,52.2
Regeneration and Local Services,Direct Services,21324,Catering - Meadowfield,Supplies and Services,324117,Provisions,03-May-17,6026880339,JR HOLLAND FOODSERVICE,5422,Catering costs - provisions,18.24,0,18.24
Regeneration and Local Services,Direct Services,10301,C&G - North Grounds Maintenance,Supplies and Services,304999,Equipment and Materials,03-May-17,6026880345,GUSTHARTS CHAINSAW CTR,7699,Misc equipment tools and materials,424.03,70.67,353.36
Adult and Health Services,Head of Adults,52764,Safeguarding Adults and Pract. Dev.,Supplies and Services,352001,Conference Expenses,03-May-17,6026880377,PAYPAL ACTIONELDER,8398,Conferencesseminars fees etc,84,0,84
Resources,Legal & Democratic Services,67910,Democratic Representation,Supplies and Services,372009,Subscriptions,03-May-17,6026880379,WWW.ICO.GOV.UK,9399,Subscriptions,35,0,35
Resources,Legal & Democratic Services,67910,Democratic Representation,Supplies and Services,372009,Subscriptions,03-May-17,6026880383,WWW.ICO.GOV.UK,9399,Subscriptions,35,0,35
Regeneration and Local Services,Spatial Policy Planning Assets & Environment,31078,Portable Antiquities Scheme,Supplies and Services,312009,Newspapers Books and Periodicals,03-May-17,6026880385,AMAZON UK RETAIL AMAZO,5999,Newspapers books and periodicals,30.89,0,30.89
Regeneration and Local Services,Direct Services,21235,Catering - Wharton Park,Supplies and Services,324117,Provisions,03-May-17,6026880389,JR HOLLAND FOODSERVICE,5422,Catering costs - provisions,26.63,0,26.63
Regeneration and Local Services,Culture & Sport,11230,Operations Locality 2,Supplies and Services,312011,Newspapers Books and Periodicals,03-May-17,6026880425,CHARLES DICKENS (SPENN,5251,Books-school library,19.98,0,19.98
Regeneration and Local Services,Economic Development and Housing,30554,International Relations,Supplies and Services,384926,Miscellaneous Expenses,03-May-17,6026880451,HOME BARGAINS,5251,International visits,66.67,0,66.67
Children and Young Peoples Services,Head of Looked After Provision Permanence and Care Leavers,85958,Support Services,Supplies and Services,328041,Clothing Uniforms and Laundry,03-May-17,6030940375,WWW.ARGOS.CO.UK,5310,Clothing uniforms and laundry,30.93,5.16,25.77
Children and Young Peoples Services,Head of Looked After Provision Permanence and Care Leavers,85958,Support Services,Supplies and Services,340001,Postages,03-May-17,6030940377,POST OFFICE SHOP,9402,Postages,82.37,0,82.37
Regeneration and Local Services,Culture & Sport,54604,Seven Hills Spennymoor,Supplies and Services,304403,Equipment and Materials,03-May-17,6030940539,AMAZON UK RETAIL AMAZO,5999,Other consumables,19.29,0,19.29
Children and Young Peoples Services,Head of Education,71801,Selby Cottage Childcare Centre,Supplies and Services,324117,Provisions,04-May-17,6030940125,ASDA STORES LTD 4313,5411,Catering costs - provisions,31.65,0,31.65
Regeneration and Local Services,Technical Services,18500,Highway Services - Countywide,Supplies and Services,344033,Telephones,04-May-17,6030940139,Amazon UK Marketplace,5942,Telephones general-all costs,25.47,0,25.47
Regeneration and Local Services,Spatial Policy Planning Assets & Environment,31222,North Pennines Allen Valleys Landscape Partnership,Supplies and Services,304335,Equipment and Materials,04-May-17,6030940141,AMAZON UK RETAIL AMAZO,5999,ICT supplies etc,89.98,0,89.98
Children and Young Peoples Services,Head of Early Help Assessment and Safeguarding,71440,Barnard Castle One Point Hub,Supplies and Services,312011,Newspapers Books and Periodicals,04-May-17,6030940185,Amazon UK Marketplace,5942,Books-school library,7.4,0,7.4
Children and Young Peoples Services,Head of Early Help Assessment and Safeguarding,71440,Barnard Castle One Point Hub,Supplies and Services,312011,Newspapers Books and Periodicals,04-May-17,6030940187,Amazon UK Marketplace,5942,Books-school library,4.79,0,4.79
Regeneration and Local Services,Economic Development and Housing,30737,Durham Works Flexible Fund,Supplies and Services,384999,Miscellaneous Expenses,04-May-17,6030940191,GRO HM PASSPORT OFFICE,9399,Other expenses,9.25,0,9.25
Regeneration and Local Services,Direct Services,21242,Catering - County Hall,Supplies and Services,324117,Provisions,04-May-17,6030940195,JR HOLLAND FOODSERVICE,5422,Catering costs - provisions,176.71,0,176.71
Regeneration and Local Services,Direct Services,21242,Catering - County Hall,Supplies and Services,324117,Provisions,04-May-17,6030940201,JR HOLLAND FOODSERVICE,5422,Catering costs - provisions,31.35,0,31.35
Regeneration and Local Services,Direct Services,21242,Catering - County Hall,Supplies and Services,324117,Provisions,04-May-17,6030940203,JR HOLLAND FOODSERVICE,5422,Catering costs - provisions,13.16,0,13.16
Regeneration and Local Services,Culture & Sport,54812,Gala Theatre - Catering etc,Supplies and Services,324117,Provisions,04-May-17,6030940213,JR HOLLAND FOODSERVICE,5422,Catering costs - provisions,49.53,0,49.53
Children and Young Peoples Services,Head of Looked After Provision Permanence and Care Leavers,85361,LAC & Permanence Team 1,Supplies and Services,304403,Equipment and Materials,04-May-17,6030940227,GRO HM PASSPORT OFFICE,9399,Other consumables,23.4,0,23.4
Children and Young Peoples Services,Head of Looked After Provision Permanence and Care Leavers,85361,LAC & Permanence Team 1,Supplies and Services,304403,Equipment and Materials,04-May-17,6030940229,GRO HM PASSPORT OFFICE,9399,Other consumables,9.25,0,9.25
Children and Young Peoples Services,Head of Early Help Assessment and Safeguarding,88033,Durham 0 - 5,Supplies and Services,312011,Newspapers Books and Periodicals,04-May-17,6030940275,Amazon UK Marketplace,5942,Books-school library,7.99,0,7.99
Children and Young Peoples Services,Head of Early Help Assessment and Safeguarding,88063,Bishop Auckland 0 - 5,Supplies and Services,324117,Provisions,04-May-17,6030940279,SAINSBURYS 2199,5411,Catering costs - provisions,6.3,0,6.3
Children and Young Peoples Services,Head of Early Help Assessment and Safeguarding,88063,Bishop Auckland 0 - 5,Supplies and Services,324117,Provisions,04-May-17,6030940283,TESCO STORES 6329,5411,Catering costs - provisions,34.67,0,34.67
Regeneration and Local Services,Economic Development and Housing,30737,Durham Works Flexible Fund,Transport,235057,Public Transport,04-May-17,6030940293,ARRIVA NORTH EAST,4131,Staff travelling,14,0,14
Resources,Legal & Democratic Services,69540,Charter Trust,Supplies and Services,304999,Equipment and Materials,04-May-17,6030940303,"BOOTS, 6551",5912,Misc equipment tools and materials,11.06,0,11.06
Resources,Legal & Democratic Services,69540,Charter Trust,Supplies and Services,304259,Equipment and Materials,04-May-17,6030940307,WILKO DURHAM 426,5722,Equipment-purchase and rental,70,0,70
Children and Young Peoples Services,Head of Education,71903,EYDCP-Sustainability EDS,Supplies and Services,312011,Newspapers Books and Periodicals,04-May-17,6030940325,WWW.PARTYPIECES.CO.UK,5969,Books-school library,30.2,0,30.2
Children and Young Peoples Services,Head of Education,71903,EYDCP-Sustainability EDS,Supplies and Services,312011,Newspapers Books and Periodicals,04-May-17,6030940331,WWW.HOMEBARGINS.CO.UK,5251,Books-school library,23.76,0,23.76
Children and Young Peoples Services,Head of Education,71903,EYDCP-Sustainability EDS,Supplies and Services,312011,Newspapers Books and Periodicals,04-May-17,6030940333,WWW.HOMEBARGINS.CO.UK,5251,Books-school library,21.46,0,21.46
Children and Young Peoples Services,Head of Looked After Provision Permanence and Care Leavers,85958,Support Services,Supplies and Services,312011,Newspapers Books and Periodicals,04-May-17,6030940359,Amazon UK Marketplace,5942,Books-school library,5.46,0,5.46
Children and Young Peoples Services,Head of Looked After Provision Permanence and Care Leavers,85958,Support Services,Supplies and Services,304259,Equipment and Materials,04-May-17,6030940363,M and M Direct Ltd,5941,Equipment-purchase and rental,49.96,0,49.96
Children and Young Peoples Services,Head of Looked After Provision Permanence and Care Leavers,85958,Support Services,Supplies and Services,312011,Newspapers Books and Periodicals,04-May-17,6030940365,Amazon UK Marketplace,5942,Books-school library,11.17,0,11.17
Children and Young Peoples Services,Head of Looked After Provision Permanence and Care Leavers,85958,Support Services,Supplies and Services,312011,Newspapers Books and Periodicals,04-May-17,6030940369,Amazon UK Marketplace,5942,Books-school library,288.1,0,288.1
Children and Young Peoples Services,Head of Looked After Provision Permanence and Care Leavers,85958,Support Services,Supplies and Services,328041,Clothing Uniforms and Laundry,04-May-17,6030940373,WWW.FOOTLOCKER.EU,5661,Clothing uniforms and laundry,129.99,21.67,108.32
Children and Young Peoples Services,Head of Looked After Provision Permanence and Care Leavers,85958,Support Services,Supplies and Services,324117,Provisions,04-May-17,6030940381,TESCO STORES 6329,5411,Catering costs - provisions,83.32,0,83.32
Children and Young Peoples Services,Head of Looked After Provision Permanence and Care Leavers,85958,Support Services,Supplies and Services,342033,Computers and Communications,04-May-17,6030940385,VERY.CO.UK,5964,Computer hardware,48.99,0,48.99
Regeneration and Local Services,Culture & Sport,11060,Hardwick Park Catering,Supplies and Services,324117,Provisions,04-May-17,6030940401,JR HOLLAND FOODSERVICE,5422,Catering costs - provisions,135.85,0,135.85
Regeneration and Local Services,Culture & Sport,11060,Hardwick Park Catering,Supplies and Services,324117,Provisions,04-May-17,6030940407,JR HOLLAND FOODSERVICE,5422,Catering costs - provisions,38.15,0,38.15
Regeneration and Local Services,Culture & Sport,11060,Hardwick Park Catering,Supplies and Services,324117,Provisions,04-May-17,6030940409,JR HOLLAND FOODSERVICE,5422,Catering costs - provisions,19.62,0,19.62
Regeneration and Local Services,Culture & Sport,11060,Hardwick Park Catering,Supplies and Services,324117,Provisions,04-May-17,6030940413,JR HOLLAND FOODSERVICE,5422,Catering costs - provisions,18.96,0,18.96
Regeneration and Local Services,Culture & Sport,11060,Hardwick Park Catering,Supplies and Services,324117,Provisions,04-May-17,6030940417,JR HOLLAND FOODSERVICE,5422,Catering costs - provisions,6.4,0,6.4
Regeneration and Local Services,Culture & Sport,11060,Hardwick Park Catering,Supplies and Services,324117,Provisions,04-May-17,6030940419,JR HOLLAND FOODSERVICE,5422,Catering costs - provisions,3.96,0,3.96
Regeneration and Local Services,Direct Services,21234,Catering - Locomotion,Supplies and Services,324117,Provisions,04-May-17,6030940443,JR HOLLAND FOODSERVICE,5422,Catering costs - provisions,14.3,0,14.3
Regeneration and Local Services,Direct Services,10525,Catering - Green Lane,Supplies and Services,324117,Provisions,04-May-17,6030940463,JR HOLLAND FOODSERVICE,5422,Catering costs - provisions,59.61,0,59.61
Children and Young Peoples Services,Head of Looked After Provision Permanence and Care Leavers,85352,Tow Law CU,Supplies and Services,324117,Provisions,04-May-17,6030940483,TESCO STORES 2371,5411,Catering costs - provisions,-7,0,-7
Children and Young Peoples Services,Head of Early Help Assessment and Safeguarding,74000,TTF-Attachment and Results,Supplies and Services,308011,Furniture,04-May-17,6030940515,WWW.THERANGE.CO.UK,5712,Furniture repair and replacement,63.89,0,63.89
Children and Young Peoples Services,Head of Early Help Assessment and Safeguarding,74000,TTF-Attachment and Results,Supplies and Services,324117,Provisions,04-May-17,6030940519,ASDA GEORGE COM LEEDS,5411,Catering costs - provisions,131.45,0,131.45
Regeneration and Local Services,Culture & Sport,54604,Seven Hills Spennymoor,Supplies and Services,312011,Newspapers Books and Periodicals,04-May-17,6030940535,Amazon UK Marketplace,5942,Books-school library,7.44,0,7.44
Regeneration and Local Services,Culture & Sport,54604,Seven Hills Spennymoor,Supplies and Services,304403,Equipment and Materials,04-May-17,6030940541,AMAZON UK RETAIL AMAZO,5999,Other consumables,11.97,0,11.97
Regeneration and Local Services,Culture & Sport,54604,Seven Hills Spennymoor,Supplies and Services,304403,Equipment and Materials,04-May-17,6030940545,AMAZON UK RETAIL AMAZO,5999,Other consumables,7.99,0,7.99
Regeneration and Local Services,Culture & Sport,54235,Bp Auckland Town Hall Cafe,Supplies and Services,324117,Provisions,04-May-17,6030940577,JR HOLLAND FOODSERVICE,5422,Catering costs - provisions,30.89,0,30.89
Regeneration and Local Services,Transport and Contracted Services,31701,Care Connect All Localities,Supplies and Services,384956,Miscellaneous Expenses,04-May-17,6030940581,SECURITY INDUSTRY,7393,Licences,110,0,110
Regeneration and Local Services,Transport and Contracted Services,31701,Care Connect All Localities,Supplies and Services,344033,Telephones,04-May-17,6030940585,BT BILL PAYMENT 2,4812,Telephones general-all costs,-53.87,0,-53.87
Regeneration and Local Services,Direct Services,10301,C&G - North Grounds Maintenance,Supplies and Services,312011,Newspapers Books and Periodicals,04-May-17,6030940601,TOOLSTATION LTD,5251,Books-school library,9.9,1.65,8.25
Regeneration and Local Services,Direct Services,10301,C&G - North Grounds Maintenance,Supplies and Services,312011,Newspapers Books and Periodicals,04-May-17,6030940603,GRALANDS WOODWORK SUPP,5251,Books-school library,15,2.5,12.5
Children and Young Peoples Services,Head of Early Help Assessment and Safeguarding,88083,Ferryhill 0 - 5,Supplies and Services,324117,Provisions,04-May-17,6030940617,CO-OP GROUP 010518,5411,Catering costs - provisions,2.14,0,2.14
Regeneration and Local Services,Spatial Policy Planning Assets & Environment,31081,Heritage Coast,Supplies and Services,312009,Newspapers Books and Periodicals,04-May-17,6030940637,Amazon EU,5969,Newspapers books and periodicals,8.49,0,8.49
Resources,Legal & Democratic Services,67910,Democratic Representation,Supplies and Services,372009,Subscriptions,04-May-17,6030940639,WWW.ICO.GOV.UK,9399,Subscriptions,35,0,35
Regeneration and Local Services,Culture & Sport,10605,Woodhouse Close Leisure Complex,Supplies and Services,324117,Provisions,04-May-17,6030940675,JR HOLLAND FOODSERVICE,5422,Catering costs - provisions,30.19,0,30.19
Regeneration and Local Services,Culture & Sport,10605,Woodhouse Close Leisure Complex,Supplies and Services,324117,Provisions,04-May-17,6030940679,JR HOLLAND FOODSERVICE,5422,Catering costs - provisions,12,0,12
Children and Young Peoples Services,Head of Early Help Assessment and Safeguarding,71693,Brandon Childrens Centre,Supplies and Services,312011,Newspapers Books and Periodicals,04-May-17,6030940697,Amazon EU,5969,Books-school library,22.97,0,22.97
Children and Young Peoples Services,Head of Early Help Assessment and Safeguarding,71693,Brandon Childrens Centre,Supplies and Services,332047,Printing Stationery and Gen Off Exps,04-May-17,6030940699,WWW.POSTURITE.CO.UK,5021,Stationery,53.94,0,53.94
Regeneration and Local Services,Economic Development and Housing,30699,Business Growth and Innovation General,Supplies and Services,304403,Equipment and Materials,04-May-17,6036408013,MEETEDGAR MONTHLY,5734,Other consumables,38.17,0,38.17
Regeneration and Local Services,Culture & Sport,11060,Hardwick Park Catering,Supplies and Services,324117,Provisions,04-May-17,6036408403,BATLEYS PERTH,5300,Catering costs - provisions,-12.8,0,-12.8
Regeneration and Local Services,Direct Services,10367,C&G - South Grounds Maintenance,Transport,215995,Running Costs of Vehicles,04-May-17,6036408571,SNOWBALLS (RAILWAY,5533,Vehicle running expenses,63.79,10.63,53.16
Regeneration and Local Services,Culture & Sport,54604,Seven Hills Spennymoor,Supplies and Services,304403,Equipment and Materials,04-May-17,6036408627,AMAZON UK RETAIL AMAZO,5999,Other consumables,16.16,0,16.16
Regeneration and Local Services,Direct Services,21235,Catering - Wharton Park,Supplies and Services,324117,Provisions,04-May-17,6036408843,BATLEYS PERTH,5300,Catering costs - provisions,310.08,51.68,258.4
Regeneration and Local Services,Direct Services,21235,Catering - Wharton Park,Supplies and Services,324117,Provisions,04-May-17,000006036408843 - 1,BATLEYS PERTH,5300,Catering costs - provisions,38.34,,38.34
Regeneration and Local Services,Direct Services,21235,Catering - Wharton Park,Supplies and Services,324117,Provisions,04-May-17,6036408847,BATLEYS PERTH,5300,Catering costs - provisions,3.69,0,3.69
Regeneration and Local Services,Culture & Sport,10605,Woodhouse Close Leisure Complex,Supplies and Services,324117,Provisions,04-May-17,6036408889,BATLEYS PERTH,5300,Catering costs - provisions,65.94,10.99,54.95
Regeneration and Local Services,Culture & Sport,10605,Woodhouse Close Leisure Complex,Supplies and Services,324117,Provisions,04-May-17,000006036408889 - 1,BATLEYS PERTH,5300,Catering costs - provisions,67.65,,67.65
Regeneration and Local Services,Culture & Sport,11060,Hardwick Park Catering,Supplies and Services,324117,Provisions,04-May-17,6055045509,BATLEYS PERTH,5300,Catering costs - provisions,465.72,77.62,388.1
Regeneration and Local Services,Culture & Sport,11060,Hardwick Park Catering,Supplies and Services,324117,Provisions,04-May-17,000006055045509 - 1,BATLEYS PERTH,5300,Catering costs - provisions,263.09,,263.09
Regeneration and Local Services,Direct Services,21234,Catering - Locomotion,Supplies and Services,324117,Provisions,04-May-17,6055045599,BATLEYS PERTH,5300,Catering costs - provisions,119.16,19.86,99.3
Regeneration and Local Services,Direct Services,21234,Catering - Locomotion,Supplies and Services,324117,Provisions,04-May-17,000006055045599 - 1,BATLEYS PERTH,5300,Catering costs - provisions,12.65,,12.65
Regeneration and Local Services,Direct Services,21234,Catering - Locomotion,Supplies and Services,324117,Provisions,04-May-17,6055045605,BATLEYS PERTH,5300,Catering costs - provisions,5.45,0,5.45
Adult and Health Services,Head of Adults,52733,Sensory Support - County Wide,Supplies and Services,304335,Equipment and Materials,05-May-17,6030940143,Amazon UK Marketplace,5942,ICT supplies etc,128.52,0,128.52
Children and Young Peoples Services,Head of Education,71903,EYDCP-Sustainability EDS,Supplies and Services,312011,Newspapers Books and Periodicals,05-May-17,6030940327,Amazon UK Marketplace,5942,Books-school library,0.79,0,0.79
Children and Young Peoples Services,Head of Education,71903,EYDCP-Sustainability EDS,Supplies and Services,312011,Newspapers Books and Periodicals,05-May-17,6030940337,Amazon UK Marketplace,5942,Books-school library,13.68,0,13.68
Regeneration and Local Services,Economic Development and Housing,30703,Partnership Services,Supplies and Services,336005,Advertising,05-May-17,6030940681,GOOGLE ADWS1872075479,5968,Advertising other than for staff,"-1,000.00",0,-1000
Children and Young Peoples Services,Head of Education,54640,Durham Learning Resources,Supplies and Services,312011,Newspapers Books and Periodicals,05-May-17,6036407951,Amazon UK Marketplace,5942,Books-school library,2.43,0,2.43
Regeneration and Local Services,Direct Services,10301,C&G - North Grounds Maintenance,Supplies and Services,304259,Equipment and Materials,05-May-17,6036407953,HARELAW SAWMILL,5211,Equipment-purchase and rental,192.14,32.02,160.12
Resources,I.C.T. Services,65482,Data Centres,Supplies and Services,304335,Equipment and Materials,05-May-17,6036407961,Amazon UK Marketplace,5942,ICT supplies etc,79.5,13.25,66.25
Regeneration and Local Services,Economic Development and Housing,31576,B& B - Temp Accom,Supplies and Services,364320,Grants to Voluntary Organisations,05-May-17,6036407965,DAYS INN,7011,Accommodation assistance,139,23.17,115.83
Regeneration and Local Services,Economic Development and Housing,31576,B& B - Temp Accom,Supplies and Services,364320,Grants to Voluntary Organisations,05-May-17,6036407967,DAYS INN,7011,Accommodation assistance,139,23.17,115.83
Regeneration and Local Services,Economic Development and Housing,31500,Housing Solutions - Core Team,Supplies and Services,352001,Conference Expenses,05-May-17,6036407971,TRAVELODGE,3615,Conferencesseminars fees etc,137,22.83,114.17
Children and Young Peoples Services,Head of Early Help Assessment and Safeguarding,71440,Barnard Castle One Point Hub,Supplies and Services,312011,Newspapers Books and Periodicals,05-May-17,6036408035,Amazon UK Marketplace,5942,Books-school library,9.5,0,9.5
Children and Young Peoples Services,Head of Early Help Assessment and Safeguarding,71440,Barnard Castle One Point Hub,Supplies and Services,312011,Newspapers Books and Periodicals,05-May-17,6036408037,Amazon UK Marketplace,5942,Books-school library,6.78,0,6.78
Children and Young Peoples Services,Head of Early Help Assessment and Safeguarding,71440,Barnard Castle One Point Hub,Supplies and Services,312011,Newspapers Books and Periodicals,05-May-17,6036408039,Amazon EU,5969,Books-school library,17.58,0,17.58
Regeneration and Local Services,Economic Development and Housing,30737,Durham Works Flexible Fund,Supplies and Services,328041,Clothing Uniforms and Laundry,05-May-17,6036408043,WWW.ASOS.COM,5651,Clothing uniforms and laundry,56.95,0,56.95
Regeneration and Local Services,Economic Development and Housing,30737,Durham Works Flexible Fund,Supplies and Services,328041,Clothing Uniforms and Laundry,05-May-17,6036408047,NEW LOOK INTERNET,5621,Clothing uniforms and laundry,71.97,0,71.97
Regeneration and Local Services,Culture & Sport,54233,Bp Auckland Town Hall Library,Supplies and Services,304403,Equipment and Materials,05-May-17,6036408121,AMAZON UK RETAIL AMAZO,5999,Other consumables,14.99,0,14.99
Children and Young Peoples Services,Head of Looked After Provision Permanence and Care Leavers,85361,LAC & Permanence Team 1,Supplies and Services,304403,Equipment and Materials,05-May-17,6036408169,GRO HM PASSPORT OFFICE,9399,Other consumables,29.85,0,29.85
Children and Young Peoples Services,Head of Early Help Assessment and Safeguarding,88033,Durham 0 - 5,Supplies and Services,312011,Newspapers Books and Periodicals,05-May-17,6036408185,Amazon UK Marketplace,5942,Books-school library,19.55,0,19.55
Regeneration and Local Services,Direct Services,10367,C&G - South Grounds Maintenance,Supplies and Services,304259,Equipment and Materials,05-May-17,6036408189,HARELAW SAWMILL,5211,Equipment-purchase and rental,306.58,51.1,255.48
Regeneration and Local Services,Culture & Sport,10664,Freemans Quay Leisure Centre,Supplies and Services,304403,Equipment and Materials,05-May-17,6036408195,ELTONS FOOTWEAR,7251,Other consumables,9.5,1.58,7.92
Regeneration and Local Services,Culture & Sport,10664,Freemans Quay Leisure Centre,Supplies and Services,304259,Equipment and Materials,05-May-17,6036408197,HALFORDS 0550,5940,Equipment-purchase and rental,19.96,3.33,16.63
Regeneration and Local Services,Culture & Sport,10664,Freemans Quay Leisure Centre,Supplies and Services,384999,Miscellaneous Expenses,05-May-17,6036408201,DISPLAYSENSE.CO.UK,5046,Other expenses,263.32,43.89,219.43
Regeneration and Local Services,Economic Development and Housing,30737,Durham Works Flexible Fund,Transport,235057,Public Transport,05-May-17,6036408205,ARRIVA NORTH EAST,4131,Staff travelling,7,0,7
Regeneration and Local Services,Economic Development and Housing,30737,Durham Works Flexible Fund,Transport,235057,Public Transport,05-May-17,6036408207,ARRIVA NORTH EAST,4131,Staff travelling,4.3,0,4.3
Regeneration and Local Services,Spatial Policy Planning Assets & Environment,31204,North Pennines Nectarworks,Supplies and Services,324117,Provisions,05-May-17,6036408215,TESCO STORES 4358,5411,Catering costs - provisions,23.21,0,23.21
Children and Young Peoples Services,Head of Education,71903,EYDCP-Sustainability EDS,Supplies and Services,312011,Newspapers Books and Periodicals,05-May-17,6036408235,Amazon UK Marketplace,5942,Books-school library,14.2,0,14.2
Children and Young Peoples Services,Head of Education,71903,EYDCP-Sustainability EDS,Supplies and Services,312011,Newspapers Books and Periodicals,05-May-17,6036408241,Amazon UK Marketplace,5942,Books-school library,29.98,0,29.98
Regeneration and Local Services,Direct Services,10301,C&G - North Grounds Maintenance,Supplies and Services,304221,Equipment and Materials,05-May-17,6036408247,SPALDINGS LIMITED,5085,Direct materials,479.93,0,479.93
Children and Young Peoples Services,Head of Looked After Provision Permanence and Care Leavers,85958,Support Services,Supplies and Services,324117,Provisions,05-May-17,6036408259,TESCO STORES 6329,5411,Catering costs - provisions,115.64,0,115.64
Children and Young Peoples Services,Head of Looked After Provision Permanence and Care Leavers,85958,Support Services,Supplies and Services,342033,Computers and Communications,05-May-17,6036408261,VERY.CO.UK,5964,Computer hardware,-33.75,0,-33.75
Resources,I.C.T. Services,65335,Implementation,Supplies and Services,304639,Equipment and Materials,05-May-17,6036408415,Amazon UK Marketplace,5942,Technicians-supplies,26.97,0,26.97
Children and Young Peoples Services,Head of Education,78100,Curric and Professional Development,Supplies and Services,352001,Conference Expenses,05-May-17,6036408473,Mews Coronation,7011,Conferencesseminars fees etc,61,10.17,50.83
Children and Young Peoples Services,Head of Education,78100,Curric and Professional Development,Supplies and Services,352001,Conference Expenses,05-May-17,6036408475,HOLIDAY INNS,3501,Conferencesseminars fees etc,11.45,0,11.45
Regeneration and Local Services,Economic Development and Housing,31576,B& B - Temp Accom,Supplies and Services,364320,Grants to Voluntary Organisations,05-May-17,6036408477,TRAVELODGE,3615,Accommodation assistance,152,25.33,126.67
Regeneration and Local Services,Economic Development and Housing,30749,Employability - Youth Contract,Transport,230031,Contract Hire,05-May-17,6036408541,SAINSBURYS LOC4937,5411,Pupils-transport to play fields etc,17.7,0,17.7
Regeneration and Local Services,Economic Development and Housing,30749,Employability - Youth Contract,Transport,230031,Contract Hire,05-May-17,6036408545,SAINSBURYS LOC4937,5411,Pupils-transport to play fields etc,17.7,0,17.7
Regeneration and Local Services,Economic Development and Housing,30749,Employability - Youth Contract,Transport,230031,Contract Hire,05-May-17,6036408547,VIRGINTRAINSEC DHM STN,4112,Pupils-transport to play fields etc,31.1,0,31.1
Children and Young Peoples Services,Head of Looked After Provision Permanence and Care Leavers,85334,West Rainton Satelite Home,Supplies and Services,328041,Clothing Uniforms and Laundry,05-May-17,6036408555,THE RANGE,5311,Clothing uniforms and laundry,114.46,0,114.46
Children and Young Peoples Services,Head of Early Help Assessment and Safeguarding,71443,Stanley One Point Hub,Supplies and Services,324117,Provisions,05-May-17,6036408559,ASDA GEORGE COM LEEDS,5411,Catering costs - provisions,-6,0,-6
Children and Young Peoples Services,Head of Early Help Assessment and Safeguarding,71443,Stanley One Point Hub,Supplies and Services,324117,Provisions,05-May-17,6036408563,ASDA GEORGE COM LEEDS,5411,Catering costs - provisions,-43,0,-43
Regeneration and Local Services,Culture & Sport,54604,Seven Hills Spennymoor,Supplies and Services,304403,Equipment and Materials,05-May-17,6036408633,AMAZON UK RETAIL AMAZO,5999,Other consumables,27.98,0,27.98
Regeneration and Local Services,Transport and Contracted Services,31701,Care Connect All Localities,Supplies and Services,344033,Telephones,05-May-17,6036408685,BT BILL PAYMENT 2,4812,Telephones general-all costs,-68.95,0,-68.95
Regeneration and Local Services,Transport and Contracted Services,31701,Care Connect All Localities,Supplies and Services,344033,Telephones,05-May-17,6036408691,BT BILL PAYMENT 2,4812,Telephones general-all costs,-43.8,0,-43.8
Regeneration and Local Services,Direct Services,21324,Catering - Meadowfield,Supplies and Services,324117,Provisions,05-May-17,6036408693,JR HOLLAND FOODSERVICE,5422,Catering costs - provisions,52.1,0,52.1
Regeneration and Local Services,Direct Services,21324,Catering - Meadowfield,Supplies and Services,324117,Provisions,05-May-17,6036408697,JR HOLLAND FOODSERVICE,5422,Catering costs - provisions,9.87,0,9.87
Children and Young Peoples Services,Head of Looked After Provision Permanence and Care Leavers,85333,Coxhoe Satelite Home,Supplies and Services,304259,Equipment and Materials,05-May-17,6036408723,B & Q 1343,5211,Equipment-purchase and rental,15.02,0,15.02
Children and Young Peoples Services,Head of Looked After Provision Permanence and Care Leavers,85333,Coxhoe Satelite Home,Supplies and Services,324117,Provisions,05-May-17,6036408725,TESCO STORES 2371,5411,Catering costs - provisions,14.25,0,14.25
Children and Young Peoples Services,Head of Early Help Assessment and Safeguarding,88083,Ferryhill 0 - 5,Supplies and Services,328041,Clothing Uniforms and Laundry,05-May-17,6036408757,ARGOS LTD,5310,Clothing uniforms and laundry,69.98,0,69.98
Resources,Corporate Finance,65109,Pensions,Supplies and Services,384199,Miscellaneous Expenses,05-May-17,6036408793,WWW.NORTHYORKS.GOV.UK,9399,Other hired and contracted services,10,0,10
Regeneration and Local Services,Direct Services,21235,Catering - Wharton Park,Supplies and Services,324117,Provisions,05-May-17,6036408819,JR HOLLAND FOODSERVICE,5422,Catering costs - provisions,39.04,0,39.04
Regeneration and Local Services,Culture & Sport,26591,Hardwick Park,Supplies and Services,304245,Equipment and Materials,05-May-17,6036408857,Amazon UK Marketplace,5942,Materials,16.16,0,16.16
Regeneration and Local Services,Culture & Sport,26591,Hardwick Park,Supplies and Services,304245,Equipment and Materials,05-May-17,6036408859,WWW.WESTMINSTERWIRE.CO,5943,Materials,34.5,5.75,28.75
Resources,Financial Services,65180,Collections,Supplies and Services,338064,Services,05-May-17,6036408899,DISCLOSURE SCOT,9399,Disclosure & Barring (DBS) Fees,25,0,25
Children and Young Peoples Services,Head of Looked After Provision Permanence and Care Leavers,85342,9 Cedar Drive Aycliffe,Employees,40149,Recruitment Instruction and Training,05-May-17,6042724231,PARENTPAY E-COM R,8220,Training-all costs,31.85,0,31.85
Regeneration and Local Services,Direct Services,21242,Catering - County Hall,Supplies and Services,324117,Provisions,05-May-17,6055045219,BATLEYS PERTH,5300,Catering costs - provisions,383.04,63.84,319.2
Regeneration and Local Services,Direct Services,21242,Catering - County Hall,Supplies and Services,324117,Provisions,05-May-17,000006055045219 - 1,BATLEYS PERTH,5300,Catering costs - provisions,115.41,,115.41
Regeneration and Local Services,Direct Services,10525,Catering - Green Lane,Supplies and Services,324117,Provisions,05-May-17,6055045647,BATLEYS PERTH,5300,Catering costs - provisions,49.02,8.17,40.85
Regeneration and Local Services,Direct Services,10525,Catering - Green Lane,Supplies and Services,324117,Provisions,05-May-17,000006055045647 - 1,BATLEYS PERTH,5300,Catering costs - provisions,62.04,,62.04
Children and Young Peoples Services,Head of Looked After Provision Permanence and Care Leavers,85342,9 Cedar Drive Aycliffe,Supplies and Services,324117,Provisions,06-May-17,6036408011,TESCO STORES 2916,5411,Catering costs - provisions,10.8,0,10.8
Children and Young Peoples Services,Head of Looked After Provision Permanence and Care Leavers,85958,Support Services,Supplies and Services,312011,Newspapers Books and Periodicals,06-May-17,6036408263,Amazon UK Marketplace,5942,Books-school library,37.16,0,37.16
Children and Young Peoples Services,Head of Looked After Provision Permanence and Care Leavers,85958,Support Services,Supplies and Services,324117,Provisions,06-May-17,6036408265,TESCO STORES 6329,5411,Catering costs - provisions,75.88,0,75.88
Regeneration and Local Services,Economic Development and Housing,30749,Employability - Youth Contract,Transport,230005,Contract Hire,06-May-17,6036408549,WWW.SIMPLYGO.COM,4131,Short Term Spot Hire of Vehicles,18.9,0,18.9
Regeneration and Local Services,Economic Development and Housing,30749,Employability - Youth Contract,Transport,235057,Public Transport,06-May-17,6036408551,ARRIVA NORTH EAST,4131,Staff travelling,17.7,0,17.7
Resources,I.C.T. Services,65303,Design & Print - Design,Supplies and Services,372009,Subscriptions,06-May-17,6036408797,APPY PIE,5734,Subscriptions,48,0,48
Children and Young Peoples Services,Head of Early Help Assessment and Safeguarding,71693,Brandon Childrens Centre,Supplies and Services,312011,Newspapers Books and Periodicals,06-May-17,6036408919,Amazon UK Marketplace,5942,Books-school library,3.48,0,3.48
Children and Young Peoples Services,Head of Early Help Assessment and Safeguarding,71693,Brandon Childrens Centre,Supplies and Services,312011,Newspapers Books and Periodicals,06-May-17,6036408923,Amazon UK Marketplace,5942,Books-school library,177.25,0,177.25
Children and Young Peoples Services,Head of Education,71801,Selby Cottage Childcare Centre,Supplies and Services,324117,Provisions,07-May-17,6036407947,ASDA HOME SHOPPING,5411,Catering costs - provisions,5,0,5
Regeneration and Local Services,Spatial Policy Planning Assets & Environment,31200,North Pennines Core,Supplies and Services,312011,Newspapers Books and Periodicals,07-May-17,6036408175,THE BOOK PEOPLE,5942,Books-school library,31.92,0,31.92
Children and Young Peoples Services,Head of Looked After Provision Permanence and Care Leavers,85332,Middlestone Moor CU,Supplies and Services,308011,Furniture,07-May-17,6036408225,IKEA ONLINE,5719,Furniture repair and replacement,297,0,297
Children and Young Peoples Services,Head of Education,71903,EYDCP-Sustainability EDS,Supplies and Services,312011,Newspapers Books and Periodicals,07-May-17,6036408243,Amazon UK Marketplace,5942,Books-school library,8.98,0,8.98
Transformation and Partnerships,Partnerships & Community Engagement Div.,60472,Syrian Vulnerable Persons Scheme,Supplies and Services,308011,Furniture,07-May-17,6036408925,WILKO DURHAM 426,5722,Furniture repair and replacement,21,0,21
Regeneration and Local Services,Economic Development and Housing,30699,Business Growth and Innovation General,Supplies and Services,304403,Equipment and Materials,08-May-17,6036408017,MEETEDGAR MONTHLY,5734,Other consumables,1.05,0,1.05
Children and Young Peoples Services,Head of Early Help Assessment and Safeguarding,71440,Barnard Castle One Point Hub,Supplies and Services,312011,Newspapers Books and Periodicals,08-May-17,6036408041,Amazon UK Marketplace,5942,Books-school library,5.37,0,5.37
Children and Young Peoples Services,Head of Education,71801,Selby Cottage Childcare Centre,Supplies and Services,324117,Provisions,08-May-17,6042724195,ASDA HOME SHOPPING,5411,Catering costs - provisions,43.57,0,43.57
Children and Young Peoples Services,Head of Education,71801,Selby Cottage Childcare Centre,Supplies and Services,324117,Provisions,08-May-17,6042724197,ASDA HOME SHOPPING,5411,Catering costs - provisions,95.45,0,95.45
Children and Young Peoples Services,Head of Education,71801,Selby Cottage Childcare Centre,Supplies and Services,324117,Provisions,08-May-17,6042724199,ASDA HOME SHOPPING,5411,Catering costs - provisions,-0.97,0,-0.97
Children and Young Peoples Services,Head of Looked After Provision Permanence and Care Leavers,85965,Barnard,Supplies and Services,384999,Miscellaneous Expenses,08-May-17,6042724217,WWW.TREASURETRAILS.CO.,5945,Other expenses,6.99,0,6.99
Children and Young Peoples Services,Head of Looked After Provision Permanence and Care Leavers,85342,9 Cedar Drive Aycliffe,Supplies and Services,324117,Provisions,08-May-17,6042724221,TESCO STORES 2916,5411,Catering costs - provisions,21.5,0,21.5
Resources,Financial Services,65180,Collections,Supplies and Services,338048,Services,08-May-17,6042724229,WWW.HMCOURT-SERVIC,9222,Court Costs,100,0,100
Regeneration and Local Services,Direct Services,21242,Catering - County Hall,Supplies and Services,324117,Provisions,08-May-17,6042724239,WWW.ADELIEFOODS.CO.UK,5499,Catering costs - provisions,180.07,0,180.07
Regeneration and Local Services,Direct Services,21242,Catering - County Hall,Supplies and Services,324117,Provisions,08-May-17,6042724241,WWW.ADELIEFOODS.CO.UK,5499,Catering costs - provisions,137.69,0,137.69
Regeneration and Local Services,Direct Services,21242,Catering - County Hall,Supplies and Services,324117,Provisions,08-May-17,6042724243,WWW.ADELIEFOODS.CO.UK,5499,Catering costs - provisions,92.22,0,92.22
Regeneration and Local Services,Direct Services,21242,Catering - County Hall,Supplies and Services,324117,Provisions,08-May-17,6042724245,WWW.ADELIEFOODS.CO.UK,5499,Catering costs - provisions,52.91,0,52.91
Regeneration and Local Services,Direct Services,21242,Catering - County Hall,Supplies and Services,324117,Provisions,08-May-17,6042724247,FREEMAN CATERING BUTCH,5422,Catering costs - provisions,61.88,0,61.88
Regeneration and Local Services,Direct Services,21242,Catering - County Hall,Supplies and Services,324117,Provisions,08-May-17,6042724249,FREEMAN CATERING BUTCH,5422,Catering costs - provisions,28.94,0,28.94
Regeneration and Local Services,Direct Services,21242,Catering - County Hall,Supplies and Services,324117,Provisions,08-May-17,6042724251,JR HOLLAND FOODSERVICE,5422,Catering costs - provisions,84.64,0,84.64
Regeneration and Local Services,Direct Services,21242,Catering - County Hall,Supplies and Services,324117,Provisions,08-May-17,6042724253,JR HOLLAND FOODSERVICE,5422,Catering costs - provisions,13.52,0,13.52
Resources,I.C.T. Services,65464,Domains,Supplies and Services,372009,Subscriptions,08-May-17,6042724257,NOMINET UK,7379,Subscriptions,90,15,75
Regeneration and Local Services,Direct Services,10367,C&G - South Grounds Maintenance,Supplies and Services,304259,Equipment and Materials,08-May-17,6042724259,TRAVIS PERKINS,5211,Equipment-purchase and rental,47.62,7.94,39.68
Regeneration and Local Services,Culture & Sport,54812,Gala Theatre - Catering etc,Supplies and Services,324117,Provisions,08-May-17,6042724261,FREEMAN CATERING BUTCH,5422,Catering costs - provisions,85.22,0,85.22
Regeneration and Local Services,Economic Development and Housing,31576,B& B - Temp Accom,Supplies and Services,364320,Grants to Voluntary Organisations,08-May-17,6042724279,DAYS INN,7011,Accommodation assistance,50,8.33,41.67
Regeneration and Local Services,Economic Development and Housing,31576,B& B - Temp Accom,Supplies and Services,364320,Grants to Voluntary Organisations,08-May-17,6042724281,DAYS INN,7011,Accommodation assistance,50,8.33,41.67
Regeneration and Local Services,Economic Development and Housing,31576,B& B - Temp Accom,Supplies and Services,364320,Grants to Voluntary Organisations,08-May-17,6042724283,TRAVELODGE,3615,Accommodation assistance,54,9,45
Regeneration and Local Services,Economic Development and Housing,31576,B& B - Temp Accom,Supplies and Services,364320,Grants to Voluntary Organisations,08-May-17,6042724285,TRAVELODGE,3615,Accommodation assistance,166,27.67,138.33
Regeneration and Local Services,Direct Services,10900,Fleet - Meadowfield Fleet,Transport,215013,Running Costs of Vehicles,08-May-17,6042724291,POST OFFICE COUNTER,9402,Vehicle Excise Duty (VED),167.5,0,167.5
Children and Young Peoples Services,Head of Early Help Assessment and Safeguarding,88063,Bishop Auckland 0 - 5,Supplies and Services,324117,Provisions,08-May-17,6042724295,ASDA HOME SHOPPING,5411,Catering costs - provisions,60.17,0,60.17
Children and Young Peoples Services,Head of Early Help Assessment and Safeguarding,88063,Bishop Auckland 0 - 5,Supplies and Services,324117,Provisions,08-May-17,6042724297,ASDA HOME SHOPPING,5411,Catering costs - provisions,-4.11,0,-4.11
Children and Young Peoples Services,Head of Education,71732,Dean Bank Childcare,Supplies and Services,324117,Provisions,08-May-17,6042724299,ASDA HOME SHOPPING,5411,Catering costs - provisions,41.49,0,41.49
Children and Young Peoples Services,Head of Education,71732,Dean Bank Childcare,Supplies and Services,312011,Newspapers Books and Periodicals,08-May-17,6042724301,HOME BARGAINS SPENNYMO,5251,Books-school library,27.85,0,27.85
Children and Young Peoples Services,Head of Education,71732,Dean Bank Childcare,Supplies and Services,324117,Provisions,08-May-17,6042724303,ASDA SUPERSTORE 4987,5411,Catering costs - provisions,13.6,0,13.6
Regeneration and Local Services,Direct Services,10301,C&G - North Grounds Maintenance,Supplies and Services,304221,Equipment and Materials,08-May-17,6042724315,JG PAXTON & SONS LTD,8911,Direct materials,58.75,9.79,48.96
Regeneration and Local Services,Direct Services,10301,C&G - North Grounds Maintenance,Supplies and Services,304403,Equipment and Materials,08-May-17,6042724345,BESCOL,5231,Other consumables,9.56,1.59,7.97
Regeneration and Local Services,Direct Services,10301,C&G - North Grounds Maintenance,Third Party Payments,430100,Rendered by Private Contractors,08-May-17,6042724347,JOHN WARREN (ANIMAL BY,7399,Payments to sub-contractors,19.2,0,19.2
Regeneration and Local Services,Culture & Sport,11060,Hardwick Park Catering,Supplies and Services,324117,Provisions,08-May-17,6042724349,FREEMAN CATERING BUTCH,5422,Catering costs - provisions,35.93,0,35.93
Regeneration and Local Services,Culture & Sport,11060,Hardwick Park Catering,Supplies and Services,324117,Provisions,08-May-17,6042724351,JR HOLLAND FOODSERVICE,5422,Catering costs - provisions,19.6,0,19.6
Regeneration and Local Services,Culture & Sport,54815,Gala Theatre Stage School,Supplies and Services,312011,Newspapers Books and Periodicals,08-May-17,6042724357,Amazon UK Marketplace,5942,Books-school library,8.62,0,8.62
Regeneration and Local Services,Direct Services,21234,Catering - Locomotion,Supplies and Services,324117,Provisions,08-May-17,6042724365,WWW.ADELIEFOODS.CO.UK,5499,Catering costs - provisions,84.83,0,84.83
Regeneration and Local Services,Direct Services,21234,Catering - Locomotion,Supplies and Services,324117,Provisions,08-May-17,6042724367,WWW.ADELIEFOODS.CO.UK,5499,Catering costs - provisions,80.26,0,80.26
Regeneration and Local Services,Direct Services,21234,Catering - Locomotion,Supplies and Services,324117,Provisions,08-May-17,6042724369,WWW.ADELIEFOODS.CO.UK,5499,Catering costs - provisions,68.15,0,68.15
Regeneration and Local Services,Direct Services,21234,Catering - Locomotion,Supplies and Services,324117,Provisions,08-May-17,6042724371,WWW.ADELIEFOODS.CO.UK,5499,Catering costs - provisions,20.06,0,20.06
Regeneration and Local Services,Direct Services,21234,Catering - Locomotion,Supplies and Services,324117,Provisions,08-May-17,6042724373,WWW.ADELIEFOODS.CO.UK,5499,Catering costs - provisions,20.06,0,20.06
Regeneration and Local Services,Direct Services,10525,Catering - Green Lane,Supplies and Services,324117,Provisions,08-May-17,6042724383,WWW.ADELIEFOODS.CO.UK,5499,Catering costs - provisions,37.57,0,37.57
Regeneration and Local Services,Direct Services,10525,Catering - Green Lane,Supplies and Services,324117,Provisions,08-May-17,6042724385,WWW.ADELIEFOODS.CO.UK,5499,Catering costs - provisions,20.31,0,20.31
Regeneration and Local Services,Direct Services,10525,Catering - Green Lane,Supplies and Services,324117,Provisions,08-May-17,6042724387,FREEMAN CATERING BUTCH,5422,Catering costs - provisions,15.33,0,15.33
Regeneration and Local Services,Direct Services,10525,Catering - Green Lane,Supplies and Services,324117,Provisions,08-May-17,6042724389,FREEMAN CATERING BUTCH,5422,Catering costs - provisions,4.22,0,4.22
Regeneration and Local Services,Economic Development and Housing,30749,Employability - Youth Contract,Supplies and Services,304259,Equipment and Materials,08-May-17,6042724409,SCREWFIX,5211,Equipment-purchase and rental,29.99,5,24.99
Regeneration and Local Services,Economic Development and Housing,30749,Employability - Youth Contract,Employees,40149,Recruitment Instruction and Training,08-May-17,6042724411,CITB,8220,Training-all costs,30,5,25
Children and Young Peoples Services,Head of Looked After Provision Permanence and Care Leavers,85333,Coxhoe Satelite Home,Supplies and Services,312011,Newspapers Books and Periodicals,08-May-17,6042724413,HOME BARGAINS SPENNYMO,5251,Books-school library,14.89,2.48,12.41
Children and Young Peoples Services,Head of Looked After Provision Permanence and Care Leavers,85333,Coxhoe Satelite Home,Supplies and Services,324117,Provisions,08-May-17,6042724415,ASDA SUPERSTORE 4987,5411,Catering costs - provisions,42.91,0,42.91
Children and Young Peoples Services,Head of Looked After Provision Permanence and Care Leavers,85333,Coxhoe Satelite Home,Supplies and Services,324117,Provisions,08-May-17,6042724417,ASDA SUPERSTORE 4987,5411,Catering costs - provisions,17.76,0,17.76
Resources,Resources Management,69000,Resources Management,Supplies and Services,324117,Provisions,08-May-17,6042724419,CO-OP GROUP 310016,5411,Catering costs - provisions,2,0,2
Transformation and Partnerships,Strategy,60220,Corporate Policy,Employees,40149,Recruitment Instruction and Training,08-May-17,6042724447,WWW.SOLACE.ORG.UK,8699,Training-all costs,450,0,450
Children and Young Peoples Services,Head of Education,71903,EYDCP-Sustainability EDS,Supplies and Services,384999,Miscellaneous Expenses,08-May-17,6042724449,PETS AT HOME LTD,5995,Other expenses,8,0,8
Children and Young Peoples Services,Head of Education,71903,EYDCP-Sustainability EDS,Supplies and Services,304259,Equipment and Materials,08-May-17,6042724451,WILKO DURHAM 426,5722,Equipment-purchase and rental,27.7,0,27.7
Children and Young Peoples Services,Head of Education,71903,EYDCP-Sustainability EDS,Supplies and Services,304259,Equipment and Materials,08-May-17,6042724453,WILKO DURHAM 426,5722,Equipment-purchase and rental,4,0,4
Regeneration and Local Services,Culture & Sport,54235,Bp Auckland Town Hall Cafe,Supplies and Services,324117,Provisions,08-May-17,6042724455,JR HOLLAND FOODSERVICE,5422,Catering costs - provisions,23.27,0,23.27
Regeneration and Local Services,Direct Services,21324,Catering - Meadowfield,Supplies and Services,324117,Provisions,08-May-17,6042724459,WWW.ADELIEFOODS.CO.UK,5499,Catering costs - provisions,37.51,0,37.51
Regeneration and Local Services,Direct Services,21324,Catering - Meadowfield,Supplies and Services,324117,Provisions,08-May-17,6042724461,FREEMAN CATERING BUTCH,5422,Catering costs - provisions,75.12,0,75.12
Regeneration and Local Services,Culture & Sport,11086,Positive Futures,Supplies and Services,328041,Clothing Uniforms and Laundry,08-May-17,6042724479,POUNDWORLD RETAIL,5310,Clothing uniforms and laundry,5.05,0,5.05
Regeneration and Local Services,Culture & Sport,11086,Positive Futures,Supplies and Services,324117,Provisions,08-May-17,6042724481,ASDA STORES LTD,5411,Catering costs - provisions,15.38,0,15.38
Children and Young Peoples Services,Head of Early Help Assessment and Safeguarding,88083,Ferryhill 0 - 5,Supplies and Services,328041,Clothing Uniforms and Laundry,08-May-17,6042724483,ARGOS RETAIL GROUP,5310,Clothing uniforms and laundry,219.93,0,219.93
Children and Young Peoples Services,Head of Looked After Provision Permanence and Care Leavers,85331,New Lea Childrens Home,Transport,235057,Public Transport,08-May-17,6042724505,WWW.SIMPLYGO.COM,4131,Staff travelling,15.5,0,15.5
Regeneration and Local Services,Culture & Sport,26591,Hardwick Park,Supplies and Services,304649,Equipment and Materials,08-May-17,6042724521,Amazon UK Marketplace,5942,Toys,50.14,0,50.14
Regeneration and Local Services,Culture & Sport,10605,Woodhouse Close Leisure Complex,Supplies and Services,324117,Provisions,08-May-17,6042724523,FREEMAN CATERING BUTCH,5422,Catering costs - provisions,49.8,0,49.8
Regeneration and Local Services,Culture & Sport,10605,Woodhouse Close Leisure Complex,Supplies and Services,324117,Provisions,08-May-17,6042724525,JR HOLLAND FOODSERVICE,5422,Catering costs - provisions,23.81,0,23.81
Regeneration and Local Services,Culture & Sport,11230,Operations Locality 2,Supplies and Services,328041,Clothing Uniforms and Laundry,08-May-17,6042724531,ORIGINAL FACTORY S,5311,Clothing uniforms and laundry,14,0,14
Regeneration and Local Services,Economic Development and Housing,30737,Durham Works Flexible Fund,Supplies and Services,304259,Equipment and Materials,08-May-17,6042724533,SCREWFIX DIRECT,5211,Equipment-purchase and rental,41.98,0,41.98
Children and Young Peoples Services,Head of Early Help Assessment and Safeguarding,85515,Community Support Team,Supplies and Services,340001,Postages,08-May-17,6042724549,ROYAL MAIL ONLINE SHOP,9402,Postages,97.65,0,97.65
Regeneration and Local Services,Culture & Sport,54108,Durham Clayport Library,Supplies and Services,384956,Miscellaneous Expenses,08-May-17,6045831147,TVLICENSING.CO.UK,7392,Licences,147,0,147
Regeneration and Local Services,Economic Development and Housing,30554,International Relations,Supplies and Services,384926,Miscellaneous Expenses,08-May-17,6045831425,BRITTANY FERRIES,4111,International visits,"1,292.50",0,1292.5
Regeneration and Local Services,Culture & Sport,54812,Gala Theatre - Catering etc,Supplies and Services,324117,Provisions,08-May-17,6055045275,BATLEYS PERTH,5300,Catering costs - provisions,64.08,10.68,53.4
Regeneration and Local Services,Culture & Sport,54812,Gala Theatre - Catering etc,Supplies and Services,324117,Provisions,08-May-17,000006055045275 - 1,BATLEYS PERTH,5300,Catering costs - provisions,106.2,,106.2
Children and Young Peoples Services,Head of Education,71801,Selby Cottage Childcare Centre,Supplies and Services,324117,Provisions,09-May-17,6045830871,TESCO STORES 2278,5411,Catering costs - provisions,28.55,0,28.55
Regeneration and Local Services,Direct Services,10383,C&G - South Street Cleansing,Supplies and Services,344033,Telephones,09-May-17,6045830881,Amazon UK Marketplace,5942,Telephones general-all costs,49.9,0,49.9
Regeneration and Local Services,Direct Services,10913,Bldg Serv - Construction General,Supplies and Services,344033,Telephones,09-May-17,6045830883,Amazon UK Marketplace,5942,Telephones general-all costs,20.97,0,20.97
Children and Young Peoples Services,Head of Early Help Assessment and Safeguarding,88033,Durham 0 - 5,Supplies and Services,304259,Equipment and Materials,09-May-17,6045830887,GRO HM PASSPORT OFFICE,9399,Equipment-purchase and rental,9.25,0,9.25
Adult and Health Services,Head of Adults,51625,Intermediate Care Plus - South,Supplies and Services,340001,Postages,09-May-17,6045830891,ROYAL MAIL ONLINE SHOP,9402,Postages,56,0,56
Children and Young Peoples Services,Head of Education,78554,Adult Skills-Main,Supplies and Services,384999,Miscellaneous Expenses,09-May-17,6045830895,GLOWTEC LTD,5198,Other expenses,53.98,9,44.98
Regeneration and Local Services,Direct Services,10383,C&G - South Street Cleansing,Supplies and Services,304259,Equipment and Materials,09-May-17,6045830897,TUDOR ENVIRONMENTAL,5261,Equipment-purchase and rental,166.15,0,166.15
Resources,Financial Services,52865,SF-Financial Services Team,Supplies and Services,304259,Equipment and Materials,09-May-17,6045830913,WILKO.COM,5722,Equipment-purchase and rental,44,0,44
Resources,Financial Services,52865,SF-Financial Services Team,Supplies and Services,304259,Equipment and Materials,09-May-17,6045830917,WILKO.COM,5722,Equipment-purchase and rental,149,0,149
Resources,Financial Services,52865,SF-Financial Services Team,Supplies and Services,304403,Equipment and Materials,09-May-17,6045830919,TESCO - PLO,5999,Other consumables,35.9,0,35.9
Resources,Financial Services,52865,SF-Financial Services Team,Supplies and Services,304403,Equipment and Materials,09-May-17,6045830921,TESCO DIRECT,5999,Other consumables,33,0,33
Children and Young Peoples Services,Head of Early Help Assessment and Safeguarding,71440,Barnard Castle One Point Hub,Supplies and Services,304259,Equipment and Materials,09-May-17,6045830943,CURRYS ONLINE,5732,Equipment-purchase and rental,189.98,0,189.98
Regeneration and Local Services,Direct Services,21242,Catering - County Hall,Supplies and Services,324117,Provisions,09-May-17,6045830945,JR HOLLAND FOODSERVICE,5422,Catering costs - provisions,73.14,0,73.14
Regeneration and Local Services,Direct Services,21242,Catering - County Hall,Supplies and Services,324117,Provisions,09-May-17,6045830951,JR HOLLAND FOODSERVICE,5422,Catering costs - provisions,6.58,0,6.58
Regeneration and Local Services,Direct Services,21242,Catering - County Hall,Supplies and Services,324117,Provisions,09-May-17,6045830953,JR HOLLAND FOODSERVICE,5422,Catering costs - provisions,3.37,0,3.37
Regeneration and Local Services,Culture & Sport,54812,Gala Theatre - Catering etc,Supplies and Services,324117,Provisions,09-May-17,6045830957,JR HOLLAND FOODSERVICE,5422,Catering costs - provisions,27.47,0,27.47
Children and Young Peoples Services,Head of Looked After Provision Permanence and Care Leavers,85361,LAC & Permanence Team 1,Supplies and Services,304403,Equipment and Materials,09-May-17,6045830985,GRO HM PASSPORT OFFICE,9399,Other consumables,27.75,0,27.75
Regeneration and Local Services,Spatial Policy Planning Assets & Environment,31200,North Pennines Core,Supplies and Services,304403,Equipment and Materials,09-May-17,6045830989,AMAZON UK RETAIL AMAZO,5999,Other consumables,70.89,0,70.89
Regeneration and Local Services,Economic Development and Housing,31576,B& B - Temp Accom,Supplies and Services,364320,Grants to Voluntary Organisations,09-May-17,6045830997,DAYS INN,7011,Accommodation assistance,50,0,50
Regeneration and Local Services,Economic Development and Housing,31576,B& B - Temp Accom,Supplies and Services,364320,Grants to Voluntary Organisations,09-May-17,6045831001,DAYS INN,7011,Accommodation assistance,99,0,99
Children and Young Peoples Services,Head of Early Help Assessment and Safeguarding,71641,Horden Childrens Centre,Supplies and Services,328041,Clothing Uniforms and Laundry,09-May-17,6045831011,ARGOS RETAIL GROUP,5310,Clothing uniforms and laundry,75.96,0,75.96
Children and Young Peoples Services,Head of Early Help Assessment and Safeguarding,71641,Horden Childrens Centre,Supplies and Services,328041,Clothing Uniforms and Laundry,09-May-17,6045831013,ARGOS LTD,5310,Clothing uniforms and laundry,-59.98,0,-59.98
Children and Young Peoples Services,Head of Education,71903,EYDCP-Sustainability EDS,Supplies and Services,312011,Newspapers Books and Periodicals,09-May-17,6045831059,Amazon UK Marketplace,5942,Books-school library,2.03,0,2.03
Children and Young Peoples Services,Head of Looked After Provision Permanence and Care Leavers,85958,Support Services,Supplies and Services,304259,Equipment and Materials,09-May-17,6045831069,M and M Direct Ltd,5941,Equipment-purchase and rental,54.99,0,54.99
Children and Young Peoples Services,Head of Looked After Provision Permanence and Care Leavers,85958,Support Services,Supplies and Services,312011,Newspapers Books and Periodicals,09-May-17,6045831071,Amazon UK Marketplace,5942,Books-school library,19.95,0,19.95
Children and Young Peoples Services,Head of Looked After Provision Permanence and Care Leavers,85958,Support Services,Supplies and Services,312011,Newspapers Books and Periodicals,09-May-17,6045831075,Amazon UK Marketplace,5942,Books-school library,49.95,0,49.95
Children and Young Peoples Services,Head of Looked After Provision Permanence and Care Leavers,85958,Support Services,Supplies and Services,328041,Clothing Uniforms and Laundry,09-May-17,6045831077,ARGOS RETAIL GROUP,5310,Clothing uniforms and laundry,159.95,26.66,133.29
Children and Young Peoples Services,Head of Looked After Provision Permanence and Care Leavers,85958,Support Services,Supplies and Services,342033,Computers and Communications,09-May-17,6045831081,VERY.CO.UK,5964,Computer hardware,52.99,0,52.99
Regeneration and Local Services,Direct Services,10367,C&G - South Grounds Maintenance,Supplies and Services,304259,Equipment and Materials,09-May-17,6045831095,MKM PETERLEE,5211,Equipment-purchase and rental,181.1,30.18,150.92
Regeneration and Local Services,Direct Services,10301,C&G - North Grounds Maintenance,Supplies and Services,312011,Newspapers Books and Periodicals,09-May-17,6045831105,RICKERBY,5251,Books-school library,1.87,0.31,1.56
Regeneration and Local Services,Culture & Sport,11060,Hardwick Park Catering,Supplies and Services,324117,Provisions,09-May-17,6045831109,JR HOLLAND FOODSERVICE,5422,Catering costs - provisions,36.17,0,36.17
Regeneration and Local Services,Economic Development and Housing,30762,Organisational Training & Development,Employees,40149,Recruitment Instruction and Training,09-May-17,6045831113,CITB,8220,Training-all costs,30,5,25
Regeneration and Local Services,Economic Development and Housing,30762,Organisational Training & Development,Employees,40149,Recruitment Instruction and Training,09-May-17,6045831117,CITB,8220,Training-all costs,30,5,25
Children and Young Peoples Services,Head of Looked After Provision Permanence and Care Leavers,85352,Tow Law CU,Supplies and Services,324117,Provisions,09-May-17,6045831157,TESCO STORES 2371,5411,Catering costs - provisions,267.18,0,267.18
Regeneration and Local Services,Direct Services,10367,C&G - South Grounds Maintenance,Supplies and Services,324117,Provisions,09-May-17,6045831167,J M RAINE,5399,Catering costs - provisions,130.5,21.75,108.75
Regeneration and Local Services,Direct Services,10367,C&G - South Grounds Maintenance,Transport,215995,Running Costs of Vehicles,09-May-17,6045831169,D WARD AUTOMOTIVE,5533,Vehicle running expenses,25.85,4.31,21.54
Regeneration and Local Services,Transport and Contracted Services,31701,Care Connect All Localities,Supplies and Services,344033,Telephones,09-May-17,6045831249,BT BILL PAYMENT 2,4812,Telephones general-all costs,-70.95,0,-70.95
Children and Young Peoples Services,Head of Early Help Assessment and Safeguarding,71404,Laurel Avenue Childrens Centre,Supplies and Services,384999,Miscellaneous Expenses,09-May-17,6045831259,WWWSPOTTYGREENFROG,5945,Other expenses,20.47,0,20.47
Children and Young Peoples Services,Head of Early Help Assessment and Safeguarding,71404,Laurel Avenue Childrens Centre,Supplies and Services,312011,Newspapers Books and Periodicals,09-May-17,6045831263,WWW.WARRIORWAREHOUSES.,5251,Books-school library,21.54,0,21.54
Regeneration and Local Services,Culture & Sport,11191,Wellbeing4Life,Supplies and Services,324117,Provisions,09-May-17,6045831359,AMAN`S STORES UK,5411,Catering costs - provisions,1.99,0,1.99
Resources,Corporate Finance,65109,Pensions,Supplies and Services,384199,Miscellaneous Expenses,09-May-17,6045831361,DARLINGTON BC INTERNET,9399,Other hired and contracted services,12,0,12
Adult and Health Services,EnvironmentHealth & Consumer Protection,11035,Consumer Protection,Supplies and Services,338064,Services,09-May-17,6045831365,DISCLOSURE SCOT,9399,Disclosure & Barring (DBS) Fees,25,0,25
Regeneration and Local Services,Economic Development and Housing,30737,Durham Works Flexible Fund,Transport,235057,Public Transport,09-May-17,6045831413,WWW.SIMPLYGO.COM,4131,Staff travelling,2,0,2
Regeneration and Local Services,Spatial Policy Planning Assets & Environment,31200,North Pennines Core,Supplies and Services,312011,Newspapers Books and Periodicals,09-May-17,6045831417,Amazon UK Marketplace,5942,Books-school library,15.1,0,15.1
Regeneration and Local Services,Economic Development and Housing,30554,International Relations,Supplies and Services,384409,Miscellaneous Expenses,09-May-17,6050234401,PARC ASTERIX VAD,7996,Educational visits,686.57,0,686.57
Regeneration and Local Services,Economic Development and Housing,30554,International Relations,Supplies and Services,384926,Miscellaneous Expenses,09-May-17,6050234403,PARC ASTERIX VAD,7996,International visits,969.28,0,969.28
Regeneration and Local Services,Direct Services,21242,Catering - County Hall,Supplies and Services,324117,Provisions,09-May-17,6055045231,BATLEYS PERTH,5300,Catering costs - provisions,358.14,59.69,298.45
Regeneration and Local Services,Direct Services,21242,Catering - County Hall,Supplies and Services,324117,Provisions,09-May-17,000006055045231 - 1,BATLEYS PERTH,5300,Catering costs - provisions,226.2,,226.2
Regeneration and Local Services,Culture & Sport,11060,Hardwick Park Catering,Supplies and Services,324117,Provisions,09-May-17,6055045519,BATLEYS PERTH,5300,Catering costs - provisions,8.16,1.36,6.8
Regeneration and Local Services,Culture & Sport,11060,Hardwick Park Catering,Supplies and Services,324117,Provisions,09-May-17,000006055045519 - 1,BATLEYS PERTH,5300,Catering costs - provisions,119.68,,119.68
Regeneration and Local Services,Direct Services,21234,Catering - Locomotion,Supplies and Services,324117,Provisions,09-May-17,6055045607,BATLEYS PERTH,5300,Catering costs - provisions,91.5,15.25,76.25
Regeneration and Local Services,Direct Services,21234,Catering - Locomotion,Supplies and Services,324117,Provisions,09-May-17,000006055045607 - 1,BATLEYS PERTH,5300,Catering costs - provisions,27.98,,27.98
Regeneration and Local Services,Direct Services,21324,Catering - Meadowfield,Supplies and Services,324117,Provisions,09-May-17,6055045819,BATLEYS PERTH,5300,Catering costs - provisions,184.8,30.8,154
Regeneration and Local Services,Direct Services,21324,Catering - Meadowfield,Supplies and Services,324117,Provisions,09-May-17,000006055045819 - 1,BATLEYS PERTH,5300,Catering costs - provisions,71.32,,71.32
Children and Young Peoples Services,Head of Education,71801,Selby Cottage Childcare Centre,Supplies and Services,324117,Provisions,10-May-17,6050233705,TESCO STORES 2278,5411,Catering costs - provisions,7.99,1.33,6.66
Resources,Legal & Democratic Services,67910,Democratic Representation,Supplies and Services,344033,Telephones,10-May-17,6050233709,Amazon UK Marketplace,5942,Telephones general-all costs,470.88,0,470.88
Regeneration and Local Services,Economic Development and Housing,31576,B& B - Temp Accom,Supplies and Services,364320,Grants to Voluntary Organisations,10-May-17,6050233713,DAYS INN,7011,Accommodation assistance,49,8.17,40.83
Regeneration and Local Services,Economic Development and Housing,31500,Housing Solutions - Core Team,Supplies and Services,352001,Conference Expenses,10-May-17,6050233729,TRAVELODGE,3615,Conferencesseminars fees etc,-91,0,-91
Regeneration and Local Services,Direct Services,10383,C&G - South Street Cleansing,Supplies and Services,304259,Equipment and Materials,10-May-17,6050233741,HARELAW SAWMILL,5211,Equipment-purchase and rental,288,0,288
Children and Young Peoples Services,Head of Looked After Provision Permanence and Care Leavers,85957,Secure Management,Supplies and Services,304245,Equipment and Materials,10-May-17,6050233751,SCREWFIX DIRECT,5211,Materials,16.97,2.83,14.14
Children and Young Peoples Services,Head of Looked After Provision Permanence and Care Leavers,85957,Secure Management,Supplies and Services,328041,Clothing Uniforms and Laundry,10-May-17,6050233753,WWW.ASOS.COM,5651,Clothing uniforms and laundry,-75,0,-75
Resources,Financial Services,52865,SF-Financial Services Team,Supplies and Services,304403,Equipment and Materials,10-May-17,6050233789,TESCO - Seller_IST_1_2,5999,Other consumables,66.99,0,66.99
Resources,Financial Services,52865,SF-Financial Services Team,Supplies and Services,304403,Equipment and Materials,10-May-17,6050233791,TESCO - Seller_IST_1_2,5999,Other consumables,11.5,0,11.5
Resources,Financial Services,52865,SF-Financial Services Team,Supplies and Services,304403,Equipment and Materials,10-May-17,6050233793,TESCO - SDY LTD,5999,Other consumables,54.99,0,54.99
Resources,Financial Services,52865,SF-Financial Services Team,Supplies and Services,304403,Equipment and Materials,10-May-17,6050233795,TESCO DIRECT,5999,Other consumables,10,0,10
Regeneration and Local Services,Economic Development and Housing,30737,Durham Works Flexible Fund,Transport,230031,Contract Hire,10-May-17,6050233801,WWW.SIMPLYGO.COM,4131,Pupils-transport to play fields etc,68,0,68
Regeneration and Local Services,Economic Development and Housing,30737,Durham Works Flexible Fund,Supplies and Services,328041,Clothing Uniforms and Laundry,10-May-17,6050233805,WWW.COTTONTRADERS.COM,5651,Clothing uniforms and laundry,56.99,0,56.99
Regeneration and Local Services,Direct Services,21242,Catering - County Hall,Supplies and Services,324117,Provisions,10-May-17,6050233807,HOPWELLS LTD,5811,Catering costs - provisions,213.23,0,213.23
Regeneration and Local Services,Direct Services,21242,Catering - County Hall,Supplies and Services,324117,Provisions,10-May-17,6050233813,JR HOLLAND FOODSERVICE,5422,Catering costs - provisions,129.83,0,129.83
Regeneration and Local Services,Direct Services,21242,Catering - County Hall,Supplies and Services,324117,Provisions,10-May-17,6050233817,JR HOLLAND FOODSERVICE,5422,Catering costs - provisions,31.35,0,31.35
Regeneration and Local Services,Direct Services,21242,Catering - County Hall,Supplies and Services,324117,Provisions,10-May-17,6050233819,JR HOLLAND FOODSERVICE,5422,Catering costs - provisions,29.68,0,29.68
Regeneration and Local Services,Culture & Sport,54812,Gala Theatre - Catering etc,Supplies and Services,324117,Provisions,10-May-17,6050233831,HOPWELLS LTD,5811,Catering costs - provisions,140.5,0,140.5
Regeneration and Local Services,Culture & Sport,54812,Gala Theatre - Catering etc,Supplies and Services,324117,Provisions,10-May-17,6050233833,HOPWELLS LTD,5811,Catering costs - provisions,32.37,0,32.37
Regeneration and Local Services,Direct Services,10864,Fleet - Hackworth Road Fleet,Transport,215013,Running Costs of Vehicles,10-May-17,6050233859,DVLA VEHICLE TAX,9399,Vehicle Excise Duty (VED),167.5,0,167.5
Regeneration and Local Services,Direct Services,10900,Fleet - Meadowfield Fleet,Transport,215013,Running Costs of Vehicles,10-May-17,6050233861,DVLA VEHICLE TAX,9399,Vehicle Excise Duty (VED),167.5,0,167.5
Regeneration and Local Services,Direct Services,10900,Fleet - Meadowfield Fleet,Transport,215013,Running Costs of Vehicles,10-May-17,6050233865,DVLA VEHICLE TAX,9399,Vehicle Excise Duty (VED),117.5,0,117.5
Regeneration and Local Services,Direct Services,10561,Fleet - Morrison Busty Fleet,Transport,215013,Running Costs of Vehicles,10-May-17,6050233867,DVLA VEHICLE TAX,9399,Vehicle Excise Duty (VED),167.5,0,167.5
Regeneration and Local Services,Direct Services,10561,Fleet - Morrison Busty Fleet,Transport,215013,Running Costs of Vehicles,10-May-17,6050233869,DVLA VEHICLE TAX,9399,Vehicle Excise Duty (VED),167.5,0,167.5
Regeneration and Local Services,Direct Services,10900,Fleet - Meadowfield Fleet,Transport,215013,Running Costs of Vehicles,10-May-17,6050233873,DVLA VEHICLE TAX,9399,Vehicle Excise Duty (VED),152.5,0,152.5
Regeneration and Local Services,Direct Services,10900,Fleet - Meadowfield Fleet,Transport,215013,Running Costs of Vehicles,10-May-17,6050233877,DVLA VEHICLE TAX,9399,Vehicle Excise Duty (VED),167.5,0,167.5
Regeneration and Local Services,Direct Services,10900,Fleet - Meadowfield Fleet,Transport,215013,Running Costs of Vehicles,10-May-17,6050233879,DVLA VEHICLE TAX,9399,Vehicle Excise Duty (VED),32.5,0,32.5
Regeneration and Local Services,Direct Services,10900,Fleet - Meadowfield Fleet,Transport,215013,Running Costs of Vehicles,10-May-17,6050233883,DVLA VEHICLE TAX,9399,Vehicle Excise Duty (VED),167.5,0,167.5
Children and Young Peoples Services,Head of Early Help Assessment and Safeguarding,88063,Bishop Auckland 0 - 5,Supplies and Services,324117,Provisions,10-May-17,6050233893,ASDA HOME SHOPPING,5411,Catering costs - provisions,0.2,0,0.2
Children and Young Peoples Services,Head of Early Help Assessment and Safeguarding,88063,Bishop Auckland 0 - 5,Supplies and Services,324117,Provisions,10-May-17,6050233895,ASDA HOME SHOPPING,5411,Catering costs - provisions,40.8,0,40.8
Children and Young Peoples Services,Head of Early Help Assessment and Safeguarding,88063,Bishop Auckland 0 - 5,Supplies and Services,324117,Provisions,10-May-17,6050233897,TESCO STORES 6329,5411,Catering costs - provisions,22.15,0,22.15
Children and Young Peoples Services,Head of Early Help Assessment and Safeguarding,88063,Bishop Auckland 0 - 5,Supplies and Services,324117,Provisions,10-May-17,6050233901,ASDA HOME SHOPPING,5411,Catering costs - provisions,-3,0,-3
Regeneration and Local Services,Culture & Sport,11223,Operations Locality 1,Supplies and Services,304403,Equipment and Materials,10-May-17,6050233905,TIMPSON LTD,7251,Other consumables,30,0,30
Children and Young Peoples Services,Head of Early Help Assessment and Safeguarding,71492,One Point - Central,Employees,40149,Recruitment Instruction and Training,10-May-17,6050233923,PAYPAL EARLYINTERV,8398,Training-all costs,325,0,325
Children and Young Peoples Services,Head of Education,71903,EYDCP-Sustainability EDS,Supplies and Services,312011,Newspapers Books and Periodicals,10-May-17,6050233935,Amazon UK Marketplace,5942,Books-school library,1.1,0,1.1
Children and Young Peoples Services,Head of Education,71903,EYDCP-Sustainability EDS,Supplies and Services,312011,Newspapers Books and Periodicals,10-May-17,6050233937,Amazon UK Marketplace,5942,Books-school library,49.92,0,49.92
Children and Young Peoples Services,Head of Education,71903,EYDCP-Sustainability EDS,Supplies and Services,312011,Newspapers Books and Periodicals,10-May-17,6050233941,Amazon UK Marketplace,5942,Books-school library,16.33,0,16.33
Children and Young Peoples Services,Head of Education,71903,EYDCP-Sustainability EDS,Supplies and Services,304403,Equipment and Materials,10-May-17,6050233943,AMAZON UK RETAIL AMAZO,5999,Other consumables,14.47,0,14.47
Children and Young Peoples Services,Head of Looked After Provision Permanence and Care Leavers,85958,Support Services,Supplies and Services,312011,Newspapers Books and Periodicals,10-May-17,6050233951,Amazon UK Marketplace,5942,Books-school library,65.64,0,65.64
Children and Young Peoples Services,Head of Looked After Provision Permanence and Care Leavers,85958,Support Services,Supplies and Services,384199,Miscellaneous Expenses,10-May-17,6050233955,WWW.RACING-PLANET.CO.U,5571,Other hired and contracted services,7.02,1.17,5.85
Children and Young Peoples Services,Head of Looked After Provision Permanence and Care Leavers,85958,Support Services,Supplies and Services,324117,Provisions,10-May-17,6050233957,TESCO STORES 6329,5411,Catering costs - provisions,69.47,0,69.47
Children and Young Peoples Services,Head of Looked After Provision Permanence and Care Leavers,85958,Support Services,Supplies and Services,342033,Computers and Communications,10-May-17,6050233961,VERY.CO.UK,5964,Computer hardware,118.99,0,118.99
Regeneration and Local Services,Direct Services,10301,C&G - North Grounds Maintenance,Supplies and Services,304221,Equipment and Materials,10-May-17,6050233995,SPALDINGS LIMITED,5085,Direct materials,138,0,138
Regeneration and Local Services,Direct Services,10301,C&G - North Grounds Maintenance,Supplies and Services,304403,Equipment and Materials,10-May-17,6050233999,BESCOL,5231,Other consumables,72,12,60
Regeneration and Local Services,Direct Services,10301,C&G - North Grounds Maintenance,Supplies and Services,304259,Equipment and Materials,10-May-17,6050234001,WWW.LBSBUYERSGUIDE.CO.,5261,Equipment-purchase and rental,101.82,0,101.82
Regeneration and Local Services,Culture & Sport,11060,Hardwick Park Catering,Supplies and Services,324117,Provisions,10-May-17,6050234003,HOPWELLS LTD,5811,Catering costs - provisions,171.42,28.57,142.85
Regeneration and Local Services,Culture & Sport,11060,Hardwick Park Catering,Supplies and Services,324117,Provisions,10-May-17,000006050234003 - 1,HOPWELLS LTD,5811,Catering costs - provisions,93.4,,93.4
Regeneration and Local Services,Culture & Sport,11060,Hardwick Park Catering,Supplies and Services,324117,Provisions,10-May-17,6050234009,HOPWELLS LTD,5811,Catering costs - provisions,124.92,20.82,104.1
Regeneration and Local Services,Culture & Sport,11060,Hardwick Park Catering,Supplies and Services,324117,Provisions,10-May-17,000006050234009 - 1,HOPWELLS LTD,5811,Catering costs - provisions,41.51,,41.51
Regeneration and Local Services,Culture & Sport,11060,Hardwick Park Catering,Supplies and Services,324117,Provisions,10-May-17,6050234015,HOPWELLS LTD,5811,Catering costs - provisions,56.16,9.36,46.8
Regeneration and Local Services,Culture & Sport,11060,Hardwick Park Catering,Supplies and Services,324117,Provisions,10-May-17,000006050234015 - 1,HOPWELLS LTD,5811,Catering costs - provisions,29.31,,29.31
Regeneration and Local Services,Culture & Sport,11060,Hardwick Park Catering,Supplies and Services,324117,Provisions,10-May-17,6050234019,JR HOLLAND FOODSERVICE,5422,Catering costs - provisions,151.99,0,151.99
Regeneration and Local Services,Culture & Sport,11060,Hardwick Park Catering,Supplies and Services,324117,Provisions,10-May-17,6050234025,JR HOLLAND FOODSERVICE,5422,Catering costs - provisions,14.47,0,14.47
Regeneration and Local Services,Economic Development and Housing,30762,Organisational Training & Development,Employees,40149,Recruitment Instruction and Training,10-May-17,6050234057,CITB,8220,Training-all costs,30,5,25
Regeneration and Local Services,Economic Development and Housing,30762,Organisational Training & Development,Employees,40149,Recruitment Instruction and Training,10-May-17,6050234059,CITB,8220,Training-all costs,30,5,25
Regeneration and Local Services,Economic Development and Housing,30762,Organisational Training & Development,Employees,40149,Recruitment Instruction and Training,10-May-17,6050234061,CITB,8220,Training-all costs,30,5,25
Regeneration and Local Services,Economic Development and Housing,30762,Organisational Training & Development,Employees,40149,Recruitment Instruction and Training,10-May-17,6050234063,CITB,8220,Training-all costs,30,5,25
Regeneration and Local Services,Direct Services,21234,Catering - Locomotion,Supplies and Services,324117,Provisions,10-May-17,6050234071,HOPWELLS LTD,5811,Catering costs - provisions,42.66,7.11,35.55
Regeneration and Local Services,Direct Services,21234,Catering - Locomotion,Supplies and Services,324117,Provisions,10-May-17,000006050234071 - 1,HOPWELLS LTD,5811,Catering costs - provisions,213.51,,213.51
Regeneration and Local Services,Direct Services,21234,Catering - Locomotion,Supplies and Services,324117,Provisions,10-May-17,6050234075,HOPWELLS LTD,5811,Catering costs - provisions,55.21,0,55.21
Regeneration and Local Services,Direct Services,21234,Catering - Locomotion,Supplies and Services,324117,Provisions,10-May-17,6050234079,JR HOLLAND FOODSERVICE,5422,Catering costs - provisions,55.29,0,55.29
Regeneration and Local Services,Direct Services,21234,Catering - Locomotion,Supplies and Services,324117,Provisions,10-May-17,6050234083,JR HOLLAND FOODSERVICE,5422,Catering costs - provisions,2.04,0,2.04
Resources,Financial Services,65116,Creditors/Purchasing,Supplies and Services,332047,Printing Stationery and Gen Off Exps,10-May-17,6050234105,ONLINE-ERGONOMICS.,5943,Stationery,36,0,36
Regeneration and Local Services,Direct Services,10525,Catering - Green Lane,Supplies and Services,324117,Provisions,10-May-17,6050234109,HOPWELLS LTD,5811,Catering costs - provisions,60.69,0,60.69
Regeneration and Local Services,Direct Services,10525,Catering - Green Lane,Supplies and Services,324117,Provisions,10-May-17,6050234113,JR HOLLAND FOODSERVICE,5422,Catering costs - provisions,36.71,0,36.71
Regeneration and Local Services,Direct Services,10367,C&G - South Grounds Maintenance,Supplies and Services,304999,Equipment and Materials,10-May-17,6050234135,NEW ROW FARM NURSERIES,5193,Misc equipment tools and materials,324.83,54.14,270.69
Regeneration and Local Services,Direct Services,10367,C&G - South Grounds Maintenance,Supplies and Services,304999,Equipment and Materials,10-May-17,6050234137,NEW ROW FARM NURSERIES,5193,Misc equipment tools and materials,324.83,54.14,270.69
Regeneration and Local Services,Direct Services,10367,C&G - South Grounds Maintenance,Supplies and Services,304999,Equipment and Materials,10-May-17,6050234139,NEW ROW FARM NURSERIES,5193,Misc equipment tools and materials,55.22,9.2,46.02
Regeneration and Local Services,Direct Services,10367,C&G - South Grounds Maintenance,Supplies and Services,304259,Equipment and Materials,10-May-17,6050234141,HARELAW SAWMILL,5211,Equipment-purchase and rental,69.06,11.51,57.55
Children and Young Peoples Services,Head of Looked After Provision Permanence and Care Leavers,85333,Coxhoe Satelite Home,Supplies and Services,324117,Provisions,10-May-17,6050234159,ASDA SUPERSTORE 4987,5411,Catering costs - provisions,104.05,0,104.05
Children and Young Peoples Services,Head of Looked After Provision Permanence and Care Leavers,85333,Coxhoe Satelite Home,Supplies and Services,324117,Provisions,10-May-17,6050234161,ASDA SUPERSTORE 4987,5411,Catering costs - provisions,17.4,0,17.4
Children and Young Peoples Services,Head of Looked After Provision Permanence and Care Leavers,85333,Coxhoe Satelite Home,Supplies and Services,328041,Clothing Uniforms and Laundry,10-May-17,6050234165,B & M RETAIL,5310,Clothing uniforms and laundry,19.93,0,19.93
Children and Young Peoples Services,Head of Looked After Provision Permanence and Care Leavers,85333,Coxhoe Satelite Home,Supplies and Services,328041,Clothing Uniforms and Laundry,10-May-17,6050234167,B & M RETAIL,5310,Clothing uniforms and laundry,37.13,0,37.13
Regeneration and Local Services,Economic Development and Housing,30678,Business Development - Night Time Economy Fund,Supplies and Services,312009,Newspapers Books and Periodicals,10-May-17,6050234219,WWW.MEDTREE.CO.UK,8099,Newspapers books and periodicals,497.5,0,497.5
Regeneration and Local Services,Culture & Sport,54235,Bp Auckland Town Hall Cafe,Supplies and Services,324117,Provisions,10-May-17,6050234229,JR HOLLAND FOODSERVICE,5422,Catering costs - provisions,45.67,0,45.67
Regeneration and Local Services,Direct Services,21324,Catering - Meadowfield,Supplies and Services,324117,Provisions,10-May-17,6050234245,HOPWELLS LTD,5811,Catering costs - provisions,42.52,0,42.52
Regeneration and Local Services,Direct Services,21324,Catering - Meadowfield,Supplies and Services,324117,Provisions,10-May-17,6050234247,HOPWELLS LTD,5811,Catering costs - provisions,35.06,0,35.06
Regeneration and Local Services,Direct Services,21324,Catering - Meadowfield,Supplies and Services,324117,Provisions,10-May-17,6050234249,JR HOLLAND FOODSERVICE,5422,Catering costs - provisions,19.94,0,19.94
Regeneration and Local Services,Direct Services,21324,Catering - Meadowfield,Supplies and Services,324117,Provisions,10-May-17,6050234253,JR HOLLAND FOODSERVICE,5422,Catering costs - provisions,13.87,0,13.87
Regeneration and Local Services,Economic Development and Housing,30737,Durham Works Flexible Fund,Supplies and Services,304259,Equipment and Materials,10-May-17,6050234313,SPORTSDIRECT 368,5941,Equipment-purchase and rental,31.99,0,31.99
Children and Young Peoples Services,Head of Early Help Assessment and Safeguarding,74000,TTF-Attachment and Results,Supplies and Services,308011,Furniture,10-May-17,6050234317,J DODDS CARPETS LTD,5713,Furniture repair and replacement,149,0,149
Resources,I.C.T. Services,65487,ICT Telephony Recharges,Supplies and Services,344033,Telephones,10-May-17,6050234319,PAYPAL ONX3 LTD,5732,Telephones general-all costs,489.39,0,489.39
Regeneration and Local Services,Economic Development and Housing,30678,Business Development - Night Time Economy Fund,Supplies and Services,312009,Newspapers Books and Periodicals,10-May-17,6050234323,WWW.MEDTREE.CO.UK,8099,Newspapers books and periodicals,497.5,0,497.5
Regeneration and Local Services,Direct Services,21235,Catering - Wharton Park,Supplies and Services,324117,Provisions,10-May-17,6050234331,JR HOLLAND FOODSERVICE,5422,Catering costs - provisions,24.99,0,24.99
Regeneration and Local Services,Direct Services,21235,Catering - Wharton Park,Supplies and Services,324117,Provisions,10-May-17,6050234333,JR HOLLAND FOODSERVICE,5422,Catering costs - provisions,3.53,0,3.53
Regeneration and Local Services,Culture & Sport,10605,Woodhouse Close Leisure Complex,Supplies and Services,324117,Provisions,10-May-17,6050234349,HOPWELLS LTD,5811,Catering costs - provisions,33.96,0,33.96
Regeneration and Local Services,Culture & Sport,10605,Woodhouse Close Leisure Complex,Supplies and Services,324117,Provisions,10-May-17,6050234351,JR HOLLAND FOODSERVICE,5422,Catering costs - provisions,23.35,0,23.35
Children and Young Peoples Services,Head of Early Help Assessment and Safeguarding,71693,Brandon Childrens Centre,Supplies and Services,312011,Newspapers Books and Periodicals,10-May-17,6050234361,Amazon UK Marketplace,5942,Books-school library,22.1,0,22.1
Regeneration and Local Services,Economic Development and Housing,30737,Durham Works Flexible Fund,Transport,235057,Public Transport,10-May-17,6050234375,WWW.SIMPLYGO.COM,4131,Staff travelling,6.4,0,6.4
Transformation and Partnerships,Partnerships & Community Engagement Div.,60472,Syrian Vulnerable Persons Scheme,Supplies and Services,308011,Furniture,10-May-17,6050234379,HOME BARGAINS,5251,Furniture repair and replacement,8.88,1.48,7.4
Transformation and Partnerships,Partnerships & Community Engagement Div.,60472,Syrian Vulnerable Persons Scheme,Supplies and Services,308011,Furniture,10-May-17,000006050234379 - 1,HOME BARGAINS,5251,Furniture repair and replacement,2.49,,2.49
Regeneration and Local Services,Spatial Policy Planning Assets & Environment,31200,North Pennines Core,Supplies and Services,324117,Provisions,10-May-17,6050234393,STANHOPE PAPER SHOP,5399,Catering costs - provisions,22.36,0,22.36
Children and Young Peoples Services,Head of Education,54640,Durham Learning Resources,Supplies and Services,304403,Equipment and Materials,10-May-17,6055045143,AMAZON UK RETAIL AMAZO,5999,Other consumables,13.98,0,13.98
Children and Young Peoples Services,Head of Education,71903,EYDCP-Sustainability EDS,Supplies and Services,304403,Equipment and Materials,10-May-17,6055045409,AMAZON UK RETAIL AMAZO,5999,Other consumables,23.55,0,23.55
Regeneration and Local Services,Direct Services,10367,C&G - South Grounds Maintenance,Transport,215995,Running Costs of Vehicles,10-May-17,6060623807,SNOWBALLS (RAILWAY,5533,Vehicle running expenses,24,4,20
Regeneration and Local Services,Economic Development and Housing,30699,Business Growth and Innovation General,Supplies and Services,342033,Computers and Communications,11-May-17,6050233779,AdRoll_EMEA,7372,Computer hardware,2.09,0,2.09
Regeneration and Local Services,Economic Development and Housing,30699,Business Growth and Innovation General,Supplies and Services,342033,Computers and Communications,11-May-17,6050233783,AdRoll_EMEA,7372,Computer hardware,0.06,0,0.06
Children and Young Peoples Services,Head of Looked After Provision Permanence and Care Leavers,85958,Support Services,Supplies and Services,312011,Newspapers Books and Periodicals,11-May-17,6050233963,Amazon UK Marketplace,5942,Books-school library,23.94,0,23.94
Regeneration and Local Services,Economic Development and Housing,30554,International Relations,Supplies and Services,384926,Miscellaneous Expenses,11-May-17,6050234405,PARC ASTERIX VAD,7996,International visits,18.88,0,18.88
Regeneration and Local Services,Economic Development and Housing,30554,International Relations,Supplies and Services,384926,Miscellaneous Expenses,11-May-17,6050234407,PARC ASTERIX VAD,7996,International visits,26.66,0,26.66
Children and Young Peoples Services,Head of Education,71801,Selby Cottage Childcare Centre,Supplies and Services,312011,Newspapers Books and Periodicals,11-May-17,6055045133,Amazon UK Marketplace,5942,Books-school library,3.65,0,3.65
Children and Young Peoples Services,Head of Education,71801,Selby Cottage Childcare Centre,Supplies and Services,304259,Equipment and Materials,11-May-17,6055045135,WILKO RETAIL LIMIT,5722,Equipment-purchase and rental,6,0,6
Regeneration and Local Services,Direct Services,10301,C&G - North Grounds Maintenance,Supplies and Services,304259,Equipment and Materials,11-May-17,6055045145,HARELAW SAWMILL,5211,Equipment-purchase and rental,187.76,31.29,156.47
Adult and Health Services,Head of Adults,52765,Deprivation of Liberty,Supplies and Services,332047,Printing Stationery and Gen Off Exps,11-May-17,6055045149,Amazon UK Marketplace,5942,Stationery,12.96,0,12.96
Regeneration and Local Services,Economic Development and Housing,31576,B& B - Temp Accom,Supplies and Services,364320,Grants to Voluntary Organisations,11-May-17,6055045153,DAYS INN,7011,Accommodation assistance,45,7.5,37.5
Regeneration and Local Services,Economic Development and Housing,31576,B& B - Temp Accom,Supplies and Services,364320,Grants to Voluntary Organisations,11-May-17,6055045155,DAYS INN,7011,Accommodation assistance,45,7.5,37.5
Children and Young Peoples Services,Head of Looked After Provision Permanence and Care Leavers,85957,Secure Management,Supplies and Services,304245,Equipment and Materials,11-May-17,6055045165,SCREWFIX DIRECT,5211,Materials,34.98,5.83,29.15
Resources,Financial Services,52865,SF-Financial Services Team,Supplies and Services,304403,Equipment and Materials,11-May-17,6055045169,TESCO DIRECT,5999,Other consumables,-11.5,0,-11.5
Regeneration and Local Services,Direct Services,21242,Catering - County Hall,Supplies and Services,324117,Provisions,11-May-17,6055045187,HOPWELLS LTD,5811,Catering costs - provisions,185.22,30.87,154.35
Regeneration and Local Services,Direct Services,21242,Catering - County Hall,Supplies and Services,324117,Provisions,11-May-17,000006055045187 - 1,HOPWELLS LTD,5811,Catering costs - provisions,156.18,,156.18
Regeneration and Local Services,Direct Services,21242,Catering - County Hall,Supplies and Services,324117,Provisions,11-May-17,6055045195,HOPWELLS LTD,5811,Catering costs - provisions,195.37,0,195.37
Regeneration and Local Services,Direct Services,21242,Catering - County Hall,Supplies and Services,324117,Provisions,11-May-17,6055045197,HOPWELLS LTD,5811,Catering costs - provisions,187.19,0,187.19
Regeneration and Local Services,Direct Services,21242,Catering - County Hall,Supplies and Services,324117,Provisions,11-May-17,6055045203,HOPWELLS LTD,5811,Catering costs - provisions,176.08,0,176.08
Regeneration and Local Services,Direct Services,21242,Catering - County Hall,Supplies and Services,324117,Provisions,11-May-17,6055045205,HOPWELLS LTD,5811,Catering costs - provisions,102.22,0,102.22
Regeneration and Local Services,Direct Services,21242,Catering - County Hall,Supplies and Services,324117,Provisions,11-May-17,6055045209,JR HOLLAND FOODSERVICE,5422,Catering costs - provisions,55.01,0,55.01
Regeneration and Local Services,Direct Services,21242,Catering - County Hall,Supplies and Services,324117,Provisions,11-May-17,6055045213,JR HOLLAND FOODSERVICE,5422,Catering costs - provisions,17.43,0,17.43
Regeneration and Local Services,Direct Services,21242,Catering - County Hall,Supplies and Services,324117,Provisions,11-May-17,6055045215,JR HOLLAND FOODSERVICE,5422,Catering costs - provisions,13.16,0,13.16
Regeneration and Local Services,Direct Services,21242,Catering - County Hall,Supplies and Services,324117,Provisions,11-May-17,6055045239,HOPWELLS LTD,5811,Catering costs - provisions,-6.27,0,-6.27
Regeneration and Local Services,Direct Services,21242,Catering - County Hall,Supplies and Services,324117,Provisions,11-May-17,6055045243,HOPWELLS LTD,5811,Catering costs - provisions,-64.69,0,-64.69
Regeneration and Local Services,Economic Development and Housing,30554,International Relations,Supplies and Services,348037,Subsistence,11-May-17,6055045247,MAMBOS ITALIANO,5812,Subsistence,100,0,100
Regeneration and Local Services,Culture & Sport,54812,Gala Theatre - Catering etc,Supplies and Services,324117,Provisions,11-May-17,6055045251,HOPWELLS LTD,5811,Catering costs - provisions,132.74,0,132.74
Regeneration and Local Services,Culture & Sport,54812,Gala Theatre - Catering etc,Supplies and Services,324117,Provisions,11-May-17,6055045257,HOPWELLS LTD,5811,Catering costs - provisions,99.87,0,99.87
Regeneration and Local Services,Culture & Sport,54812,Gala Theatre - Catering etc,Supplies and Services,324117,Provisions,11-May-17,6055045261,HOPWELLS LTD,5811,Catering costs - provisions,41.37,0,41.37
Regeneration and Local Services,Culture & Sport,54812,Gala Theatre - Catering etc,Supplies and Services,324117,Provisions,11-May-17,6055045265,HOPWELLS LTD,5811,Catering costs - provisions,27.53,0,27.53
Regeneration and Local Services,Culture & Sport,54812,Gala Theatre - Catering etc,Supplies and Services,324117,Provisions,11-May-17,6055045269,HOPWELLS LTD,5811,Catering costs - provisions,23.7,0,23.7
Regeneration and Local Services,Culture & Sport,54812,Gala Theatre - Catering etc,Supplies and Services,324117,Provisions,11-May-17,6055045271,JR HOLLAND FOODSERVICE,5422,Catering costs - provisions,63.8,0,63.8
Regeneration and Local Services,Culture & Sport,54812,Gala Theatre - Catering etc,Supplies and Services,324117,Provisions,11-May-17,6055045281,HOPWELLS LTD,5811,Catering costs - provisions,-11.89,0,-11.89
Regeneration and Local Services,Direct Services,21242,Catering - County Hall,Supplies and Services,312011,Newspapers Books and Periodicals,11-May-17,6055045283,HOME BARGAINS,5251,Books-school library,6.57,0,6.57
Children and Young Peoples Services,Head of Looked After Provision Permanence and Care Leavers,85362,LAC & Permanence Team 2,Supplies and Services,304259,Equipment and Materials,11-May-17,6055045289,GRO HM PASSPORT OFFICE,9399,Equipment-purchase and rental,23.4,0,23.4
Regeneration and Local Services,Direct Services,10900,Fleet - Meadowfield Fleet,Transport,215013,Running Costs of Vehicles,11-May-17,6055045299,DVLA VEHICLE TAX,9399,Vehicle Excise Duty (VED),242.5,0,242.5
Regeneration and Local Services,Direct Services,10561,Fleet - Morrison Busty Fleet,Transport,215013,Running Costs of Vehicles,11-May-17,6055045303,DVLA VEHICLE TAX,9399,Vehicle Excise Duty (VED),242.5,0,242.5
Regeneration and Local Services,Direct Services,10551,Fleet - Chilton Fleet,Transport,215013,Running Costs of Vehicles,11-May-17,6055045307,DVLA VEHICLE TAX,9399,Vehicle Excise Duty (VED),242.5,0,242.5
Regeneration and Local Services,Direct Services,10551,Fleet - Chilton Fleet,Transport,215013,Running Costs of Vehicles,11-May-17,6055045309,DVLA VEHICLE TAX,9399,Vehicle Excise Duty (VED),242.5,0,242.5
Regeneration and Local Services,Direct Services,10551,Fleet - Chilton Fleet,Transport,215013,Running Costs of Vehicles,11-May-17,6055045311,DVLA VEHICLE TAX,9399,Vehicle Excise Duty (VED),652.5,0,652.5
Regeneration and Local Services,Direct Services,10900,Fleet - Meadowfield Fleet,Transport,215013,Running Costs of Vehicles,11-May-17,6055045315,DVLA VEHICLE TAX,9399,Vehicle Excise Duty (VED),242.5,0,242.5
Regeneration and Local Services,Direct Services,10551,Fleet - Chilton Fleet,Transport,215013,Running Costs of Vehicles,11-May-17,6055045317,DVLA VEHICLE TAX,9399,Vehicle Excise Duty (VED),242.5,0,242.5
Regeneration and Local Services,Direct Services,10900,Fleet - Meadowfield Fleet,Transport,215013,Running Costs of Vehicles,11-May-17,6055045319,DVLA VEHICLE TAX,9399,Vehicle Excise Duty (VED),117.5,0,117.5
Regeneration and Local Services,Direct Services,10561,Fleet - Morrison Busty Fleet,Transport,215013,Running Costs of Vehicles,11-May-17,6055045323,DVLA VEHICLE TAX,9399,Vehicle Excise Duty (VED),242.5,0,242.5
Regeneration and Local Services,Direct Services,10900,Fleet - Meadowfield Fleet,Transport,215013,Running Costs of Vehicles,11-May-17,6055045325,DVLA VEHICLE TAX,9399,Vehicle Excise Duty (VED),652.5,0,652.5
Regeneration and Local Services,Direct Services,10900,Fleet - Meadowfield Fleet,Transport,215013,Running Costs of Vehicles,11-May-17,6055045329,DVLA VEHICLE TAX,9399,Vehicle Excise Duty (VED),117.5,0,117.5
Regeneration and Local Services,Direct Services,10900,Fleet - Meadowfield Fleet,Transport,215013,Running Costs of Vehicles,11-May-17,6055045335,DVLA VEHICLE TAX,9399,Vehicle Excise Duty (VED),242.5,0,242.5
Regeneration and Local Services,Direct Services,10551,Fleet - Chilton Fleet,Transport,215013,Running Costs of Vehicles,11-May-17,6055045339,DVLA VEHICLE TAX,9399,Vehicle Excise Duty (VED),242.5,0,242.5
Regeneration and Local Services,Direct Services,10551,Fleet - Chilton Fleet,Transport,215013,Running Costs of Vehicles,11-May-17,6055045341,DVLA VEHICLE TAX,9399,Vehicle Excise Duty (VED),242.5,0,242.5
Regeneration and Local Services,Direct Services,10551,Fleet - Chilton Fleet,Transport,215013,Running Costs of Vehicles,11-May-17,6055045345,DVLA VEHICLE TAX,9399,Vehicle Excise Duty (VED),242.5,0,242.5
Regeneration and Local Services,Direct Services,10864,Fleet - Hackworth Road Fleet,Transport,215013,Running Costs of Vehicles,11-May-17,6055045347,DVLA VEHICLE TAX,9399,Vehicle Excise Duty (VED),652.5,0,652.5
Regeneration and Local Services,Direct Services,10900,Fleet - Meadowfield Fleet,Transport,215013,Running Costs of Vehicles,11-May-17,6055045349,DVLA VEHICLE TAX,9399,Vehicle Excise Duty (VED),242.5,0,242.5
Regeneration and Local Services,Direct Services,10900,Fleet - Meadowfield Fleet,Transport,215013,Running Costs of Vehicles,11-May-17,6055045351,DVLA VEHICLE TAX,9399,Vehicle Excise Duty (VED),242.5,0,242.5
Regeneration and Local Services,Direct Services,10900,Fleet - Meadowfield Fleet,Transport,215013,Running Costs of Vehicles,11-May-17,6055045355,DVLA VEHICLE TAX,9399,Vehicle Excise Duty (VED),652.5,0,652.5
Regeneration and Local Services,Direct Services,10864,Fleet - Hackworth Road Fleet,Transport,215013,Running Costs of Vehicles,11-May-17,6055045357,DVLA VEHICLE TAX,9399,Vehicle Excise Duty (VED),652.5,0,652.5
Regeneration and Local Services,Direct Services,10551,Fleet - Chilton Fleet,Transport,215013,Running Costs of Vehicles,11-May-17,6055045359,DVLA VEHICLE TAX,9399,Vehicle Excise Duty (VED),652.5,0,652.5
Regeneration and Local Services,Direct Services,10864,Fleet - Hackworth Road Fleet,Transport,215013,Running Costs of Vehicles,11-May-17,6055045363,DVLA VEHICLE TAX,9399,Vehicle Excise Duty (VED),652.5,0,652.5
Regeneration and Local Services,Direct Services,10900,Fleet - Meadowfield Fleet,Transport,215013,Running Costs of Vehicles,11-May-17,6055045365,DVLA VEHICLE TAX,9399,Vehicle Excise Duty (VED),242.5,0,242.5
Regeneration and Local Services,Direct Services,10900,Fleet - Meadowfield Fleet,Transport,215013,Running Costs of Vehicles,11-May-17,6055045367,DVLA VEHICLE TAX,9399,Vehicle Excise Duty (VED),652.5,0,652.5
Regeneration and Local Services,Direct Services,10551,Fleet - Chilton Fleet,Transport,215013,Running Costs of Vehicles,11-May-17,6055045369,DVLA VEHICLE TAX,9399,Vehicle Excise Duty (VED),652.5,0,652.5
Regeneration and Local Services,Direct Services,10900,Fleet - Meadowfield Fleet,Transport,215013,Running Costs of Vehicles,11-May-17,6055045373,DVLA VEHICLE TAX,9399,Vehicle Excise Duty (VED),242.5,0,242.5
Regeneration and Local Services,Direct Services,10900,Fleet - Meadowfield Fleet,Transport,215013,Running Costs of Vehicles,11-May-17,6055045375,DVLA VEHICLE TAX,9399,Vehicle Excise Duty (VED),242.5,0,242.5
Children and Young Peoples Services,Head of Early Help Assessment and Safeguarding,88033,Durham 0 - 5,Supplies and Services,324117,Provisions,11-May-17,6055045383,ASDA GEORGE COM LEEDS,5411,Catering costs - provisions,63.5,0,63.5
Children and Young Peoples Services,Head of Early Help Assessment and Safeguarding,88033,Durham 0 - 5,Supplies and Services,304403,Equipment and Materials,11-May-17,6055045385,TESCO DIRECT,5999,Other consumables,72,0,72
Resources,Legal & Democratic Services,69540,Charter Trust,Supplies and Services,304403,Equipment and Materials,11-May-17,6055045395,DURHAM CATHEDRAL,5947,Other consumables,47.6,0,47.6
Resources,Corporate Finance,69800,Corporate Procurement,Employees,40149,Recruitment Instruction and Training,11-May-17,6055045399,WWW.CIPS.ORG,8699,Training-all costs,99.96,0,99.96
Children and Young Peoples Services,Head of Early Help Assessment and Safeguarding,71445,Chester le Street One Point Hub,Supplies and Services,312011,Newspapers Books and Periodicals,11-May-17,6055045423,Amazon UK Marketplace,5942,Books-school library,54.99,0,54.99
Children and Young Peoples Services,Head of Looked After Provision Permanence and Care Leavers,85958,Support Services,Supplies and Services,312011,Newspapers Books and Periodicals,11-May-17,6055045425,Amazon UK Marketplace,5942,Books-school library,11.78,0,11.78
Children and Young Peoples Services,Head of Looked After Provision Permanence and Care Leavers,85958,Support Services,Supplies and Services,312011,Newspapers Books and Periodicals,11-May-17,6055045429,Amazon UK Marketplace,5942,Books-school library,32.19,0,32.19
Children and Young Peoples Services,Head of Looked After Provision Permanence and Care Leavers,85958,Support Services,Supplies and Services,312011,Newspapers Books and Periodicals,11-May-17,6055045431,Amazon UK Marketplace,5942,Books-school library,6.94,0,6.94
Children and Young Peoples Services,Head of Looked After Provision Permanence and Care Leavers,85958,Support Services,Supplies and Services,328041,Clothing Uniforms and Laundry,11-May-17,6055045435,WWW.ARGOS.CO.UK,5310,Clothing uniforms and laundry,37.93,6.32,31.61
Children and Young Peoples Services,Head of Looked After Provision Permanence and Care Leavers,85958,Support Services,Supplies and Services,324117,Provisions,11-May-17,6055045437,TESCO STORES 6329,5411,Catering costs - provisions,123.95,0,123.95
Children and Young Peoples Services,Head of Looked After Provision Permanence and Care Leavers,85958,Support Services,Supplies and Services,304403,Equipment and Materials,11-May-17,6055045439,AMAZON UK RETAIL AMAZO,5999,Other consumables,29.99,0,29.99
Regeneration and Local Services,Culture & Sport,10919,Countryside Management - Site Management,Supplies and Services,304259,Equipment and Materials,11-May-17,6055045449,SCREWFIX DIRECT,5211,Equipment-purchase and rental,39.75,6.63,33.12
Regeneration and Local Services,Direct Services,10367,C&G - South Grounds Maintenance,Supplies and Services,304259,Equipment and Materials,11-May-17,6055045453,MKM PETERLEE,5211,Equipment-purchase and rental,96.74,16.12,80.62
Regeneration and Local Services,Direct Services,10301,C&G - North Grounds Maintenance,Supplies and Services,304403,Equipment and Materials,11-May-17,6055045459,BESCOL,5231,Other consumables,99.6,16.6,83
Regeneration and Local Services,Culture & Sport,11060,Hardwick Park Catering,Supplies and Services,324117,Provisions,11-May-17,6055045463,HOPWELLS LTD,5811,Catering costs - provisions,519.24,86.54,432.7
Regeneration and Local Services,Culture & Sport,11060,Hardwick Park Catering,Supplies and Services,324117,Provisions,11-May-17,000006055045463 - 1,HOPWELLS LTD,5811,Catering costs - provisions,99.9,,99.9
Regeneration and Local Services,Culture & Sport,11060,Hardwick Park Catering,Supplies and Services,324117,Provisions,11-May-17,6055045467,HOPWELLS LTD,5811,Catering costs - provisions,255.84,42.64,213.2
Regeneration and Local Services,Culture & Sport,11060,Hardwick Park Catering,Supplies and Services,324117,Provisions,11-May-17,000006055045467 - 1,HOPWELLS LTD,5811,Catering costs - provisions,32.55,,32.55
Regeneration and Local Services,Culture & Sport,11060,Hardwick Park Catering,Supplies and Services,324117,Provisions,11-May-17,6055045471,HOPWELLS LTD,5811,Catering costs - provisions,214.68,35.78,178.9
Regeneration and Local Services,Culture & Sport,11060,Hardwick Park Catering,Supplies and Services,324117,Provisions,11-May-17,000006055045471 - 1,HOPWELLS LTD,5811,Catering costs - provisions,68.06,,68.06
Regeneration and Local Services,Culture & Sport,11060,Hardwick Park Catering,Supplies and Services,324117,Provisions,11-May-17,6055045475,HOPWELLS LTD,5811,Catering costs - provisions,163.44,27.24,136.2
Regeneration and Local Services,Culture & Sport,11060,Hardwick Park Catering,Supplies and Services,324117,Provisions,11-May-17,000006055045475 - 1,HOPWELLS LTD,5811,Catering costs - provisions,78.06,,78.06
Regeneration and Local Services,Culture & Sport,11060,Hardwick Park Catering,Supplies and Services,324117,Provisions,11-May-17,6055045525,HOPWELLS LTD,5811,Catering costs - provisions,-17.75,-2.96,-14.79
Regeneration and Local Services,Culture & Sport,11060,Hardwick Park Catering,Supplies and Services,324117,Provisions,11-May-17,6055045527,HOPWELLS LTD,5811,Catering costs - provisions,-19.82,-3.3,-16.52
Regeneration and Local Services,Culture & Sport,11060,Hardwick Park Catering,Supplies and Services,324117,Provisions,11-May-17,6055045529,HOPWELLS LTD,5811,Catering costs - provisions,-36.62,-6.1,-30.52
Regeneration and Local Services,Culture & Sport,11060,Hardwick Park Catering,Supplies and Services,324117,Provisions,11-May-17,6055045533,HOPWELLS LTD,5811,Catering costs - provisions,-36.62,-6.1,-30.52
Regeneration and Local Services,Culture & Sport,11060,Hardwick Park Catering,Supplies and Services,324117,Provisions,11-May-17,6055045535,HOPWELLS LTD,5811,Catering costs - provisions,-44.83,-7.47,-37.36
Regeneration and Local Services,Culture & Sport,11060,Hardwick Park Catering,Supplies and Services,324117,Provisions,11-May-17,6055045537,HOPWELLS LTD,5811,Catering costs - provisions,-70.3,-11.71,-58.59
Resources,I.C.T. Services,65471,Business Development,Supplies and Services,342033,Computers and Communications,11-May-17,6055045543,Amazon UK Marketplace,5942,Computer hardware,9.48,0,9.48
Resources,I.C.T. Services,65335,Implementation,Supplies and Services,304639,Equipment and Materials,11-May-17,6055045547,Amazon UK Marketplace,5942,Technicians-supplies,37.97,0,37.97
Resources,I.C.T. Services,65335,Implementation,Supplies and Services,304639,Equipment and Materials,11-May-17,6055045549,Amazon UK Marketplace,5942,Technicians-supplies,19.99,0,19.99
Regeneration and Local Services,Direct Services,21234,Catering - Locomotion,Supplies and Services,324117,Provisions,11-May-17,6055045563,HOPWELLS LTD,5811,Catering costs - provisions,95.16,15.86,79.3
Regeneration and Local Services,Direct Services,21234,Catering - Locomotion,Supplies and Services,324117,Provisions,11-May-17,000006055045563 - 1,HOPWELLS LTD,5811,Catering costs - provisions,243.24,,243.24
Regeneration and Local Services,Direct Services,21234,Catering - Locomotion,Supplies and Services,324117,Provisions,11-May-17,6055045571,HOPWELLS LTD,5811,Catering costs - provisions,76.02,12.67,63.35
Regeneration and Local Services,Direct Services,21234,Catering - Locomotion,Supplies and Services,324117,Provisions,11-May-17,000006055045571 - 1,HOPWELLS LTD,5811,Catering costs - provisions,121.28,,121.28
Regeneration and Local Services,Direct Services,21234,Catering - Locomotion,Supplies and Services,324117,Provisions,11-May-17,6055045575,HOPWELLS LTD,5811,Catering costs - provisions,35.76,5.96,29.8
Regeneration and Local Services,Direct Services,21234,Catering - Locomotion,Supplies and Services,324117,Provisions,11-May-17,000006055045575 - 1,HOPWELLS LTD,5811,Catering costs - provisions,158.75,,158.75
Regeneration and Local Services,Direct Services,21234,Catering - Locomotion,Supplies and Services,324117,Provisions,11-May-17,6055045581,HOPWELLS LTD,5811,Catering costs - provisions,160.59,0,160.59
Regeneration and Local Services,Direct Services,21234,Catering - Locomotion,Supplies and Services,324117,Provisions,11-May-17,6055045583,HOPWELLS LTD,5811,Catering costs - provisions,130.04,0,130.04
Regeneration and Local Services,Direct Services,21234,Catering - Locomotion,Supplies and Services,324117,Provisions,11-May-17,6055045613,HOPWELLS LTD,5811,Catering costs - provisions,-20.21,0,-20.21
Regeneration and Local Services,Culture & Sport,11204,Events,Supplies and Services,312011,Newspapers Books and Periodicals,11-May-17,6055045617,Amazon UK Marketplace,5942,Books-school library,59.98,0,59.98
Regeneration and Local Services,Direct Services,10525,Catering - Green Lane,Supplies and Services,324117,Provisions,11-May-17,6055045645,HOPWELLS LTD,5811,Catering costs - provisions,38.2,0,38.2
Regeneration and Local Services,Direct Services,10367,C&G - South Grounds Maintenance,Supplies and Services,328041,Clothing Uniforms and Laundry,11-May-17,6055045701,ARGOS LTD,5310,Clothing uniforms and laundry,119.98,0,119.98
Regeneration and Local Services,Economic Development and Housing,30749,Employability - Youth Contract,Supplies and Services,328041,Clothing Uniforms and Laundry,11-May-17,6055045713,TESCO DIRECT,5999,Clothing uniforms and laundry,43,0,43
Regeneration and Local Services,Direct Services,20097,Bldg Serv - R&M Div 97- Elect-Rapid Response,Supplies and Services,304221,Equipment and Materials,11-May-17,6055045717,PAYPAL REDBOXMAINT,1520,Direct materials,29.94,4.99,24.95
Regeneration and Local Services,Direct Services,10367,C&G - South Grounds Maintenance,Supplies and Services,304259,Equipment and Materials,11-May-17,6055045727,SCREWFIX DIRECT LT,5211,Equipment-purchase and rental,21.56,3.59,17.97
Regeneration and Local Services,Culture & Sport,11191,Wellbeing4Life,Supplies and Services,304259,Equipment and Materials,11-May-17,6055045731,WILKO RETAIL LIMIT,5722,Equipment-purchase and rental,6.8,0,6.8
Resources,Legal & Democratic Services,69556,Electoral Registration,Supplies and Services,312009,Newspapers Books and Periodicals,11-May-17,6055045757,WWW.ICO.GOV.UK,9399,Newspapers books and periodicals,35,0,35
Regeneration and Local Services,Transport and Contracted Services,31701,Care Connect All Localities,Supplies and Services,344033,Telephones,11-May-17,6055045771,BT BILL PAYMENT 2,4812,Telephones general-all costs,3.57,0.6,2.97
Regeneration and Local Services,Transport and Contracted Services,31701,Care Connect All Localities,Supplies and Services,344033,Telephones,11-May-17,6055045773,BT BILL PAYMENT 2,4812,Telephones general-all costs,4.36,0.73,3.63
Regeneration and Local Services,Transport and Contracted Services,31701,Care Connect All Localities,Supplies and Services,344033,Telephones,11-May-17,6055045777,BT BILL PAYMENT 2,4812,Telephones general-all costs,4.36,0.73,3.63
Regeneration and Local Services,Transport and Contracted Services,31701,Care Connect All Localities,Supplies and Services,344033,Telephones,11-May-17,6055045779,BT BILL PAYMENT 2,4812,Telephones general-all costs,4.36,0.73,3.63
Regeneration and Local Services,Direct Services,21324,Catering - Meadowfield,Supplies and Services,324117,Provisions,11-May-17,6055045805,HOPWELLS LTD,5811,Catering costs - provisions,67.52,0,67.52
Regeneration and Local Services,Direct Services,21324,Catering - Meadowfield,Supplies and Services,324117,Provisions,11-May-17,6055045809,HOPWELLS LTD,5811,Catering costs - provisions,40.37,0,40.37
Regeneration and Local Services,Direct Services,21324,Catering - Meadowfield,Supplies and Services,324117,Provisions,11-May-17,6055045813,HOPWELLS LTD,5811,Catering costs - provisions,30.57,0,30.57
Regeneration and Local Services,Direct Services,21324,Catering - Meadowfield,Supplies and Services,324117,Provisions,11-May-17,6055045817,JR HOLLAND FOODSERVICE,5422,Catering costs - provisions,18.24,0,18.24
Children and Young Peoples Services,Head of Looked After Provision Permanence and Care Leavers,85333,Coxhoe Satelite Home,Supplies and Services,304403,Equipment and Materials,11-May-17,6055045839,WEBUY.COM,5065,Other consumables,11,0,11
Regeneration and Local Services,Direct Services,10301,C&G - North Grounds Maintenance,Supplies and Services,304999,Equipment and Materials,11-May-17,6055045843,GUSTHARTS CHAINSAW CTR,7699,Misc equipment tools and materials,67.2,11.2,56
Children and Young Peoples Services,Head of Early Help Assessment and Safeguarding,74000,TTF-Attachment and Results,Supplies and Services,324117,Provisions,11-May-17,6055045909,ASDA GEORGE COM LEEDS,5411,Catering costs - provisions,23.95,0,23.95
Children and Young Peoples Services,Head of Early Help Assessment and Safeguarding,74000,TTF-Attachment and Results,Supplies and Services,304403,Equipment and Materials,11-May-17,6055045913,TESCO - Seller_IST_1_2,5999,Other consumables,86.98,0,86.98
Regeneration and Local Services,Direct Services,21235,Catering - Wharton Park,Supplies and Services,324117,Provisions,11-May-17,6055045923,HOPWELLS LTD,5811,Catering costs - provisions,503,83.84,419.16
Regeneration and Local Services,Direct Services,21235,Catering - Wharton Park,Supplies and Services,324117,Provisions,11-May-17,6055045927,HOPWELLS LTD,5811,Catering costs - provisions,236.7,39.45,197.25
Regeneration and Local Services,Direct Services,21235,Catering - Wharton Park,Supplies and Services,324117,Provisions,11-May-17,000006055045927 - 1,HOPWELLS LTD,5811,Catering costs - provisions,44.8,,44.8
Regeneration and Local Services,Direct Services,21235,Catering - Wharton Park,Supplies and Services,324117,Provisions,11-May-17,6055045931,HOPWELLS LTD,5811,Catering costs - provisions,115.86,19.31,96.55
Regeneration and Local Services,Direct Services,21235,Catering - Wharton Park,Supplies and Services,324117,Provisions,11-May-17,000006055045931 - 1,HOPWELLS LTD,5811,Catering costs - provisions,114.29,,114.29
Regeneration and Local Services,Direct Services,21235,Catering - Wharton Park,Supplies and Services,324117,Provisions,11-May-17,6055045935,HOPWELLS LTD,5811,Catering costs - provisions,33.78,5.63,28.15
Regeneration and Local Services,Direct Services,21235,Catering - Wharton Park,Supplies and Services,324117,Provisions,11-May-17,000006055045935 - 1,HOPWELLS LTD,5811,Catering costs - provisions,95.17,,95.17
Regeneration and Local Services,Direct Services,21235,Catering - Wharton Park,Supplies and Services,324117,Provisions,11-May-17,6055045941,HOPWELLS LTD,5811,Catering costs - provisions,14.52,2.42,12.1
Regeneration and Local Services,Direct Services,21235,Catering - Wharton Park,Supplies and Services,324117,Provisions,11-May-17,000006055045941 - 1,HOPWELLS LTD,5811,Catering costs - provisions,85.14,,85.14
Regeneration and Local Services,Direct Services,21235,Catering - Wharton Park,Supplies and Services,324117,Provisions,11-May-17,6055045947,HOPWELLS LTD,5811,Catering costs - provisions,34.15,0,34.15
Regeneration and Local Services,Direct Services,21235,Catering - Wharton Park,Supplies and Services,324117,Provisions,11-May-17,6055045949,HOPWELLS LTD,5811,Catering costs - provisions,-22.42,-3.74,-18.68
Regeneration and Local Services,Direct Services,21235,Catering - Wharton Park,Supplies and Services,324117,Provisions,11-May-17,6055045953,HOPWELLS LTD,5811,Catering costs - provisions,-34.15,0,-34.15
Regeneration and Local Services,Culture & Sport,10605,Woodhouse Close Leisure Complex,Supplies and Services,324117,Provisions,11-May-17,6055045963,HOPWELLS LTD,5811,Catering costs - provisions,84.47,0,84.47
Regeneration and Local Services,Culture & Sport,10605,Woodhouse Close Leisure Complex,Supplies and Services,324117,Provisions,11-May-17,6055045965,HOPWELLS LTD,5811,Catering costs - provisions,67.94,0,67.94
Regeneration and Local Services,Culture & Sport,10605,Woodhouse Close Leisure Complex,Supplies and Services,324117,Provisions,11-May-17,6055045969,HOPWELLS LTD,5811,Catering costs - provisions,59.53,0,59.53
Regeneration and Local Services,Culture & Sport,10605,Woodhouse Close Leisure Complex,Supplies and Services,324117,Provisions,11-May-17,6055045971,HOPWELLS LTD,5811,Catering costs - provisions,55.24,0,55.24
Regeneration and Local Services,Culture & Sport,10605,Woodhouse Close Leisure Complex,Supplies and Services,324117,Provisions,11-May-17,6055045975,HOPWELLS LTD,5811,Catering costs - provisions,54.88,0,54.88
Regeneration and Local Services,Culture & Sport,10605,Woodhouse Close Leisure Complex,Supplies and Services,324117,Provisions,11-May-17,6055045979,HOPWELLS LTD,5811,Catering costs - provisions,45.43,0,45.43
Regeneration and Local Services,Culture & Sport,10605,Woodhouse Close Leisure Complex,Supplies and Services,324117,Provisions,11-May-17,6055045981,HOPWELLS LTD,5811,Catering costs - provisions,43.96,0,43.96
Regeneration and Local Services,Culture & Sport,10605,Woodhouse Close Leisure Complex,Supplies and Services,324117,Provisions,11-May-17,6055045983,HOPWELLS LTD,5811,Catering costs - provisions,38.28,0,38.28
Regeneration and Local Services,Culture & Sport,10605,Woodhouse Close Leisure Complex,Supplies and Services,324117,Provisions,11-May-17,6055045987,HOPWELLS LTD,5811,Catering costs - provisions,25.47,0,25.47
Regeneration and Local Services,Culture & Sport,10605,Woodhouse Close Leisure Complex,Supplies and Services,324117,Provisions,11-May-17,6055045989,HOPWELLS LTD,5811,Catering costs - provisions,-8.48,0,-8.48
Regeneration and Local Services,Culture & Sport,10605,Woodhouse Close Leisure Complex,Supplies and Services,324117,Provisions,11-May-17,6055045993,HOPWELLS LTD,5811,Catering costs - provisions,-16.6,0,-16.6
Children and Young Peoples Services,Head of Early Help Assessment and Safeguarding,71693,Brandon Childrens Centre,Supplies and Services,312011,Newspapers Books and Periodicals,11-May-17,6055045997,Amazon UK Marketplace,5942,Books-school library,2.45,0,2.45
Regeneration and Local Services,Economic Development and Housing,30737,Durham Works Flexible Fund,Transport,235057,Public Transport,11-May-17,6055046007,WWW.SIMPLYGO.COM,4131,Staff travelling,68,0,68
Regeneration and Local Services,Economic Development and Housing,30554,International Relations,Transport,235057,Public Transport,11-May-17,6055046029,PRINCE BISHOP SHOPPING,7523,Staff travelling,2.1,0,2.1
Children and Young Peoples Services,Head of Looked After Provision Permanence and Care Leavers,85958,Support Services,Supplies and Services,340001,Postages,11-May-17,6060623693,POST OFFICE SHOP,9402,Postages,59.69,0,59.69
Regeneration and Local Services,Direct Services,21242,Catering - County Hall,Supplies and Services,324117,Provisions,11-May-17,6067842669,BATLEYS PERTH,5300,Catering costs - provisions,-11.98,0,-11.98
Regeneration and Local Services,Direct Services,21242,Catering - County Hall,Supplies and Services,324117,Provisions,11-May-17,6067842675,BATLEYS PERTH,5300,Catering costs - provisions,-29.85,-1.82,-28.03
Regeneration and Local Services,Direct Services,21242,Catering - County Hall,Supplies and Services,324117,Provisions,11-May-17,6067842681,BATLEYS PERTH,5300,Catering costs - provisions,-8.07,0,-8.07
Regeneration and Local Services,Culture & Sport,11060,Hardwick Park Catering,Supplies and Services,324117,Provisions,11-May-17,6067842959,BATLEYS PERTH,5300,Catering costs - provisions,145.62,24.27,121.35
Regeneration and Local Services,Culture & Sport,11060,Hardwick Park Catering,Supplies and Services,324117,Provisions,11-May-17,000006067842959 - 1,BATLEYS PERTH,5300,Catering costs - provisions,192.62,,192.62
Regeneration and Local Services,Direct Services,21234,Catering - Locomotion,Supplies and Services,324117,Provisions,11-May-17,6067843055,BATLEYS PERTH,5300,Catering costs - provisions,157.32,26.22,131.1
Regeneration and Local Services,Direct Services,21234,Catering - Locomotion,Supplies and Services,324117,Provisions,11-May-17,000006067843055 - 1,BATLEYS PERTH,5300,Catering costs - provisions,20.94,,20.94
Regeneration and Local Services,Direct Services,21234,Catering - Locomotion,Supplies and Services,324117,Provisions,11-May-17,6067843069,BATLEYS PERTH,5300,Catering costs - provisions,141.06,23.51,117.55
Regeneration and Local Services,Direct Services,21234,Catering - Locomotion,Supplies and Services,324117,Provisions,11-May-17,000006067843069 - 1,BATLEYS PERTH,5300,Catering costs - provisions,36.82,,36.82
Regeneration and Local Services,Direct Services,21235,Catering - Wharton Park,Supplies and Services,324117,Provisions,11-May-17,6067843377,BATLEYS PERTH,5300,Catering costs - provisions,211.26,35.21,176.05
Regeneration and Local Services,Direct Services,21235,Catering - Wharton Park,Supplies and Services,324117,Provisions,11-May-17,000006067843377 - 1,BATLEYS PERTH,5300,Catering costs - provisions,23.8,,23.8
Regeneration and Local Services,Culture & Sport,10605,Woodhouse Close Leisure Complex,Supplies and Services,324117,Provisions,11-May-17,6067843403,BATLEYS PERTH,5300,Catering costs - provisions,156.78,26.13,130.65
Regeneration and Local Services,Culture & Sport,10605,Woodhouse Close Leisure Complex,Supplies and Services,324117,Provisions,11-May-17,000006067843403 - 1,BATLEYS PERTH,5300,Catering costs - provisions,112.27,,112.27
Regeneration and Local Services,Culture & Sport,11060,Hardwick Park Catering,Supplies and Services,324117,Provisions,11-May-17,6094811211,BATLEYS PERTH,5300,Catering costs - provisions,69.48,11.58,57.9
Regeneration and Local Services,Culture & Sport,11060,Hardwick Park Catering,Supplies and Services,324117,Provisions,11-May-17,000006094811211 - 1,BATLEYS PERTH,5300,Catering costs - provisions,2.43,,2.43
Children and Young Peoples Services,Head of Looked After Provision Permanence and Care Leavers,85958,Support Services,Supplies and Services,312011,Newspapers Books and Periodicals,12-May-17,6055045441,Amazon UK Marketplace,5942,Books-school library,7.41,0,7.41
Children and Young Peoples Services,Head of Education,71801,Selby Cottage Childcare Centre,Supplies and Services,312011,Newspapers Books and Periodicals,12-May-17,6060623537,Amazon UK Marketplace,5942,Books-school library,23.85,0,23.85
Children and Young Peoples Services,Head of Education,71801,Selby Cottage Childcare Centre,Supplies and Services,324117,Provisions,12-May-17,6060623539,TESCO STORES 2278,5411,Catering costs - provisions,12.9,0,12.9
Transformation and Partnerships,Comms & Information Management,60270,Communications and Marketing,Supplies and Services,344033,Telephones,12-May-17,6060623549,Amazon UK Marketplace,5942,Telephones general-all costs,27.93,0,27.93
Regeneration and Local Services,Economic Development and Housing,31576,B& B - Temp Accom,Supplies and Services,364320,Grants to Voluntary Organisations,12-May-17,6060623571,DAYS INN,7011,Accommodation assistance,142,23.67,118.33
Regeneration and Local Services,Economic Development and Housing,31576,B& B - Temp Accom,Supplies and Services,364320,Grants to Voluntary Organisations,12-May-17,6060623575,DAYS INN,7011,Accommodation assistance,142,23.67,118.33
Regeneration and Local Services,Direct Services,21242,Catering - County Hall,Supplies and Services,324117,Provisions,12-May-17,6060623631,JR HOLLAND FOODSERVICE,5422,Catering costs - provisions,68.96,0,68.96
Regeneration and Local Services,Direct Services,21242,Catering - County Hall,Supplies and Services,324117,Provisions,12-May-17,6060623633,JR HOLLAND FOODSERVICE,5422,Catering costs - provisions,4.74,0,4.74
Adult and Health Services,Head of Adults,53812,Maple Court Extra,Supplies and Services,304403,Equipment and Materials,12-May-17,6060623663,TESCO DIRECT,5999,Other consumables,-18.56,0,-18.56
Resources,Corporate Finance,69800,Corporate Procurement,Employees,40149,Recruitment Instruction and Training,12-May-17,6060623667,WWW.CIPS.ORG,8699,Training-all costs,41.25,0,41.25
Regeneration and Local Services,Economic Development and Housing,30553,Europe Direct Scheme,Transport,235057,Public Transport,12-May-17,6060623673,WALKERGATE CAR PAR,7523,Staff travelling,3,0.5,2.5
Children and Young Peoples Services,Head of Looked After Provision Permanence and Care Leavers,85958,Support Services,Supplies and Services,312011,Newspapers Books and Periodicals,12-May-17,6060623685,Amazon UK Marketplace,5942,Books-school library,7.49,0,7.49
Children and Young Peoples Services,Head of Looked After Provision Permanence and Care Leavers,85958,Support Services,Supplies and Services,312011,Newspapers Books and Periodicals,12-May-17,6060623687,Amazon UK Marketplace,5942,Books-school library,5.46,0,5.46
Children and Young Peoples Services,Head of Looked After Provision Permanence and Care Leavers,85958,Support Services,Supplies and Services,312011,Newspapers Books and Periodicals,12-May-17,6060623689,Amazon UK Marketplace,5942,Books-school library,41.09,0,41.09
Children and Young Peoples Services,Head of Looked After Provision Permanence and Care Leavers,85958,Support Services,Supplies and Services,312011,Newspapers Books and Periodicals,12-May-17,6060623691,Amazon UK Marketplace,5942,Books-school library,23.8,0,23.8
Children and Young Peoples Services,Head of Looked After Provision Permanence and Care Leavers,85958,Support Services,Supplies and Services,324117,Provisions,12-May-17,6060623695,TESCO STORES 6329,5411,Catering costs - provisions,118.16,0,118.16
Children and Young Peoples Services,Head of Looked After Provision Permanence and Care Leavers,85958,Support Services,Supplies and Services,304403,Equipment and Materials,12-May-17,6060623703,AMAZON.CO.UK,5999,Other consumables,41.64,0,41.64
Regeneration and Local Services,Economic Development and Housing,30762,Organisational Training & Development,Employees,40149,Recruitment Instruction and Training,12-May-17,6060623741,CITB,8220,Training-all costs,30,5,25
Regeneration and Local Services,Economic Development and Housing,30762,Organisational Training & Development,Employees,40149,Recruitment Instruction and Training,12-May-17,6060623743,CITB,8220,Training-all costs,30,5,25
Regeneration and Local Services,Direct Services,21234,Catering - Locomotion,Supplies and Services,324117,Provisions,12-May-17,6060623745,HOPWELLS LTD,5811,Catering costs - provisions,92.28,15.38,76.9
Regeneration and Local Services,Direct Services,21234,Catering - Locomotion,Supplies and Services,324117,Provisions,12-May-17,000006060623745 - 1,HOPWELLS LTD,5811,Catering costs - provisions,56.64,,56.64
Regeneration and Local Services,Direct Services,21234,Catering - Locomotion,Supplies and Services,324117,Provisions,12-May-17,6060623747,JR HOLLAND FOODSERVICE,5422,Catering costs - provisions,5.1,0,5.1
Regeneration and Local Services,Economic Development and Housing,31576,B& B - Temp Accom,Supplies and Services,364320,Grants to Voluntary Organisations,12-May-17,6060623755,TRAVELODGE,3615,Accommodation assistance,148,24.67,123.33
Regeneration and Local Services,Direct Services,10525,Catering - Green Lane,Supplies and Services,324117,Provisions,12-May-17,6060623757,HOPWELLS LTD,5811,Catering costs - provisions,25.55,0,25.55
Regeneration and Local Services,Direct Services,10525,Catering - Green Lane,Supplies and Services,324117,Provisions,12-May-17,6060623759,JR HOLLAND FOODSERVICE,5422,Catering costs - provisions,33.09,0,33.09
Regeneration and Local Services,Economic Development and Housing,30703,Partnership Services,Supplies and Services,384199,Miscellaneous Expenses,12-May-17,6060623771,GOOGLE ADWS1872075479,5968,Other hired and contracted services,"1,000.00",0,1000
Children and Young Peoples Services,Head of Looked After Provision Permanence and Care Leavers,85332,Middlestone Moor CU,Supplies and Services,324117,Provisions,12-May-17,6060623805,TESCO STORES 6329,5411,Catering costs - provisions,169,0,169
Regeneration and Local Services,Economic Development and Housing,30749,Employability - Youth Contract,Transport,230031,Contract Hire,12-May-17,6060623823,WWW.SIMPLYGO.COM,4131,Pupils-transport to play fields etc,24.9,0,24.9
Regeneration and Local Services,Direct Services,21324,Catering - Meadowfield,Supplies and Services,324117,Provisions,12-May-17,6060623881,JR HOLLAND FOODSERVICE,5422,Catering costs - provisions,27.7,0,27.7
Regeneration and Local Services,Direct Services,21324,Catering - Meadowfield,Supplies and Services,324117,Provisions,12-May-17,6060623883,JR HOLLAND FOODSERVICE,5422,Catering costs - provisions,9.87,0,9.87
Children and Young Peoples Services,Head of Early Help Assessment and Safeguarding,88083,Ferryhill 0 - 5,Supplies and Services,324117,Provisions,12-May-17,6060623909,MARTIN MCCOLL,5499,Catering costs - provisions,6.7,0,6.7
Resources,I.C.T. Services,65487,ICT Telephony Recharges,Supplies and Services,344033,Telephones,12-May-17,6060623927,Amazon UK Marketplace,5942,Telephones general-all costs,88.5,0,88.5
Resources,I.C.T. Services,65487,ICT Telephony Recharges,Supplies and Services,344033,Telephones,12-May-17,6060623929,PAYPAL ONX3 LTD,5732,Telephones general-all costs,-39.39,0,-39.39
Regeneration and Local Services,Direct Services,21235,Catering - Wharton Park,Supplies and Services,324117,Provisions,12-May-17,6060623937,HOPWELLS LTD,5811,Catering costs - provisions,164.64,27.44,137.2
Regeneration and Local Services,Direct Services,21235,Catering - Wharton Park,Supplies and Services,324117,Provisions,12-May-17,000006060623937 - 1,HOPWELLS LTD,5811,Catering costs - provisions,54.84,,54.84
Adult and Health Services,Head of Adults,51603,OP/PD Durham & CLS,Supplies and Services,340001,Postages,12-May-17,6060623939,ROYAL MAIL ONLINE SHOP,9402,Postages,56,0,56
Regeneration and Local Services,Culture & Sport,10605,Woodhouse Close Leisure Complex,Supplies and Services,324117,Provisions,12-May-17,6060623953,HOPWELLS LTD,5811,Catering costs - provisions,131.18,0,131.18
Transformation and Partnerships,Partnerships & Community Engagement Div.,60472,Syrian Vulnerable Persons Scheme,Supplies and Services,308011,Furniture,12-May-17,6060623961,ASDA STORES LTD 4313,5411,Furniture repair and replacement,9,0,9
Regeneration and Local Services,Spatial Policy Planning Assets & Environment,31200,North Pennines Core,Supplies and Services,340001,Postages,12-May-17,6060623965,THE POST OFFICE,9402,Postages,2.9,0,2.9
Regeneration and Local Services,Spatial Policy Planning Assets & Environment,31200,North Pennines Core,Supplies and Services,324117,Provisions,12-May-17,6060623967,SCOTMID CO-OP STANHOPE,5411,Catering costs - provisions,6.78,0,6.78
Regeneration and Local Services,Direct Services,21242,Catering - County Hall,Supplies and Services,324117,Provisions,12-May-17,6067842645,BATLEYS PERTH,5300,Catering costs - provisions,165.48,27.58,137.9
Regeneration and Local Services,Direct Services,21242,Catering - County Hall,Supplies and Services,324117,Provisions,12-May-17,000006067842645 - 1,BATLEYS PERTH,5300,Catering costs - provisions,221.63,,221.63
Regeneration and Local Services,Direct Services,21234,Catering - Locomotion,Supplies and Services,324117,Provisions,12-May-17,6067843085,BATLEYS PERTH,5300,Catering costs - provisions,-20.27,-3.38,-16.89
Regeneration and Local Services,Direct Services,10525,Catering - Green Lane,Supplies and Services,324117,Provisions,12-May-17,6067843123,BATLEYS PERTH,5300,Catering costs - provisions,129.24,21.54,107.7
Regeneration and Local Services,Direct Services,10525,Catering - Green Lane,Supplies and Services,324117,Provisions,12-May-17,000006067843123 - 1,BATLEYS PERTH,5300,Catering costs - provisions,67.63,,67.63
Regeneration and Local Services,Culture & Sport,11060,Hardwick Park Catering,Supplies and Services,324117,Provisions,12-May-17,6094811215,BATLEYS PERTH,5300,Catering costs - provisions,202.62,33.77,168.85
Regeneration and Local Services,Culture & Sport,11060,Hardwick Park Catering,Supplies and Services,324117,Provisions,12-May-17,000006094811215 - 1,BATLEYS PERTH,5300,Catering costs - provisions,199.62,,199.62
Children and Young Peoples Services,Head of Education,54640,Durham Learning Resources,Supplies and Services,304403,Equipment and Materials,13-May-17,6060623543,AMAZON UK RETAIL AMAZO,5999,Other consumables,23.96,0,23.96
Resources,I.C.T. Services,70204,Systems,Supplies and Services,344033,Telephones,13-May-17,6060623553,Amazon UK Marketplace,5942,Telephones general-all costs,12.48,0,12.48
Regeneration and Local Services,Culture & Sport,54233,Bp Auckland Town Hall Library,Supplies and Services,304403,Equipment and Materials,13-May-17,6060623635,AMAZON UK RETAIL AMAZO,5999,Other consumables,12.99,0,12.99
Children and Young Peoples Services,Head of Looked After Provision Permanence and Care Leavers,85958,Support Services,Supplies and Services,312011,Newspapers Books and Periodicals,13-May-17,6060623697,Amazon UK Marketplace,5942,Books-school library,15.96,0,15.96
Children and Young Peoples Services,Head of Looked After Provision Permanence and Care Leavers,85958,Support Services,Supplies and Services,324117,Provisions,13-May-17,6060623701,TESCO STORES 6329,5411,Catering costs - provisions,126.17,0,126.17
Resources,Resources Management,69000,Resources Management,Supplies and Services,324117,Provisions,13-May-17,6060623829,CO-OP GROUP 010830,5411,Catering costs - provisions,20.95,0,20.95
Children and Young Peoples Services,Head of Looked After Provision Permanence and Care Leavers,85341,High Etherley Satelite Home,Supplies and Services,324117,Provisions,14-May-17,6060623659,TESCO STORES 5457,5411,Catering costs - provisions,38.97,0,38.97
Children and Young Peoples Services,Head of Education,71903,EYDCP-Sustainability EDS,Supplies and Services,312011,Newspapers Books and Periodicals,14-May-17,6060623679,Amazon EU,5969,Books-school library,3.74,0,3.74
Children and Young Peoples Services,Head of Looked After Provision Permanence and Care Leavers,85958,Support Services,Supplies and Services,312011,Newspapers Books and Periodicals,14-May-17,6060623707,Amazon UK Marketplace,5942,Books-school library,11.98,0,11.98
Children and Young Peoples Services,Head of Looked After Provision Permanence and Care Leavers,85958,Support Services,Supplies and Services,312011,Newspapers Books and Periodicals,14-May-17,6060623709,Amazon UK Marketplace,5942,Books-school library,19.65,0,19.65
Regeneration and Local Services,Culture & Sport,54604,Seven Hills Spennymoor,Supplies and Services,304999,Equipment and Materials,14-May-17,6060623837,AMAZON UK PRIME AMZN.C,5968,Misc equipment tools and materials,7.99,0,7.99
Regeneration and Local Services,Culture & Sport,26591,Hardwick Park,Supplies and Services,332047,Printing Stationery and Gen Off Exps,14-May-17,6060623949,Amazon UK Marketplace,5942,Stationery,10.29,0,10.29
Regeneration and Local Services,Economic Development and Housing,30699,Business Growth and Innovation General,Supplies and Services,342033,Computers and Communications,14-May-17,6067842515,WATCHFULPAYPAL,7379,Computer hardware,15.56,0,15.56
Children and Young Peoples Services,Head of Early Help Assessment and Safeguarding,71440,Barnard Castle One Point Hub,Supplies and Services,304403,Equipment and Materials,14-May-17,6067842545,AMAZON UK RETAIL AMAZO,5999,Other consumables,52.33,0,52.33
Regeneration and Local Services,Spatial Policy Planning Assets & Environment,31200,North Pennines Core,Supplies and Services,304403,Equipment and Materials,14-May-17,6067842725,Something Different,5999,Other consumables,97.31,16.22,81.09
Children and Young Peoples Services,Head of Education,71903,EYDCP-Sustainability EDS,Supplies and Services,304403,Equipment and Materials,14-May-17,6067842883,AMAZON UK RETAIL AMAZO,5999,Other consumables,11.51,0,11.51
Children and Young Peoples Services,Head of Education,71801,Selby Cottage Childcare Centre,Supplies and Services,324117,Provisions,15-May-17,6067842433,TESCO STORES 2278,5411,Catering costs - provisions,28.72,0,28.72
Children and Young Peoples Services,Head of Looked After Provision Permanence and Care Leavers,85342,9 Cedar Drive Aycliffe,Supplies and Services,324117,Provisions,15-May-17,6067842495,ALDI,5411,Catering costs - provisions,112.19,0,112.19
Children and Young Peoples Services,Head of Looked After Provision Permanence and Care Leavers,85342,9 Cedar Drive Aycliffe,Supplies and Services,324117,Provisions,15-May-17,6067842499,TESCO STORES 2916,5411,Catering costs - provisions,115.81,0,115.81
Regeneration and Local Services,Economic Development and Housing,30737,Durham Works Flexible Fund,Transport,230031,Contract Hire,15-May-17,6067842557,WWW.SIMPLYGO.COM,4131,Pupils-transport to play fields etc,18.9,0,18.9
Regeneration and Local Services,Economic Development and Housing,30737,Durham Works Flexible Fund,Transport,230031,Contract Hire,15-May-17,6067842565,ARRIVA NORTH EAST,4131,Pupils-transport to play fields etc,26.1,0,26.1
Regeneration and Local Services,Direct Services,21242,Catering - County Hall,Supplies and Services,324117,Provisions,15-May-17,6067842569,WWW.ADELIEFOODS.CO.UK,5499,Catering costs - provisions,191.07,0,191.07
Regeneration and Local Services,Direct Services,21242,Catering - County Hall,Supplies and Services,324117,Provisions,15-May-17,6067842577,WWW.ADELIEFOODS.CO.UK,5499,Catering costs - provisions,137.54,0,137.54
Regeneration and Local Services,Direct Services,21242,Catering - County Hall,Supplies and Services,324117,Provisions,15-May-17,6067842581,WWW.ADELIEFOODS.CO.UK,5499,Catering costs - provisions,108.85,0,108.85
Regeneration and Local Services,Direct Services,21242,Catering - County Hall,Supplies and Services,324117,Provisions,15-May-17,6067842587,WWW.ADELIEFOODS.CO.UK,5499,Catering costs - provisions,71.41,0,71.41
Regeneration and Local Services,Direct Services,21242,Catering - County Hall,Supplies and Services,324117,Provisions,15-May-17,6067842591,WWW.ADELIEFOODS.CO.UK,5499,Catering costs - provisions,46.4,0,46.4
Regeneration and Local Services,Direct Services,21242,Catering - County Hall,Supplies and Services,324117,Provisions,15-May-17,6067842595,JR HOLLAND FOODSERVICE,5422,Catering costs - provisions,103.89,0,103.89
Regeneration and Local Services,Direct Services,21242,Catering - County Hall,Supplies and Services,324117,Provisions,15-May-17,6067842637,JR HOLLAND FOODSERVICE,5422,Catering costs - provisions,13.52,0,13.52
Regeneration and Local Services,Culture & Sport,54812,Gala Theatre - Catering etc,Supplies and Services,324117,Provisions,15-May-17,6067842689,JR HOLLAND FOODSERVICE,5422,Catering costs - provisions,27.65,0,27.65
Children and Young Peoples Services,Head of Looked After Provision Permanence and Care Leavers,85362,LAC & Permanence Team 2,Supplies and Services,304403,Equipment and Materials,15-May-17,6067842717,GRO HM PASSPORT OFFICE,9399,Other consumables,9.25,0,9.25
Children and Young Peoples Services,Head of Early Help Assessment and Safeguarding,88063,Bishop Auckland 0 - 5,Supplies and Services,324117,Provisions,15-May-17,6067842783,ASDA HOME SHOPPING,5411,Catering costs - provisions,58.68,0,58.68
Regeneration and Local Services,Economic Development and Housing,30749,Employability - Youth Contract,Transport,235057,Public Transport,15-May-17,6067842793,ARRIVA NORTH EAST,4131,Staff travelling,85.5,0,85.5
Children and Young Peoples Services,Head of Education,71732,Dean Bank Childcare,Supplies and Services,324117,Provisions,15-May-17,6067842821,ASDA HOME SHOPPING,5411,Catering costs - provisions,57.33,0,57.33
Regeneration and Local Services,Economic Development and Housing,30737,Durham Works Flexible Fund,Transport,235057,Public Transport,15-May-17,6067842829,ARRIVA NORTH EAST,4131,Staff travelling,50,0,50
Regeneration and Local Services,Economic Development and Housing,30553,Europe Direct Scheme,Transport,235057,Public Transport,15-May-17,6067842839,PRINCE BISHOP SHOPPING,7523,Staff travelling,2.1,0,2.1
Regeneration and Local Services,Economic Development and Housing,30737,Durham Works Flexible Fund,Supplies and Services,340001,Postages,15-May-17,6067842891,POST OFFICE COUNTER,9402,Postages,1.75,0,1.75
Children and Young Peoples Services,Head of Looked After Provision Permanence and Care Leavers,85958,Support Services,Supplies and Services,312011,Newspapers Books and Periodicals,15-May-17,6067842919,Amazon UK Marketplace,5942,Books-school library,15.55,0,15.55
Children and Young Peoples Services,Head of Looked After Provision Permanence and Care Leavers,85958,Support Services,Supplies and Services,312011,Newspapers Books and Periodicals,15-May-17,6067842925,Amazon UK Marketplace,5942,Books-school library,11.17,0,11.17
Regeneration and Local Services,Culture & Sport,11060,Hardwick Park Catering,Supplies and Services,324117,Provisions,15-May-17,6067842949,JR HOLLAND FOODSERVICE,5422,Catering costs - provisions,13.68,0,13.68
Resources,I.C.T. Services,65335,Implementation,Supplies and Services,304639,Equipment and Materials,15-May-17,6067843015,PROMETHEAN LTD,5722,Technicians-supplies,108.77,18.13,90.64
Regeneration and Local Services,Direct Services,21234,Catering - Locomotion,Supplies and Services,324117,Provisions,15-May-17,6067843031,WWW.ADELIEFOODS.CO.UK,5499,Catering costs - provisions,179.65,0,179.65
Regeneration and Local Services,Direct Services,21234,Catering - Locomotion,Supplies and Services,324117,Provisions,15-May-17,6067843039,WWW.ADELIEFOODS.CO.UK,5499,Catering costs - provisions,51.49,0,51.49
Regeneration and Local Services,Direct Services,21234,Catering - Locomotion,Supplies and Services,324117,Provisions,15-May-17,6067843045,WWW.ADELIEFOODS.CO.UK,5499,Catering costs - provisions,51.49,0,51.49
Regeneration and Local Services,Direct Services,21234,Catering - Locomotion,Supplies and Services,324117,Provisions,15-May-17,6067843049,WWW.ADELIEFOODS.CO.UK,5499,Catering costs - provisions,37.62,0,37.62
Regeneration and Local Services,Direct Services,10525,Catering - Green Lane,Supplies and Services,324117,Provisions,15-May-17,6067843115,WWW.ADELIEFOODS.CO.UK,5499,Catering costs - provisions,45.5,0,45.5
Regeneration and Local Services,Direct Services,10525,Catering - Green Lane,Supplies and Services,324117,Provisions,15-May-17,6067843117,WWW.ADELIEFOODS.CO.UK,5499,Catering costs - provisions,38.16,0,38.16
Regeneration and Local Services,Direct Services,10525,Catering - Green Lane,Supplies and Services,324117,Provisions,15-May-17,6067843121,HOPWELLS LTD,5811,Catering costs - provisions,28.15,0,28.15
Regeneration and Local Services,Economic Development and Housing,31576,B& B - Temp Accom,Supplies and Services,364320,Grants to Voluntary Organisations,15-May-17,6067843175,TRAVELODGE,3615,Accommodation assistance,41,0,41
Children and Young Peoples Services,Head of Looked After Provision Permanence and Care Leavers,85333,Coxhoe Satelite Home,Supplies and Services,324117,Provisions,15-May-17,6067843189,TESCO STORES 2371,5411,Catering costs - provisions,130.1,0,130.1
Children and Young Peoples Services,Head of Looked After Provision Permanence and Care Leavers,85333,Coxhoe Satelite Home,Supplies and Services,304259,Equipment and Materials,15-May-17,6067843191,SPORTSDIRECT 264,5941,Equipment-purchase and rental,65.99,0,65.99
Regeneration and Local Services,Transport and Contracted Services,32061,Traffic,Supplies and Services,312009,Newspapers Books and Periodicals,15-May-17,6067843235,CIHT CHARTERED INST H&,8398,Newspapers books and periodicals,125,0,125
Regeneration and Local Services,Culture & Sport,54235,Bp Auckland Town Hall Cafe,Supplies and Services,324117,Provisions,15-May-17,6067843243,JR HOLLAND FOODSERVICE,5422,Catering costs - provisions,17.13,0,17.13
Regeneration and Local Services,Direct Services,21324,Catering - Meadowfield,Supplies and Services,324117,Provisions,15-May-17,6067843261,WWW.ADELIEFOODS.CO.UK,5499,Catering costs - provisions,46.88,0,46.88
Regeneration and Local Services,Direct Services,21324,Catering - Meadowfield,Supplies and Services,324117,Provisions,15-May-17,6067843263,WWW.ADELIEFOODS.CO.UK,5499,Catering costs - provisions,37.51,0,37.51
Regeneration and Local Services,Economic Development and Housing,31576,B& B - Temp Accom,Supplies and Services,364320,Grants to Voluntary Organisations,15-May-17,6067843267,DAYS INN,7011,Accommodation assistance,50,0,50
Regeneration and Local Services,Culture & Sport,11086,Positive Futures,Supplies and Services,324117,Provisions,15-May-17,6067843281,ASDA STORES LTD,5411,Catering costs - provisions,12,0,12
Regeneration and Local Services,Culture & Sport,11086,Positive Futures,Supplies and Services,324117,Provisions,15-May-17,6067843285,ASDA STORES LTD,5411,Catering costs - provisions,9.32,0,9.32
Regeneration and Local Services,Culture & Sport,11086,Positive Futures,Supplies and Services,324117,Provisions,15-May-17,6067843287,ASDA STORES LTD,5411,Catering costs - provisions,1.28,0,1.28
Children and Young Peoples Services,Head of Early Help Assessment and Safeguarding,88083,Ferryhill 0 - 5,Supplies and Services,324117,Provisions,15-May-17,6067843291,CO-OP GROUP 010518,5411,Catering costs - provisions,3.88,0,3.88
Regeneration and Local Services,Economic Development and Housing,30737,Durham Works Flexible Fund,Supplies and Services,324117,Provisions,15-May-17,6067843321,CO-OP GROUP 310027,5411,Catering costs - provisions,92,0,92
Children and Young Peoples Services,Head of Early Help Assessment and Safeguarding,85100,Child Protection & Disabilty Strategic Manager,Supplies and Services,384199,Miscellaneous Expenses,15-May-17,6067843323,COUNTY DURHAM & DARLIN,9399,Other hired and contracted services,0.75,0,0.75
Resources,Legal & Democratic Services,67910,Democratic Representation,Supplies and Services,372009,Subscriptions,15-May-17,6067843325,WWW.ICO.GOV.UK,9399,Subscriptions,35,0,35
Resources,Legal & Democratic Services,67910,Democratic Representation,Supplies and Services,384199,Miscellaneous Expenses,15-May-17,6067843327,WWW.ICO.GOV.UK,9399,Other hired and contracted services,35,0,35
Resources,Legal & Democratic Services,67910,Democratic Representation,Supplies and Services,384199,Miscellaneous Expenses,15-May-17,6067843331,WWW.ICO.GOV.UK,9399,Other hired and contracted services,35,0,35
Resources,Legal & Democratic Services,67910,Democratic Representation,Supplies and Services,384199,Miscellaneous Expenses,15-May-17,6067843333,WWW.ICO.GOV.UK,9399,Other hired and contracted services,35,0,35
Resources,Legal & Democratic Services,67910,Democratic Representation,Supplies and Services,384199,Miscellaneous Expenses,15-May-17,6067843335,WWW.ICO.GOV.UK,9399,Other hired and contracted services,35,0,35
Resources,Legal & Democratic Services,67910,Democratic Representation,Supplies and Services,384199,Miscellaneous Expenses,15-May-17,6067843339,WWW.ICO.GOV.UK,9399,Other hired and contracted services,35,0,35
Resources,Legal & Democratic Services,67910,Democratic Representation,Supplies and Services,384199,Miscellaneous Expenses,15-May-17,6067843341,WWW.ICO.GOV.UK,9399,Other hired and contracted services,35,0,35
Resources,Legal & Democratic Services,67910,Democratic Representation,Supplies and Services,384199,Miscellaneous Expenses,15-May-17,6067843345,WWW.ICO.GOV.UK,9399,Other hired and contracted services,35,0,35
Resources,Legal & Democratic Services,67910,Democratic Representation,Supplies and Services,384199,Miscellaneous Expenses,15-May-17,6067843347,WWW.ICO.GOV.UK,9399,Other hired and contracted services,35,0,35
Regeneration and Local Services,Direct Services,21235,Catering - Wharton Park,Supplies and Services,324117,Provisions,15-May-17,6067843367,WWW.ADELIEFOODS.CO.UK,5499,Catering costs - provisions,68.83,0,68.83
Regeneration and Local Services,Direct Services,21235,Catering - Wharton Park,Supplies and Services,324117,Provisions,15-May-17,6067843371,WWW.ADELIEFOODS.CO.UK,5499,Catering costs - provisions,33.52,0,33.52
Regeneration and Local Services,Direct Services,21235,Catering - Wharton Park,Supplies and Services,324117,Provisions,15-May-17,6067843375,WWW.ADELIEFOODS.CO.UK,5499,Catering costs - provisions,33.52,0,33.52
Regeneration and Local Services,Direct Services,21235,Catering - Wharton Park,Supplies and Services,324117,Provisions,15-May-17,6067843381,BATLEYS PERTH,5300,Catering costs - provisions,-28.66,-4.78,-23.88
Regeneration and Local Services,Culture & Sport,10605,Woodhouse Close Leisure Complex,Supplies and Services,324117,Provisions,15-May-17,6067843397,HOPWELLS LTD,5811,Catering costs - provisions,52.12,0,52.12
Regeneration and Local Services,Culture & Sport,10605,Woodhouse Close Leisure Complex,Supplies and Services,324117,Provisions,15-May-17,6067843401,JR HOLLAND FOODSERVICE,5422,Catering costs - provisions,94.94,0,94.94
Resources,Financial Services,65135,Revs and Bens Training,Supplies and Services,352001,Conference Expenses,15-May-17,6067843407,WILKIN CHAPMAN,8111,Conferencesseminars fees etc,300,50,250
Regeneration and Local Services,Spatial Policy Planning Assets & Environment,31200,North Pennines Core,Transport,235057,Public Transport,15-May-17,6067843421,Trainline,4112,Staff travelling,95.83,0,95.83
Regeneration and Local Services,Spatial Policy Planning Assets & Environment,31200,North Pennines Core,Transport,235057,Public Transport,15-May-17,6067843423,TRAINLINE,4112,Staff travelling,2,0,2
Regeneration and Local Services,Culture & Sport,54812,Gala Theatre - Catering etc,Supplies and Services,324117,Provisions,15-May-17,6071110715,BATLEYS PERTH,5300,Catering costs - provisions,45.18,7.53,37.65
Regeneration and Local Services,Culture & Sport,54812,Gala Theatre - Catering etc,Supplies and Services,324117,Provisions,15-May-17,000006071110715 - 1,BATLEYS PERTH,5300,Catering costs - provisions,63.82,,63.82
Children and Young Peoples Services,Head of Looked After Provision Permanence and Care Leavers,85341,High Etherley Satelite Home,Supplies and Services,312009,Newspapers Books and Periodicals,15-May-17,6071110785,AMAZON UK RETAIL AMAZO,5999,Newspapers books and periodicals,49.06,0,49.06
Regeneration and Local Services,Economic Development and Housing,30699,Business Growth and Innovation General,Supplies and Services,342033,Computers and Communications,16-May-17,6067842521,WATCHFULPAYPAL,7379,Computer hardware,0.43,0,0.43
Children and Young Peoples Services,Head of Education,71801,Selby Cottage Childcare Centre,Supplies and Services,324117,Provisions,16-May-17,6071110601,ASDA HOME SHOPPING,5411,Catering costs - provisions,99.51,0,99.51
Regeneration and Local Services,Direct Services,11067,Nei.Prot - Pest Control,Supplies and Services,344033,Telephones,16-May-17,6071110615,Amazon UK Marketplace,5942,Telephones general-all costs,40.33,0,40.33
Children and Young Peoples Services,Head of Early Help Assessment and Safeguarding,88033,Durham 0 - 5,Transport,235057,Public Transport,16-May-17,6071110619,Trainline,4112,Staff travelling,37.69,0,37.69
Children and Young Peoples Services,Head of Early Help Assessment and Safeguarding,88033,Durham 0 - 5,Supplies and Services,324117,Provisions,16-May-17,6071110621,ALDI,5411,Catering costs - provisions,5.88,0,5.88
Regeneration and Local Services,Economic Development and Housing,31500,Housing Solutions - Core Team,Supplies and Services,352001,Conference Expenses,16-May-17,6071110633,DAYS INN,7011,Conferencesseminars fees etc,50,8.33,41.67
Regeneration and Local Services,Economic Development and Housing,31500,Housing Solutions - Core Team,Supplies and Services,352001,Conference Expenses,16-May-17,6071110635,TRAVELODGE,3615,Conferencesseminars fees etc,45,7.5,37.5
Children and Young Peoples Services,Head of Early Help Assessment and Safeguarding,71440,Barnard Castle One Point Hub,Supplies and Services,312011,Newspapers Books and Periodicals,16-May-17,6071110673,Amazon UK Marketplace,5942,Books-school library,249.1,0,249.1
Resources,Financial Services,65141,Awards & Assessments Management,Supplies and Services,384999,Miscellaneous Expenses,16-May-17,6071110677,TP ELECTRICAL SUPPLIES,5065,Other expenses,82.72,13.79,68.93
Regeneration and Local Services,Direct Services,21242,Catering - County Hall,Supplies and Services,324117,Provisions,16-May-17,6071110679,HOPWELLS LTD,5811,Catering costs - provisions,270.79,0,270.79
Regeneration and Local Services,Direct Services,21242,Catering - County Hall,Supplies and Services,324117,Provisions,16-May-17,6071110683,HOPWELLS LTD,5811,Catering costs - provisions,201.48,0,201.48
Regeneration and Local Services,Direct Services,21242,Catering - County Hall,Supplies and Services,324117,Provisions,16-May-17,6071110685,HOPWELLS LTD,5811,Catering costs - provisions,138.86,0,138.86
Regeneration and Local Services,Direct Services,21242,Catering - County Hall,Supplies and Services,324117,Provisions,16-May-17,6071110691,FREEMAN CATERING BUTCH,5422,Catering costs - provisions,171.76,0,171.76
Regeneration and Local Services,Direct Services,21242,Catering - County Hall,Supplies and Services,324117,Provisions,16-May-17,6071110693,FREEMAN CATERING BUTCH,5422,Catering costs - provisions,116.2,0,116.2
Regeneration and Local Services,Direct Services,21242,Catering - County Hall,Supplies and Services,324117,Provisions,16-May-17,6071110695,JR HOLLAND FOODSERVICE,5422,Catering costs - provisions,51,0,51
Resources,I.C.T. Services,70704,ICT School Services - DLG,Supplies and Services,372009,Subscriptions,16-May-17,6071110697,WEB NETWORKSOLUTIONS,5968,Subscriptions,107.19,0,107.19
Resources,I.C.T. Services,65464,Domains,Supplies and Services,372009,Subscriptions,16-May-17,6071110699,WEB NETWORKSOLUTIONS,5968,Subscriptions,278.73,0,278.73
Regeneration and Local Services,Culture & Sport,54812,Gala Theatre - Catering etc,Supplies and Services,324117,Provisions,16-May-17,6071110707,FREEMAN CATERING BUTCH,5422,Catering costs - provisions,100.57,0,100.57
Regeneration and Local Services,Culture & Sport,54812,Gala Theatre - Catering etc,Supplies and Services,324117,Provisions,16-May-17,6071110711,JR HOLLAND FOODSERVICE,5422,Catering costs - provisions,25.04,0,25.04
Children and Young Peoples Services,Head of Looked After Provision Permanence and Care Leavers,85362,LAC & Permanence Team 2,Supplies and Services,304403,Equipment and Materials,16-May-17,6071110737,GRO HM PASSPORT OFFICE,9399,Other consumables,18.5,0,18.5
Children and Young Peoples Services,Head of Looked After Provision Permanence and Care Leavers,85361,LAC & Permanence Team 1,Supplies and Services,304403,Equipment and Materials,16-May-17,6071110739,GRO HM PASSPORT OFFICE,9399,Other consumables,9.25,0,9.25
Children and Young Peoples Services,Head of Looked After Provision Permanence and Care Leavers,85361,LAC & Permanence Team 1,Supplies and Services,304403,Equipment and Materials,16-May-17,6071110741,GRO HM PASSPORT OFFICE,9399,Other consumables,9.25,0,9.25
Regeneration and Local Services,Culture & Sport,10664,Freemans Quay Leisure Centre,Supplies and Services,304259,Equipment and Materials,16-May-17,6071110759,SCREWFIX DIRECT,5211,Equipment-purchase and rental,39.99,6.67,33.32
Regeneration and Local Services,Economic Development and Housing,30749,Employability - Youth Contract,Transport,235057,Public Transport,16-May-17,6071110763,WWW.SIMPLYGO.COM,4131,Staff travelling,5,0,5
Regeneration and Local Services,Economic Development and Housing,30749,Employability - Youth Contract,Transport,235057,Public Transport,16-May-17,6071110765,NEXUS TRAVEL SHOP,4131,Staff travelling,10,0,10
Children and Young Peoples Services,Head of Looked After Provision Permanence and Care Leavers,85332,Middlestone Moor CU,Supplies and Services,324117,Provisions,16-May-17,6071110787,TESCO STORES 2371,5411,Catering costs - provisions,119.34,0,119.34
Resources,Legal & Democratic Services,67910,Democratic Representation,Supplies and Services,384960,Miscellaneous Expenses,16-May-17,6071110789,DERWENT MANOR HOTEL,7011,National and major functions,175.15,29.19,145.96
Resources,Legal & Democratic Services,67910,Democratic Representation,Supplies and Services,384960,Miscellaneous Expenses,16-May-17,6071110791,NEWCASTLE PARK AND FLY,7523,National and major functions,8.4,0,8.4
Children and Young Peoples Services,Head of Education,71903,EYDCP-Sustainability EDS,Supplies and Services,312011,Newspapers Books and Periodicals,16-May-17,6071110797,Amazon UK Marketplace,5942,Books-school library,25.81,0,25.81
Children and Young Peoples Services,Head of Early Help Assessment and Safeguarding,71445,Chester le Street One Point Hub,Supplies and Services,328041,Clothing Uniforms and Laundry,16-May-17,6071110801,ARGOS RETAIL GROUP,5310,Clothing uniforms and laundry,7.98,0,7.98
Children and Young Peoples Services,Head of Early Help Assessment and Safeguarding,71445,Chester le Street One Point Hub,Supplies and Services,304259,Equipment and Materials,16-May-17,6071110803,WILKO.COM,5722,Equipment-purchase and rental,15,0,15
Children and Young Peoples Services,Head of Early Help Assessment and Safeguarding,71445,Chester le Street One Point Hub,Supplies and Services,304403,Equipment and Materials,16-May-17,6071110807,TESCO - Abacus Baby,5999,Other consumables,112.95,0,112.95
Children and Young Peoples Services,Head of Early Help Assessment and Safeguarding,71445,Chester le Street One Point Hub,Supplies and Services,304403,Equipment and Materials,16-May-17,6071110809,TESCO - Childrens Room,5999,Other consumables,28.85,0,28.85
Children and Young Peoples Services,Head of Early Help Assessment and Safeguarding,71445,Chester le Street One Point Hub,Supplies and Services,304403,Equipment and Materials,16-May-17,6071110811,TESCO - Seller_IST_1_2,5999,Other consumables,12.99,0,12.99
Children and Young Peoples Services,Head of Early Help Assessment and Safeguarding,71445,Chester le Street One Point Hub,Supplies and Services,304403,Equipment and Materials,16-May-17,6071110815,TESCO DIRECT,5999,Other consumables,9,0,9
Children and Young Peoples Services,Head of Looked After Provision Permanence and Care Leavers,85958,Support Services,Supplies and Services,304259,Equipment and Materials,16-May-17,6071110823,TLC SOUTHERN,5722,Equipment-purchase and rental,149.71,24.95,124.76
Children and Young Peoples Services,Head of Looked After Provision Permanence and Care Leavers,85958,Support Services,Supplies and Services,342033,Computers and Communications,16-May-17,6071110827,VERY.CO.UK,5964,Computer hardware,42.99,0,42.99
Children and Young Peoples Services,Head of Looked After Provision Permanence and Care Leavers,85958,Support Services,Supplies and Services,304403,Equipment and Materials,16-May-17,6071110829,AMAZON UK RETAIL AMAZO,5999,Other consumables,35,0,35
Regeneration and Local Services,Culture & Sport,11060,Hardwick Park Catering,Supplies and Services,324117,Provisions,16-May-17,6071110839,HOPWELLS LTD,5811,Catering costs - provisions,351.42,58.57,292.85
Regeneration and Local Services,Culture & Sport,11060,Hardwick Park Catering,Supplies and Services,324117,Provisions,16-May-17,000006071110839 - 1,HOPWELLS LTD,5811,Catering costs - provisions,29.12,,29.12
Regeneration and Local Services,Culture & Sport,11060,Hardwick Park Catering,Supplies and Services,324117,Provisions,16-May-17,6071110843,HOPWELLS LTD,5811,Catering costs - provisions,180.96,30.16,150.8
Regeneration and Local Services,Culture & Sport,11060,Hardwick Park Catering,Supplies and Services,324117,Provisions,16-May-17,000006071110843 - 1,HOPWELLS LTD,5811,Catering costs - provisions,51.03,,51.03
Regeneration and Local Services,Culture & Sport,11060,Hardwick Park Catering,Supplies and Services,324117,Provisions,16-May-17,6071110847,FREEMAN CATERING BUTCH,5422,Catering costs - provisions,50.27,0,50.27
Resources,I.C.T. Services,65471,Business Development,Supplies and Services,342033,Computers and Communications,16-May-17,6071110865,Amazon UK Marketplace,5942,Computer hardware,54.16,0,54.16
Resources,I.C.T. Services,65335,Implementation,Supplies and Services,304639,Equipment and Materials,16-May-17,6071110867,E R MEDIA LTD,5943,Technicians-supplies,22.8,3.8,19
Regeneration and Local Services,Economic Development and Housing,30762,Organisational Training & Development,Employees,40149,Recruitment Instruction and Training,16-May-17,6071110877,NCS VUE CITB HS&E REV,8299,Training-all costs,487.5,0,487.5
Regeneration and Local Services,Economic Development and Housing,30762,Organisational Training & Development,Employees,40149,Recruitment Instruction and Training,16-May-17,6071110881,CITB,8220,Training-all costs,30,5,25
Regeneration and Local Services,Direct Services,21234,Catering - Locomotion,Supplies and Services,324117,Provisions,16-May-17,6071110887,HOPWELLS LTD,5811,Catering costs - provisions,27.42,4.57,22.85
Regeneration and Local Services,Direct Services,21234,Catering - Locomotion,Supplies and Services,324117,Provisions,16-May-17,000006071110887 - 1,HOPWELLS LTD,5811,Catering costs - provisions,209.89,,209.89
Regeneration and Local Services,Direct Services,21234,Catering - Locomotion,Supplies and Services,324117,Provisions,16-May-17,6071110893,HOPWELLS LTD,5811,Catering costs - provisions,50.94,8.49,42.45
Regeneration and Local Services,Direct Services,21234,Catering - Locomotion,Supplies and Services,324117,Provisions,16-May-17,000006071110893 - 1,HOPWELLS LTD,5811,Catering costs - provisions,89.59,,89.59
Regeneration and Local Services,Direct Services,21234,Catering - Locomotion,Supplies and Services,324117,Provisions,16-May-17,6071110897,HOPWELLS LTD,5811,Catering costs - provisions,34.92,5.82,29.1
Regeneration and Local Services,Direct Services,21234,Catering - Locomotion,Supplies and Services,324117,Provisions,16-May-17,000006071110897 - 1,HOPWELLS LTD,5811,Catering costs - provisions,81.44,,81.44
Regeneration and Local Services,Direct Services,21234,Catering - Locomotion,Supplies and Services,324117,Provisions,16-May-17,6071110901,JR HOLLAND FOODSERVICE,5422,Catering costs - provisions,43.15,0,43.15
Regeneration and Local Services,Direct Services,21234,Catering - Locomotion,Supplies and Services,324117,Provisions,16-May-17,6071110907,JR HOLLAND FOODSERVICE,5422,Catering costs - provisions,8.28,0,8.28
Regeneration and Local Services,Direct Services,10525,Catering - Green Lane,Supplies and Services,324117,Provisions,16-May-17,6071110927,FREEMAN CATERING BUTCH,5422,Catering costs - provisions,36.43,0,36.43
Regeneration and Local Services,Direct Services,10525,Catering - Green Lane,Supplies and Services,324117,Provisions,16-May-17,6071110931,FREEMAN CATERING BUTCH,5422,Catering costs - provisions,-4.14,0,-4.14
Children and Young Peoples Services,Head of Looked After Provision Permanence and Care Leavers,85352,Tow Law CU,Supplies and Services,324117,Provisions,16-May-17,6071110957,TESCO STORES 2371,5411,Catering costs - provisions,213.32,0,213.32
Regeneration and Local Services,Economic Development and Housing,31576,B& B - Temp Accom,Supplies and Services,364320,Grants to Voluntary Organisations,16-May-17,6071110979,DAYS INN,7011,Accommodation assistance,50,8.33,41.67
Regeneration and Local Services,Economic Development and Housing,31576,B& B - Temp Accom,Supplies and Services,364320,Grants to Voluntary Organisations,16-May-17,6071110981,DAYS INN,7011,Accommodation assistance,50,8.33,41.67
Children and Young Peoples Services,Head of Looked After Provision Permanence and Care Leavers,85333,Coxhoe Satelite Home,Supplies and Services,324117,Provisions,16-May-17,6071110985,ALDI,5411,Catering costs - provisions,6.97,0,6.97
Children and Young Peoples Services,Head of Looked After Provision Permanence and Care Leavers,85333,Coxhoe Satelite Home,Supplies and Services,328041,Clothing Uniforms and Laundry,16-May-17,6071110987,B & M RETAIL,5310,Clothing uniforms and laundry,87.84,0,87.84
Children and Young Peoples Services,Head of Looked After Provision Permanence and Care Leavers,85333,Coxhoe Satelite Home,Supplies and Services,328041,Clothing Uniforms and Laundry,16-May-17,6071110989,B & M RETAIL,5310,Clothing uniforms and laundry,9.98,0,9.98
Regeneration and Local Services,Culture & Sport,11191,Wellbeing4Life,Supplies and Services,324117,Provisions,16-May-17,6071111005,ALDI,5411,Catering costs - provisions,8.67,0,8.67
Regeneration and Local Services,Culture & Sport,11191,Wellbeing4Life,Supplies and Services,348037,Subsistence,16-May-17,6071111007,THE BLUE STONE TEA SHO,5812,Subsistence,6,0,6
Regeneration and Local Services,Culture & Sport,11191,Wellbeing4Life,Supplies and Services,328041,Clothing Uniforms and Laundry,16-May-17,6071111011,ORIGINAL FACTORY S,5311,Clothing uniforms and laundry,5,0,5
Regeneration and Local Services,Culture & Sport,11191,Wellbeing4Life,Supplies and Services,384999,Miscellaneous Expenses,16-May-17,6071111015,CRAFTERS COMPANION LTD,5970,Other expenses,8.62,0,8.62
Regeneration and Local Services,Direct Services,21324,Catering - Meadowfield,Supplies and Services,324117,Provisions,16-May-17,6071111089,HOPWELLS LTD,5811,Catering costs - provisions,67.69,0,67.69
Regeneration and Local Services,Direct Services,21324,Catering - Meadowfield,Supplies and Services,324117,Provisions,16-May-17,6071111093,FREEMAN CATERING BUTCH,5422,Catering costs - provisions,60.55,0,60.55
Regeneration and Local Services,Direct Services,21324,Catering - Meadowfield,Supplies and Services,324117,Provisions,16-May-17,6071111095,FREEMAN CATERING BUTCH,5422,Catering costs - provisions,54.63,0,54.63
Children and Young Peoples Services,Head of Looked After Provision Permanence and Care Leavers,85333,Coxhoe Satelite Home,Supplies and Services,304259,Equipment and Materials,16-May-17,6071111101,M and M Direct Ltd,5941,Equipment-purchase and rental,22.98,0,22.98
Children and Young Peoples Services,Head of Looked After Provision Permanence and Care Leavers,85331,New Lea Childrens Home,Transport,235057,Public Transport,16-May-17,6071111145,WWW.SIMPLYGO.COM,4131,Staff travelling,15.5,0,15.5
Resources,Legal & Democratic Services,67910,Democratic Representation,Supplies and Services,384199,Miscellaneous Expenses,16-May-17,6071111149,WWW.ICO.GOV.UK,9399,Other hired and contracted services,35,0,35
Resources,Legal & Democratic Services,67910,Democratic Representation,Supplies and Services,384199,Miscellaneous Expenses,16-May-17,6071111153,WWW.ICO.GOV.UK,9399,Other hired and contracted services,35,0,35
Resources,Legal & Democratic Services,67910,Democratic Representation,Supplies and Services,384199,Miscellaneous Expenses,16-May-17,6071111157,WWW.ICO.GOV.UK,9399,Other hired and contracted services,35,0,35
Resources,Legal & Democratic Services,67910,Democratic Representation,Supplies and Services,384199,Miscellaneous Expenses,16-May-17,6071111159,WWW.ICO.GOV.UK,9399,Other hired and contracted services,35,0,35
Resources,Legal & Democratic Services,67910,Democratic Representation,Supplies and Services,384199,Miscellaneous Expenses,16-May-17,6071111161,WWW.ICO.GOV.UK,9399,Other hired and contracted services,35,0,35
Resources,Legal & Democratic Services,67910,Democratic Representation,Supplies and Services,384199,Miscellaneous Expenses,16-May-17,6071111165,WWW.ICO.GOV.UK,9399,Other hired and contracted services,35,0,35
Resources,Legal & Democratic Services,67910,Democratic Representation,Supplies and Services,384199,Miscellaneous Expenses,16-May-17,6071111167,WWW.ICO.GOV.UK,9399,Other hired and contracted services,35,0,35
Resources,I.C.T. Services,65487,ICT Telephony Recharges,Supplies and Services,344033,Telephones,16-May-17,6071111171,AMZ iTALKonline-UK,5999,Telephones general-all costs,-59,0,-59
Regeneration and Local Services,Direct Services,21235,Catering - Wharton Park,Supplies and Services,324117,Provisions,16-May-17,6071111173,JR HOLLAND FOODSERVICE,5422,Catering costs - provisions,29.46,0,29.46
Regeneration and Local Services,Direct Services,21235,Catering - Wharton Park,Supplies and Services,324117,Provisions,16-May-17,6071111175,JR HOLLAND FOODSERVICE,5422,Catering costs - provisions,2.32,0,2.32
Regeneration and Local Services,Culture & Sport,10605,Woodhouse Close Leisure Complex,Supplies and Services,324117,Provisions,16-May-17,6071111183,HOPWELLS LTD,5811,Catering costs - provisions,5.17,0,5.17
Regeneration and Local Services,Culture & Sport,10605,Woodhouse Close Leisure Complex,Supplies and Services,324117,Provisions,16-May-17,6071111187,FREEMAN CATERING BUTCH,5422,Catering costs - provisions,66.4,0,66.4
Regeneration and Local Services,Economic Development and Housing,30737,Durham Works Flexible Fund,Supplies and Services,328041,Clothing Uniforms and Laundry,16-May-17,6071111199,MATALAN,5691,Clothing uniforms and laundry,30.05,0,30.05
Regeneration and Local Services,Spatial Policy Planning Assets & Environment,31200,North Pennines Core,Supplies and Services,312011,Newspapers Books and Periodicals,16-May-17,6071111203,Amazon UK Marketplace,5942,Books-school library,2.03,0,2.03
Regeneration and Local Services,Economic Development and Housing,30554,International Relations,Supplies and Services,384926,Miscellaneous Expenses,16-May-17,6071111217,WM MORRISONS,5411,International visits,19.48,0,19.48
Regeneration and Local Services,Direct Services,15015,Spectrum 8 Seaham,Supplies and Services,384956,Miscellaneous Expenses,16-May-17,6076722457,TVLICENSING.CO.UK,7392,Licences,147,0,147
Regeneration and Local Services,Direct Services,21242,Catering - County Hall,Supplies and Services,324117,Provisions,16-May-17,6076722483,BATLEYS PERTH,5300,Catering costs - provisions,191.58,31.93,159.65
Regeneration and Local Services,Direct Services,21242,Catering - County Hall,Supplies and Services,324117,Provisions,16-May-17,000006076722483 - 1,BATLEYS PERTH,5300,Catering costs - provisions,190.95,,190.95
Regeneration and Local Services,Culture & Sport,11060,Hardwick Park Catering,Supplies and Services,324117,Provisions,16-May-17,6076722719,BATLEYS PERTH,5300,Catering costs - provisions,77.64,12.94,64.7
Regeneration and Local Services,Culture & Sport,11060,Hardwick Park Catering,Supplies and Services,324117,Provisions,16-May-17,000006076722719 - 1,BATLEYS PERTH,5300,Catering costs - provisions,146.66,,146.66
Regeneration and Local Services,Culture & Sport,11060,Hardwick Park Catering,Supplies and Services,324117,Provisions,16-May-17,6076722725,BATLEYS PERTH,5300,Catering costs - provisions,15.43,2.57,12.86
Regeneration and Local Services,Direct Services,21234,Catering - Locomotion,Supplies and Services,324117,Provisions,16-May-17,6076722751,BATLEYS PERTH,5300,Catering costs - provisions,18.72,3.12,15.6
Regeneration and Local Services,Direct Services,21234,Catering - Locomotion,Supplies and Services,324117,Provisions,16-May-17,000006076722751 - 1,BATLEYS PERTH,5300,Catering costs - provisions,17.94,,17.94
Regeneration and Local Services,Direct Services,21234,Catering - Locomotion,Supplies and Services,324117,Provisions,16-May-17,6076722755,BATLEYS PERTH,5300,Catering costs - provisions,17.65,0,17.65
Regeneration and Local Services,Direct Services,21234,Catering - Locomotion,Supplies and Services,324117,Provisions,16-May-17,6076722757,BATLEYS PERTH,5300,Catering costs - provisions,15.2,0,15.2
Regeneration and Local Services,Direct Services,10525,Catering - Green Lane,Supplies and Services,324117,Provisions,16-May-17,6076722773,BATLEYS PERTH,5300,Catering costs - provisions,-19.03,-3.17,-15.86
Regeneration and Local Services,Culture & Sport,54235,Bp Auckland Town Hall Cafe,Supplies and Services,324117,Provisions,16-May-17,6076722879,BATLEYS PERTH,5300,Catering costs - provisions,86.63,0,86.63
Regeneration and Local Services,Direct Services,21324,Catering - Meadowfield,Supplies and Services,324117,Provisions,16-May-17,6076722905,BATLEYS PERTH,5300,Catering costs - provisions,145.56,24.26,121.3
Regeneration and Local Services,Direct Services,21324,Catering - Meadowfield,Supplies and Services,324117,Provisions,16-May-17,000006076722905 - 1,BATLEYS PERTH,5300,Catering costs - provisions,85.68,,85.68
Regeneration and Local Services,Direct Services,10383,C&G - South Street Cleansing,Transport,215995,Running Costs of Vehicles,16-May-17,6082049945,SNOWBALLS (RAILWAY,5533,Vehicle running expenses,65.38,10.9,54.48
Regeneration and Local Services,Culture & Sport,54815,Gala Theatre Stage School,Supplies and Services,332047,Printing Stationery and Gen Off Exps,16-May-17,6082050145,RYMAN,5943,Stationery,11.73,1.96,9.77
Regeneration and Local Services,Spatial Policy Planning Assets & Environment,36000,Asset Management,Supplies and Services,312009,Newspapers Books and Periodicals,16-May-17,6082050243,RBI QSS SUBS,5192,Newspapers books and periodicals,383.9,0,383.9
Children and Young Peoples Services,Head of Looked After Provision Permanence and Care Leavers,85361,LAC & Permanence Team 1,Supplies and Services,304403,Equipment and Materials,16-May-17,6147237201,GRO HM PASSPORT OFFICE,9399,Other consumables,-9.25,0,-9.25
Resources,I.C.T. Services,70704,ICT School Services - DLG,Supplies and Services,372009,Subscriptions,17-May-17,6071110701,WEB NETWORKSOLUTIONS,5968,Subscriptions,2.95,0,2.95
Resources,I.C.T. Services,65464,Domains,Supplies and Services,372009,Subscriptions,17-May-17,6071110703,WEB NETWORKSOLUTIONS,5968,Subscriptions,7.67,0,7.67
Children and Young Peoples Services,Head of Education,71801,Selby Cottage Childcare Centre,Supplies and Services,324117,Provisions,17-May-17,6076722357,TESCO STORES 2916,5411,Catering costs - provisions,13.5,0,13.5
Children and Young Peoples Services,Head of Education,71801,Selby Cottage Childcare Centre,Supplies and Services,324117,Provisions,17-May-17,6076722361,TESCO STORES 2916,5411,Catering costs - provisions,3,0,3
Children and Young Peoples Services,Head of Education,71801,Selby Cottage Childcare Centre,Supplies and Services,328041,Clothing Uniforms and Laundry,17-May-17,6076722365,B & M RETAIL,5310,Clothing uniforms and laundry,157.86,0,157.86
Children and Young Peoples Services,Head of Education,71801,Selby Cottage Childcare Centre,Supplies and Services,328041,Clothing Uniforms and Laundry,17-May-17,6076722367,B & M RETAIL,5310,Clothing uniforms and laundry,10.04,0,10.04
Regeneration and Local Services,Economic Development and Housing,31500,Housing Solutions - Core Team,Supplies and Services,352001,Conference Expenses,17-May-17,6076722391,DAYS INN,7011,Conferencesseminars fees etc,50,0,50
Regeneration and Local Services,Economic Development and Housing,31500,Housing Solutions - Core Team,Supplies and Services,352001,Conference Expenses,17-May-17,6076722393,DAYS INN,7011,Conferencesseminars fees etc,50,0,50
